BODY,BODY NAME,SUPPLIER CODE,SUPPLIER NAME,TRANSACTION NUMBER,INVOICE DATE,THEIR REF,NARR1,PAID DATE,VAT AMOUNT,EXCLUSIVE AMOUNT,INCLUSIVE AMOUNT,EXPENSE AREA,EXPENSE TYPE,EXPENSE CODE
http://statistics.data.gov.uk/id/local-authority/12UE,Huntingdonshire District Council,200818,VICTOIRE PRESS LTD VICTOIRE PRESS LTD,49156,07/06/2021,43626,,27/05/2021,0,54681.6,54681.6,Paymaster Account,Paymaster Account,10082
http://statistics.data.gov.uk/id/local-authority/12UE,Huntingdonshire District Council,200123,BRITANNIA FIRE & SECURITY LTD BRITANNIA FIRE & SECURITY LTD,47831,10/05/2021,42236,,29/04/2021,0,311.1,311.1,Paymaster Account,Paymaster Account,10082
http://statistics.data.gov.uk/id/local-authority/12UE,Huntingdonshire District Council,202187,CYCLESCHEME LTD,49321,08/06/2021,W573564,CYCLESCHEME,10/06/2021,333.33,1666.67,2000,Cycle to Work,Vehicles Plant Furniture & Equipment Cost,11300
http://statistics.data.gov.uk/id/local-authority/12UE,Huntingdonshire District Council,202187,CYCLESCHEME LTD,47438,28/04/2021,W565293,CYCLESCHEME,29/04/2021,264.17,1320.83,1585,Cycle to Work,Vehicles Plant Furniture & Equipment Cost,11300
http://statistics.data.gov.uk/id/local-authority/12UE,Huntingdonshire District Council,202187,CYCLESCHEME LTD,47438,28/04/2021,W565293,CYCLESCHEME,29/04/2021,0,50,50,Cycle to Work,Vehicles Plant Furniture & Equipment Cost,11300
http://statistics.data.gov.uk/id/local-authority/12UE,Huntingdonshire District Council,202187,CYCLESCHEME LTD,47398,27/04/2021,W564932,REDACTED,29/04/2021,50,250,300,Cycle to Work,Vehicles Plant Furniture & Equipment Cost,11300
http://statistics.data.gov.uk/id/local-authority/12UE,Huntingdonshire District Council,200356,WATSON FUELS WATSON FUELS,49225,24/05/2021,I12622897,DIESEL,17/06/2021,5984.8,29923.99,35908.79,Operations Diesel Stock,General Stock Account,11601
http://statistics.data.gov.uk/id/local-authority/12UE,Huntingdonshire District Council,200356,WATSON FUELS WATSON FUELS,48782,04/05/2021,I12585526,DIESEL,27/05/2021,5900.39,29501.95,35402.34,Operations Diesel Stock,General Stock Account,11601
http://statistics.data.gov.uk/id/local-authority/12UE,Huntingdonshire District Council,200356,WATSON FUELS WATSON FUELS,47056,25/03/2021,I12505171,DIESEL,22/04/2021,5829.6,29148,34977.6,Operations Diesel Stock,General Stock Account,11601
http://statistics.data.gov.uk/id/local-authority/12UE,Huntingdonshire District Council,200356,WATSON FUELS WATSON FUELS,47370,14/04/2021,I12545333,DIESEL,06/05/2021,5785.99,28929.97,34715.96,Operations Diesel Stock,General Stock Account,11601
http://statistics.data.gov.uk/id/local-authority/12UE,Huntingdonshire District Council,200433,JACOBS JACOBS,45750,21/03/2021,B010321.,CT BAILIFF (MAR) VAT AMOUNT,15/04/2021,0,3261.07,3261.07,VAT,VAT Input Tax,11727
http://statistics.data.gov.uk/id/local-authority/12UE,Huntingdonshire District Council,200569,NEWLYN PLC NEWLYN PLC,46261,27/03/2021,152475,CT BAILIFF (MAR) VAT AMOUNT,22/04/2021,0,2017.86,2017.86,VAT,VAT Input Tax,11727
http://statistics.data.gov.uk/id/local-authority/12UE,Huntingdonshire District Council,200569,NEWLYN PLC NEWLYN PLC,48120,30/04/2021,152932,CT BAILIFF (APRIL) VAT AMOUNT,27/05/2021,0,1951.36,1951.36,VAT,VAT Input Tax,11727
http://statistics.data.gov.uk/id/local-authority/12UE,Huntingdonshire District Council,200433,JACOBS JACOBS,46824,19/04/2021,B290321.,CT BAILIFF (MAR) VAT AMOUNT,13/05/2021,0,1770.39,1770.39,VAT,VAT Input Tax,11727
http://statistics.data.gov.uk/id/local-authority/12UE,Huntingdonshire District Council,200433,JACOBS JACOBS,48126,10/05/2021,B040521.,CT BAILIFF (APRIL) VAT AMOUNT,03/06/2021,0,1612.39,1612.39,VAT,VAT Input Tax,11727
http://statistics.data.gov.uk/id/local-authority/12UE,Huntingdonshire District Council,200569,NEWLYN PLC NEWLYN PLC,49519,29/05/2021,153478,CT BAILIFF (MAY) VAT AMOUNT,24/06/2021,0,1507.49,1507.49,VAT,VAT Input Tax,11727
http://statistics.data.gov.uk/id/local-authority/12UE,Huntingdonshire District Council,200727,SNR DENTON SNR DENTON,45763,30/04/2020,91207037,PROFESSIONAL SERVICES,17/06/2021,0,434,434,VAT,VAT Input Tax,11727
http://statistics.data.gov.uk/id/local-authority/12UE,Huntingdonshire District Council,201394,DWF LLP,48329,17/05/2021,157-0177340,PROFESSIONAL FEES,10/06/2021,0,302.4,302.4,VAT,VAT Input Tax,11727
http://statistics.data.gov.uk/id/local-authority/12UE,Huntingdonshire District Council,200101,BID HUNTINGDON BID HUNTINGDON,46601,07/04/2021,INV-1891,BID LEVY,15/04/2021,728.86,3644.31,4373.17,Bid Revenue Account,Payment Of Amount Due,23003
http://statistics.data.gov.uk/id/local-authority/12UE,Huntingdonshire District Council,200101,BID HUNTINGDON BID HUNTINGDON,49549,10/06/2021,INV-1893,BID LEVY,17/06/2021,661.77,3308.86,3970.63,Bid Revenue Account,Payment Of Amount Due,23003
http://statistics.data.gov.uk/id/local-authority/12UE,Huntingdonshire District Council,200101,BID HUNTINGDON BID HUNTINGDON,47914,05/05/2021,INV-1892,BID LEVY,13/05/2021,331.2,1656,1987.2,Bid Revenue Account,Payment Of Amount Due,23003
http://statistics.data.gov.uk/id/local-authority/12UE,Huntingdonshire District Council,200101,BID HUNTINGDON BID HUNTINGDON,46600,07/04/2021,INV-1890,BID LEVY,15/04/2021,84.92,424.61,509.53,Bid Revenue Account,Payment Of Amount Due,23003
http://statistics.data.gov.uk/id/local-authority/12UE,Huntingdonshire District Council,202004,BLOOM PROCUREMENT SERVICES LTD,47232,19/04/2021,SIN023255,DE-CARBONISATION PLAN,29/04/2021,4189.5,20947.5,25137,Bldg Efficiency - Salix Funding,Government Grants Revenue Income - Ringfenced,50000
http://statistics.data.gov.uk/id/local-authority/12UE,Huntingdonshire District Council,202430,FOOD FOR NOUGHT,47458,28/04/2021,GRANT,Local Authority,29/04/2021,0,5000,5000,Community Development,D E F R A Grant,50009
http://statistics.data.gov.uk/id/local-authority/12UE,Huntingdonshire District Council,200638,PRIORY CENTRE PRIORY CENTRE,47332,31/03/2021,4579,HDC CONTRIBUTION TO SNTC,29/04/2021,0,-9173,-9173,Priory Centre,Insurance Premiums Recovered,51106
http://statistics.data.gov.uk/id/local-authority/12UE,Huntingdonshire District Council,202425,GODMANCHESTER BAPTIST CHURCH,46775,16/04/2021,PRF WINTER GRANT SCHEME,WINTER GRANT SCHEME,16/04/2021,0,6800,6800,Community Development,Fees & Charges Income ,53000
http://statistics.data.gov.uk/id/local-authority/12UE,Huntingdonshire District Council,202307,HUNTINGDONSHIRE COMMUNITY GROUP,46776,16/04/2021,PRF WINTER GRANT SCHEME,PRF Winter Grant Scheme,16/04/2021,0,2720,2720,Community Development,Fees & Charges Income ,53000
http://statistics.data.gov.uk/id/local-authority/12UE,Huntingdonshire District Council,202302,CARESCO LTD,46777,16/04/2021,PRF WINTER GRANT SCHEME,PRF Winter Grant Scheme,16/04/2021,0,2720,2720,Community Development,Fees & Charges Income ,53000
http://statistics.data.gov.uk/id/local-authority/12UE,Huntingdonshire District Council,202534,Ramsey Foodbank,46778,16/04/2021,PRF WINTER GRANT SCHEME,PRF Winter Grant Scheme,16/04/2021,0,2720,2720,Community Development,Fees & Charges Income ,53000
http://statistics.data.gov.uk/id/local-authority/12UE,Huntingdonshire District Council,202561,St Neots Foodbank,46781,16/04/2021,PRF WINTER GRANT SCHEME,PRF Winter Grant Scheme,16/04/2021,0,2720,2720,Community Development,Fees & Charges Income ,53000
http://statistics.data.gov.uk/id/local-authority/12UE,Huntingdonshire District Council,202316,ST IVES FOODBANK,46789,16/04/2021,PRF WINTER GRANT SCHEME,PRF Winter Grant Scheme,16/04/2021,0,2720,2720,Community Development,Fees & Charges Income ,53000
http://statistics.data.gov.uk/id/local-authority/12UE,Huntingdonshire District Council,202576,ST NEOTS COMMUNITY SUPPORT,47542,29/04/2021,GRANT,Clinically Extremely Vulnerable Grant,06/05/2021,0,2000,2000,Community Development,Fees & Charges Income ,53000
http://statistics.data.gov.uk/id/local-authority/12UE,Huntingdonshire District Council,202443,DIAMOND HAMPERS,46774,16/04/2021,PRF GRANT,WINTER GRANT SCHEME,16/04/2021,1133.33,5666.67,6800,Community Development,Fees & Charges Income ,53000
http://statistics.data.gov.uk/id/local-authority/12UE,Huntingdonshire District Council,201477,PLANNING PORTAL,48637,20/05/2021,PP-08687231,application withdrawn,27/05/2021,0,3696,3696,Dm Application Processing,Planning Applications Income,54100
http://statistics.data.gov.uk/id/local-authority/12UE,Huntingdonshire District Council,201477,PLANNING PORTAL,48455,10/05/2021,PP-09273165,wrong application type,20/05/2021,0,648,648,Dm Application Processing,Planning Applications Income,54100
http://statistics.data.gov.uk/id/local-authority/12UE,Huntingdonshire District Council,201477,PLANNING PORTAL,49728,16/06/2021,PP-08694083,non determination,17/06/2021,0,462,462,Dm Application Processing,Planning Applications Income,54100
http://statistics.data.gov.uk/id/local-authority/12UE,Huntingdonshire District Council,202618,REDACTED,49786,17/06/2021,21/70009/LBC,21/70009/LBC,24/06/2021,0,312,312,Dm Application Processing,Planning Applications Income,54100
http://statistics.data.gov.uk/id/local-authority/12UE,Huntingdonshire District Council,200181,CFL ESTATE SERVICES CFL ESTATE SERVICES,45639,11/03/2021,HDC123,ESTATE LEGAL COSTS,08/04/2021,0,294,294,Bridge Place Car Park Const,Agency Staff,60011
http://statistics.data.gov.uk/id/local-authority/12UE,Huntingdonshire District Council,202447,BRANDED CUPPA LTD,46439,31/03/2021,HDC1462,CONSULTANCY,22/04/2021,1015,5075,6090,Covid-19,Agency Staff,60011
http://statistics.data.gov.uk/id/local-authority/12UE,Huntingdonshire District Council,202548,SAFFRON VANTAGE LTD,48755,05/05/2021,413,AGENCY STAFF,27/05/2021,990.9,4954.5,5945.4,Covid-19,Agency Staff,60011
http://statistics.data.gov.uk/id/local-authority/12UE,Huntingdonshire District Council,202548,SAFFRON VANTAGE LTD,48797,07/04/2021,365,AGENCY STAFF,27/05/2021,937.9,4689.52,5627.42,Covid-19,Agency Staff,60011
http://statistics.data.gov.uk/id/local-authority/12UE,Huntingdonshire District Council,202548,SAFFRON VANTAGE LTD,48974,11/05/2021,427,AGENCY STAFF,03/06/2021,887.76,4438.8,5326.56,Covid-19,Agency Staff,60011
http://statistics.data.gov.uk/id/local-authority/12UE,Huntingdonshire District Council,202447,BRANDED CUPPA LTD,47793,30/04/2021,HDC1470,CONSULTANCY,27/05/2021,770,3850,4620,Covid-19,Agency Staff,60011
http://statistics.data.gov.uk/id/local-authority/12UE,Huntingdonshire District Council,202548,SAFFRON VANTAGE LTD,46846,14/04/2021,377,AGENCY STAFF,06/05/2021,731.52,3657.6,4389.12,Covid-19,Agency Staff,60011
http://statistics.data.gov.uk/id/local-authority/12UE,Huntingdonshire District Council,202548,SAFFRON VANTAGE LTD,48751,27/04/2021,401,AGENCY STAFF,27/05/2021,706.32,3531.6,4237.92,Covid-19,Agency Staff,60011
http://statistics.data.gov.uk/id/local-authority/12UE,Huntingdonshire District Council,202548,SAFFRON VANTAGE LTD,47856,21/04/2021,389,AGENCY STAFF,20/05/2021,684,3420,4104,Covid-19,Agency Staff,60011
http://statistics.data.gov.uk/id/local-authority/12UE,Huntingdonshire District Council,202548,SAFFRON VANTAGE LTD,49324,02/06/2021,472,AGENCY STAFF,24/06/2021,606.56,3032.8,3639.36,Covid-19,Agency Staff,60011
http://statistics.data.gov.uk/id/local-authority/12UE,Huntingdonshire District Council,202548,SAFFRON VANTAGE LTD,48750,19/05/2021,444,AGENCY STAFF,10/06/2021,603.44,3017.2,3620.64,Covid-19,Agency Staff,60011
http://statistics.data.gov.uk/id/local-authority/12UE,Huntingdonshire District Council,202548,SAFFRON VANTAGE LTD,49171,26/05/2021,459,AGENCY STAFF,17/06/2021,594.8,2974,3568.8,Covid-19,Agency Staff,60011
http://statistics.data.gov.uk/id/local-authority/12UE,Huntingdonshire District Council,202539,WORKCHAIN LTD,46643,03/04/2021,152734,AGENCY STAFF,29/04/2021,548.01,2740.05,3288.06,Covid-19,Agency Staff,60011
http://statistics.data.gov.uk/id/local-authority/12UE,Huntingdonshire District Council,201114,XP RECRUITMENT LTD,46373,10/03/2021,10581,WAREHOUSE W/E 06/03/21,08/04/2021,481.8,2409,2890.8,Covid-19,Agency Staff,60011
http://statistics.data.gov.uk/id/local-authority/12UE,Huntingdonshire District Council,201114,XP RECRUITMENT LTD,46749,03/03/2021,10556,WAREHOUSE W/E 27/02/21,15/04/2021,447.33,2236.65,2683.98,Covid-19,Agency Staff,60011
http://statistics.data.gov.uk/id/local-authority/12UE,Huntingdonshire District Council,201114,XP RECRUITMENT LTD,46375,23/03/2021,10617,WAREHOUSE W/E 20/03/21,15/04/2021,444.68,2223.4,2668.08,Covid-19,Agency Staff,60011
http://statistics.data.gov.uk/id/local-authority/12UE,Huntingdonshire District Council,202539,WORKCHAIN LTD,46561,27/03/2021,152520,AGENCY STAFF,22/04/2021,412.43,2062.16,2474.59,Covid-19,Agency Staff,60011
http://statistics.data.gov.uk/id/local-authority/12UE,Huntingdonshire District Council,201114,XP RECRUITMENT LTD,45688,13/03/2021,10606,OPS STAFF,08/04/2021,405.98,2029.9,2435.88,Covid-19,Agency Staff,60011
http://statistics.data.gov.uk/id/local-authority/12UE,Huntingdonshire District Council,201114,XP RECRUITMENT LTD,46625,07/04/2021,10665,WAREHOUSE W/E 03/04/21,29/04/2021,375.06,1875.3,2250.36,Covid-19,Agency Staff,60011
http://statistics.data.gov.uk/id/local-authority/12UE,Huntingdonshire District Council,202539,WORKCHAIN LTD,48912,22/05/2021,154561,AGENCY STAFF,17/06/2021,369.58,1847.92,2217.5,Covid-19,Agency Staff,60011
http://statistics.data.gov.uk/id/local-authority/12UE,Huntingdonshire District Council,201114,XP RECRUITMENT LTD,47233,21/04/2021,10703,WAREHOUSE W/E 17/04/21,13/05/2021,347.93,1739.65,2087.58,Covid-19,Agency Staff,60011
http://statistics.data.gov.uk/id/local-authority/12UE,Huntingdonshire District Council,201114,XP RECRUITMENT LTD,47853,05/05/2021,10743,WAREHOUSE W/E 01/05/21,27/05/2021,343,1715,2058,Covid-19,Agency Staff,60011
http://statistics.data.gov.uk/id/local-authority/12UE,Huntingdonshire District Council,200743,STAFFLINE GROUP STAFFLINE GROUP,48469,05/05/2021,108263,STREET CLEANSER W/C 25/04/21,27/05/2021,93.02,465.09,558.11,Covid-19,Agency Staff,60011
http://statistics.data.gov.uk/id/local-authority/12UE,Huntingdonshire District Council,200743,STAFFLINE GROUP STAFFLINE GROUP,48469,05/05/2021,108263,STREET CLEANSER W/C 25/04/21,27/05/2021,93.02,465.09,558.11,Covid-19,Agency Staff,60011
http://statistics.data.gov.uk/id/local-authority/12UE,Huntingdonshire District Council,200743,STAFFLINE GROUP STAFFLINE GROUP,48469,05/05/2021,108263,STREET CLEANSER W/C 25/04/21,27/05/2021,28.94,144.68,173.62,Covid-19,Agency Staff,60011
http://statistics.data.gov.uk/id/local-authority/12UE,Huntingdonshire District Council,201114,XP RECRUITMENT LTD,46738,14/04/2021,10676,WAREHOUSE W/E 10/04/21,06/05/2021,336.36,1681.8,2018.16,Covid-19,Agency Staff,60011
http://statistics.data.gov.uk/id/local-authority/12UE,Huntingdonshire District Council,201114,XP RECRUITMENT LTD,46379,30/03/2021,10648,WAREHOUSE W/E 27/03/21,22/04/2021,328.58,1642.9,1971.48,Covid-19,Agency Staff,60011
http://statistics.data.gov.uk/id/local-authority/12UE,Huntingdonshire District Council,202539,WORKCHAIN LTD,46089,20/03/2021,152059,AGENCY STAFF,15/04/2021,326.74,1633.68,1960.42,Covid-19,Agency Staff,60011
http://statistics.data.gov.uk/id/local-authority/12UE,Huntingdonshire District Council,201114,XP RECRUITMENT LTD,47609,28/04/2021,10723,WAREHOUSE W/E 24/04/21,20/05/2021,309.23,1546.15,1855.38,Covid-19,Agency Staff,60011
http://statistics.data.gov.uk/id/local-authority/12UE,Huntingdonshire District Council,202539,WORKCHAIN LTD,49226,29/05/2021,154938,AGENCY STAFF,24/06/2021,305.31,1526.56,1831.87,Covid-19,Agency Staff,60011
http://statistics.data.gov.uk/id/local-authority/12UE,Huntingdonshire District Council,200743,STAFFLINE GROUP STAFFLINE GROUP,46182,17/03/2021,102824,STREET CLEANSER W/C 07/03/21,08/04/2021,91.24,456.21,547.45,Covid-19,Agency Staff,60011
http://statistics.data.gov.uk/id/local-authority/12UE,Huntingdonshire District Council,200743,STAFFLINE GROUP STAFFLINE GROUP,46182,17/03/2021,102824,STREET CLEANSER W/C 07/03/21,08/04/2021,54.25,271.26,325.51,Covid-19,Agency Staff,60011
http://statistics.data.gov.uk/id/local-authority/12UE,Huntingdonshire District Council,200743,STAFFLINE GROUP STAFFLINE GROUP,46182,17/03/2021,102824,STREET CLEANSER W/C 07/03/21,08/04/2021,54.25,271.26,325.51,Covid-19,Agency Staff,60011
http://statistics.data.gov.uk/id/local-authority/12UE,Huntingdonshire District Council,202539,WORKCHAIN LTD,46869,10/04/2021,152922,AGENCY STAFF,06/05/2021,289.25,1446.24,1735.49,Covid-19,Agency Staff,60011
http://statistics.data.gov.uk/id/local-authority/12UE,Huntingdonshire District Council,200743,STAFFLINE GROUP STAFFLINE GROUP,47678,28/04/2021,107493,STREET CLEANSER W/C 18/04/21,20/05/2021,94.28,471.37,565.65,Covid-19,Agency Staff,60011
http://statistics.data.gov.uk/id/local-authority/12UE,Huntingdonshire District Council,200743,STAFFLINE GROUP STAFFLINE GROUP,47678,28/04/2021,107493,STREET CLEANSER W/C 18/04/21,20/05/2021,93.02,465.09,558.11,Covid-19,Agency Staff,60011
http://statistics.data.gov.uk/id/local-authority/12UE,Huntingdonshire District Council,200743,STAFFLINE GROUP STAFFLINE GROUP,47677,21/04/2021,106695,STREET CLEANSER W/C 11/04/21,13/05/2021,93.02,465.09,558.11,Covid-19,Agency Staff,60011
http://statistics.data.gov.uk/id/local-authority/12UE,Huntingdonshire District Council,200743,STAFFLINE GROUP STAFFLINE GROUP,47677,21/04/2021,106695,STREET CLEANSER W/C 11/04/21,13/05/2021,93.02,465.09,558.11,Covid-19,Agency Staff,60011
http://statistics.data.gov.uk/id/local-authority/12UE,Huntingdonshire District Council,201114,XP RECRUITMENT LTD,49726,12/05/2021,10768,WAREHOUSE W/E 08/05/21,17/06/2021,272.14,1360.7,1632.84,Covid-19,Agency Staff,60011
http://statistics.data.gov.uk/id/local-authority/12UE,Huntingdonshire District Council,202539,WORKCHAIN LTD,48262,01/05/2021,153723,AGENCY STAFF,27/05/2021,262.46,1312.32,1574.78,Covid-19,Agency Staff,60011
http://statistics.data.gov.uk/id/local-authority/12UE,Huntingdonshire District Council,200550,MORGAN HUNT PUBLIC UK LTD MORGAN HUNT PUBLIC UK LTD,46590,04/04/2021,1224921,REDACTED,15/04/2021,257.14,1285.7,1542.84,Covid-19,Agency Staff,60011
http://statistics.data.gov.uk/id/local-authority/12UE,Huntingdonshire District Council,200550,MORGAN HUNT PUBLIC UK LTD MORGAN HUNT PUBLIC UK LTD,49126,30/05/2021,1231877,REDACTED,10/06/2021,257.14,1285.7,1542.84,Covid-19,Agency Staff,60011
http://statistics.data.gov.uk/id/local-authority/12UE,Huntingdonshire District Council,202548,SAFFRON VANTAGE LTD,47858,24/03/2021,337,AGENCY STAFF,20/05/2021,257.04,1285.2,1542.24,Covid-19,Agency Staff,60011
http://statistics.data.gov.uk/id/local-authority/12UE,Huntingdonshire District Council,201114,XP RECRUITMENT LTD,48669,19/05/2021,10792,WAREHOUSE W/E 15/05/21,10/06/2021,229.55,1147.75,1377.3,Covid-19,Agency Staff,60011
http://statistics.data.gov.uk/id/local-authority/12UE,Huntingdonshire District Council,202539,WORKCHAIN LTD,49322,08/05/2021,153938,AGENCY STAFF,10/06/2021,224.98,1124.88,1349.86,Covid-19,Agency Staff,60011
http://statistics.data.gov.uk/id/local-authority/12UE,Huntingdonshire District Council,200743,STAFFLINE GROUP STAFFLINE GROUP,47005,14/04/2021,105923,STREET CLEANSER W/C 04/04/21,06/05/2021,74.16,370.82,444.98,Covid-19,Agency Staff,60011
http://statistics.data.gov.uk/id/local-authority/12UE,Huntingdonshire District Council,200743,STAFFLINE GROUP STAFFLINE GROUP,47005,14/04/2021,105923,STREET CLEANSER W/C 04/04/21,06/05/2021,74.16,370.82,444.98,Covid-19,Agency Staff,60011
http://statistics.data.gov.uk/id/local-authority/12UE,Huntingdonshire District Council,200550,MORGAN HUNT PUBLIC UK LTD MORGAN HUNT PUBLIC UK LTD,49545,06/06/2021,1232646,REDACTED,17/06/2021,221.26,1106.3,1327.56,Covid-19,Agency Staff,60011
http://statistics.data.gov.uk/id/local-authority/12UE,Huntingdonshire District Council,200550,MORGAN HUNT PUBLIC UK LTD MORGAN HUNT PUBLIC UK LTD,49213,30/05/2021,1231876,REDACTED,10/06/2021,220.8,1104,1324.8,Covid-19,Agency Staff,60011
http://statistics.data.gov.uk/id/local-authority/12UE,Huntingdonshire District Council,200550,MORGAN HUNT PUBLIC UK LTD MORGAN HUNT PUBLIC UK LTD,49546,06/06/2021,1232645,REDACTED,17/06/2021,220.8,1104,1324.8,Covid-19,Agency Staff,60011
http://statistics.data.gov.uk/id/local-authority/12UE,Huntingdonshire District Council,202539,WORKCHAIN LTD,49087,24/04/2021,153423,AGENCY STAFF,03/06/2021,219.62,1098.08,1317.7,Covid-19,Agency Staff,60011
http://statistics.data.gov.uk/id/local-authority/12UE,Huntingdonshire District Council,200743,STAFFLINE GROUP STAFFLINE GROUP,49412,26/05/2021,110555,STREET CLEANSER W/C 16/05/21,17/06/2021,93.02,465.09,558.11,Covid-19,Agency Staff,60011
http://statistics.data.gov.uk/id/local-authority/12UE,Huntingdonshire District Council,200743,STAFFLINE GROUP STAFFLINE GROUP,49411,19/05/2021,109801,STREET CLEANSER W/C 09/05/21,10/06/2021,93.02,465.09,558.11,Covid-19,Agency Staff,60011
http://statistics.data.gov.uk/id/local-authority/12UE,Huntingdonshire District Council,200743,STAFFLINE GROUP STAFFLINE GROUP,49411,19/05/2021,109801,STREET CLEANSER W/C 09/05/21,10/06/2021,28.94,144.67,173.61,Covid-19,Agency Staff,60011
http://statistics.data.gov.uk/id/local-authority/12UE,Huntingdonshire District Council,202539,WORKCHAIN LTD,47857,17/04/2021,153171,AGENCY STAFF,13/05/2021,214.26,1071.28,1285.54,Covid-19,Agency Staff,60011
http://statistics.data.gov.uk/id/local-authority/12UE,Huntingdonshire District Council,201114,XP RECRUITMENT LTD,49060,22/05/2021,10813,WAREHOUSE W/E 22/05/21,17/06/2021,210.2,1051,1261.2,Covid-19,Agency Staff,60011
http://statistics.data.gov.uk/id/local-authority/12UE,Huntingdonshire District Council,200550,MORGAN HUNT PUBLIC UK LTD MORGAN HUNT PUBLIC UK LTD,49125,30/05/2021,1231875,REDACTED,10/06/2021,198.72,993.6,1192.32,Covid-19,Agency Staff,60011
http://statistics.data.gov.uk/id/local-authority/12UE,Huntingdonshire District Council,200550,MORGAN HUNT PUBLIC UK LTD MORGAN HUNT PUBLIC UK LTD,46589,04/04/2021,1224922,REDACTED,15/04/2021,193.2,966,1159.2,Covid-19,Agency Staff,60011
http://statistics.data.gov.uk/id/local-authority/12UE,Huntingdonshire District Council,200743,STAFFLINE GROUP STAFFLINE GROUP,48680,03/03/2021,101301,STREET CLEANSER W/C 21/02/21,27/05/2021,91.24,456.21,547.45,Covid-19,Agency Staff,60011
http://statistics.data.gov.uk/id/local-authority/12UE,Huntingdonshire District Council,200743,STAFFLINE GROUP STAFFLINE GROUP,48922,10/03/2021,102068,STREET CLEANSER W/C 28/02/21,27/05/2021,91.24,456.21,547.45,Covid-19,Agency Staff,60011
http://statistics.data.gov.uk/id/local-authority/12UE,Huntingdonshire District Council,200550,MORGAN HUNT PUBLIC UK LTD MORGAN HUNT PUBLIC UK LTD,49547,06/06/2021,1232644,REDACTED,17/06/2021,162.84,814.2,977.04,Covid-19,Agency Staff,60011
http://statistics.data.gov.uk/id/local-authority/12UE,Huntingdonshire District Council,200550,MORGAN HUNT PUBLIC UK LTD MORGAN HUNT PUBLIC UK LTD,46592,04/04/2021,1224920,REDACTED,15/04/2021,154.56,772.8,927.36,Covid-19,Agency Staff,60011
http://statistics.data.gov.uk/id/local-authority/12UE,Huntingdonshire District Council,200550,MORGAN HUNT PUBLIC UK LTD MORGAN HUNT PUBLIC UK LTD,49127,30/05/2021,1231878,REDACTED,10/06/2021,153.62,768.11,921.73,Covid-19,Agency Staff,60011
http://statistics.data.gov.uk/id/local-authority/12UE,Huntingdonshire District Council,200743,STAFFLINE GROUP STAFFLINE GROUP,48470,12/05/2021,109026,STREET CLEANSER W/C 02/05/21,03/06/2021,74.16,370.82,444.98,Covid-19,Agency Staff,60011
http://statistics.data.gov.uk/id/local-authority/12UE,Huntingdonshire District Council,202539,WORKCHAIN LTD,48718,15/05/2021,154457,AGENCY STAFF,10/06/2021,133.92,669.6,803.52,Covid-19,Agency Staff,60011
http://statistics.data.gov.uk/id/local-authority/12UE,Huntingdonshire District Council,200918,1ST CHOICE RECRUITMENT,48590,15/05/2021,4000009356,REDACTED,10/06/2021,109.29,546.46,655.75,Covid-19,Agency Staff,60011
http://statistics.data.gov.uk/id/local-authority/12UE,Huntingdonshire District Council,200918,1ST CHOICE RECRUITMENT,48900,22/05/2021,4000009367,REDACTED,17/06/2021,108.57,542.84,651.41,Covid-19,Agency Staff,60011
http://statistics.data.gov.uk/id/local-authority/12UE,Huntingdonshire District Council,200918,1ST CHOICE RECRUITMENT,47548,24/04/2021,4000009317,REDACTED,20/05/2021,107.85,539.23,647.08,Covid-19,Agency Staff,60011
http://statistics.data.gov.uk/id/local-authority/12UE,Huntingdonshire District Council,200918,1ST CHOICE RECRUITMENT,48899,22/05/2021,4000009366,REDACTED,17/06/2021,65.25,326.23,391.48,Covid-19,Agency Staff,60011
http://statistics.data.gov.uk/id/local-authority/12UE,Huntingdonshire District Council,200918,1ST CHOICE RECRUITMENT,49123,29/05/2021,4000009377,REDACTED,24/06/2021,107.85,539.23,647.08,Covid-19,Agency Staff,60011
http://statistics.data.gov.uk/id/local-authority/12UE,Huntingdonshire District Council,200918,1ST CHOICE RECRUITMENT,45766,13/03/2021,4000009229,REDACTED,08/04/2021,107.12,535.6,642.72,Covid-19,Agency Staff,60011
http://statistics.data.gov.uk/id/local-authority/12UE,Huntingdonshire District Council,202539,WORKCHAIN LTD,46088,13/03/2021,151961,AGENCY STAFF,08/04/2021,107.12,535.6,642.72,Covid-19,Agency Staff,60011
http://statistics.data.gov.uk/id/local-authority/12UE,Huntingdonshire District Council,200918,1ST CHOICE RECRUITMENT,48092,01/05/2021,4000009329,REDACTED,27/05/2021,107.12,535.6,642.72,Covid-19,Agency Staff,60011
http://statistics.data.gov.uk/id/local-authority/12UE,Huntingdonshire District Council,200918,1ST CHOICE RECRUITMENT,46054,20/03/2021,4000009242,REDACTED,15/04/2021,106.4,531.98,638.38,Covid-19,Agency Staff,60011
http://statistics.data.gov.uk/id/local-authority/12UE,Huntingdonshire District Council,200918,1ST CHOICE RECRUITMENT,47211,27/03/2021,4000009254,REDACTED,22/04/2021,106.4,531.98,638.38,Covid-19,Agency Staff,60011
http://statistics.data.gov.uk/id/local-authority/12UE,Huntingdonshire District Council,200918,1ST CHOICE RECRUITMENT,47225,17/04/2021,4000009306,REDACTED,13/05/2021,106.4,531.98,638.38,Covid-19,Agency Staff,60011
http://statistics.data.gov.uk/id/local-authority/12UE,Huntingdonshire District Council,200918,1ST CHOICE RECRUITMENT,48091,01/05/2021,4000009328,REDACTED,27/05/2021,63.8,318.98,382.78,Covid-19,Agency Staff,60011
http://statistics.data.gov.uk/id/local-authority/12UE,Huntingdonshire District Council,200918,1ST CHOICE RECRUITMENT,49122,29/05/2021,4000009376,REDACTED,24/06/2021,63.8,318.98,382.78,Covid-19,Agency Staff,60011
http://statistics.data.gov.uk/id/local-authority/12UE,Huntingdonshire District Council,200918,1ST CHOICE RECRUITMENT,45765,13/03/2021,4000009228,REDACTED,08/04/2021,62.56,312.82,375.38,Covid-19,Agency Staff,60011
http://statistics.data.gov.uk/id/local-authority/12UE,Huntingdonshire District Council,200918,1ST CHOICE RECRUITMENT,46053,20/03/2021,4000009241,REDACTED,15/04/2021,62.56,312.82,375.38,Covid-19,Agency Staff,60011
http://statistics.data.gov.uk/id/local-authority/12UE,Huntingdonshire District Council,200918,1ST CHOICE RECRUITMENT,47210,27/03/2021,4000009253,REDACTED,22/04/2021,62.56,312.82,375.38,Covid-19,Agency Staff,60011
http://statistics.data.gov.uk/id/local-authority/12UE,Huntingdonshire District Council,200918,1ST CHOICE RECRUITMENT,47223,17/04/2021,4000009305,REDACTED,13/05/2021,62.56,312.82,375.38,Covid-19,Agency Staff,60011
http://statistics.data.gov.uk/id/local-authority/12UE,Huntingdonshire District Council,200918,1ST CHOICE RECRUITMENT,47547,24/04/2021,4000009316,REDACTED,20/05/2021,62.56,312.82,375.38,Covid-19,Agency Staff,60011
http://statistics.data.gov.uk/id/local-authority/12UE,Huntingdonshire District Council,200918,1ST CHOICE RECRUITMENT,48589,15/05/2021,4000009355,REDACTED,10/06/2021,58.73,293.65,352.38,Covid-19,Agency Staff,60011
http://statistics.data.gov.uk/id/local-authority/12UE,Huntingdonshire District Council,200918,1ST CHOICE RECRUITMENT,47220,10/04/2021,4000009273,REDACTED,06/05/2021,87.72,438.61,526.33,Covid-19,Agency Staff,60011
http://statistics.data.gov.uk/id/local-authority/12UE,Huntingdonshire District Council,200918,1ST CHOICE RECRUITMENT,47219,03/04/2021,4000009264,REDACTED,29/04/2021,86.28,431.38,517.66,Covid-19,Agency Staff,60011
http://statistics.data.gov.uk/id/local-authority/12UE,Huntingdonshire District Council,200918,1ST CHOICE RECRUITMENT,48096,08/05/2021,4000009342,REDACTED,03/06/2021,84.83,424.14,508.97,Covid-19,Agency Staff,60011
http://statistics.data.gov.uk/id/local-authority/12UE,Huntingdonshire District Council,200918,1ST CHOICE RECRUITMENT,48097,08/05/2021,4000009341,REDACTED,03/06/2021,42.23,211.14,253.37,Covid-19,Agency Staff,60011
http://statistics.data.gov.uk/id/local-authority/12UE,Huntingdonshire District Council,200918,1ST CHOICE RECRUITMENT,47218,03/04/2021,4000009263,REDACTED,29/04/2021,42.84,214.18,257.02,Covid-19,Agency Staff,60011
http://statistics.data.gov.uk/id/local-authority/12UE,Huntingdonshire District Council,200918,1ST CHOICE RECRUITMENT,47221,10/04/2021,4000009272,REDACTED,06/05/2021,41.42,207.08,248.5,Covid-19,Agency Staff,60011
http://statistics.data.gov.uk/id/local-authority/12UE,Huntingdonshire District Council,202504,IO ASSOCIATES TRADING DIVISION OF PRECISION RESOURCE GROUP LTD,46644,06/04/2021,5377,REDACTED,15/04/2021,300.83,1504.12,1804.95,Transformation Programme,Agency Staff,60011
http://statistics.data.gov.uk/id/local-authority/12UE,Huntingdonshire District Council,200743,STAFFLINE GROUP STAFFLINE GROUP,47778,24/02/2021,100548,RECYCLING W/C 14/02/21,06/05/2021,368.52,1842.58,2211.1,Recycling Collections,Agency Staff,60011
http://statistics.data.gov.uk/id/local-authority/12UE,Huntingdonshire District Council,200743,STAFFLINE GROUP STAFFLINE GROUP,47930,17/03/2021,102822,RECYCLING W/C 07/03/21,13/05/2021,359.03,1795.14,2154.17,Recycling Collections,Agency Staff,60011
http://statistics.data.gov.uk/id/local-authority/12UE,Huntingdonshire District Council,200743,STAFFLINE GROUP STAFFLINE GROUP,47931,10/03/2021,102066,RECYCLING W/C 28/02/21,13/05/2021,348.82,1744.08,2092.9,Recycling Collections,Agency Staff,60011
http://statistics.data.gov.uk/id/local-authority/12UE,Huntingdonshire District Council,200743,STAFFLINE GROUP STAFFLINE GROUP,47928,03/03/2021,101299,RECYCLING W/C 21/02/21,13/05/2021,302.26,1511.3,1813.56,Recycling Collections,Agency Staff,60011
http://statistics.data.gov.uk/id/local-authority/12UE,Huntingdonshire District Council,200743,STAFFLINE GROUP STAFFLINE GROUP,47768,24/03/2021,103597,RECYCLING W/C 14/03/21,06/05/2021,302.06,1510.32,1812.38,Recycling Collections,Agency Staff,60011
http://statistics.data.gov.uk/id/local-authority/12UE,Huntingdonshire District Council,200743,STAFFLINE GROUP STAFFLINE GROUP,48915,07/04/2021,105149,RECYCLING W/C 28/03/21,27/05/2021,279.14,1395.69,1674.83,Recycling Collections,Agency Staff,60011
http://statistics.data.gov.uk/id/local-authority/12UE,Huntingdonshire District Council,200743,STAFFLINE GROUP STAFFLINE GROUP,48675,14/04/2021,105921,RECYCLING W/C 04/04/21,27/05/2021,268.04,1340.21,1608.25,Recycling Collections,Agency Staff,60011
http://statistics.data.gov.uk/id/local-authority/12UE,Huntingdonshire District Council,200743,STAFFLINE GROUP STAFFLINE GROUP,49371,05/05/2021,108261,RECYCLING W/C 25/04/21,10/06/2021,247.3,1236.48,1483.78,Recycling Collections,Agency Staff,60011
http://statistics.data.gov.uk/id/local-authority/12UE,Huntingdonshire District Council,200743,STAFFLINE GROUP STAFFLINE GROUP,47782,17/02/2021,99782,RECYCLING W/C 07/02/21,06/05/2021,246.53,1232.64,1479.17,Recycling Collections,Agency Staff,60011
http://statistics.data.gov.uk/id/local-authority/12UE,Huntingdonshire District Council,200743,STAFFLINE GROUP STAFFLINE GROUP,49372,28/04/2021,107491,RECYCLING W/C 18/04/21,10/06/2021,209.94,1049.72,1259.66,Recycling Collections,Agency Staff,60011
http://statistics.data.gov.uk/id/local-authority/12UE,Huntingdonshire District Council,200743,STAFFLINE GROUP STAFFLINE GROUP,47374,21/04/2021,106693,RECYCLING W/C 11/04/21,13/05/2021,208.66,1043.28,1251.94,Recycling Collections,Agency Staff,60011
http://statistics.data.gov.uk/id/local-authority/12UE,Huntingdonshire District Council,200743,STAFFLINE GROUP STAFFLINE GROUP,48923,31/03/2021,104375,RECYCLING W/C 21/03/21,27/05/2021,170.53,852.63,1023.16,Recycling Collections,Agency Staff,60011
http://statistics.data.gov.uk/id/local-authority/12UE,Huntingdonshire District Council,200743,STAFFLINE GROUP STAFFLINE GROUP,48893,26/05/2021,110553,RECYCLING W/C 16/05/21,17/06/2021,132.66,663.32,795.98,Recycling Collections,Agency Staff,60011
http://statistics.data.gov.uk/id/local-authority/12UE,Huntingdonshire District Council,200743,STAFFLINE GROUP STAFFLINE GROUP,49373,12/05/2021,109024,RECYCLING W/C 02/05/21,10/06/2021,114.68,573.39,688.07,Recycling Collections,Agency Staff,60011
http://statistics.data.gov.uk/id/local-authority/12UE,Huntingdonshire District Council,200743,STAFFLINE GROUP STAFFLINE GROUP,48774,19/05/2021,109799,RECYCLING W/C 09/05/21,10/06/2021,113.34,566.72,680.06,Recycling Collections,Agency Staff,60011
http://statistics.data.gov.uk/id/local-authority/12UE,Huntingdonshire District Council,200743,STAFFLINE GROUP STAFFLINE GROUP,49172,02/06/2021,111319,RECYCLING W/C 23/05/21,24/06/2021,75.99,379.96,455.95,Recycling Collections,Agency Staff,60011
http://statistics.data.gov.uk/id/local-authority/12UE,Huntingdonshire District Council,200743,STAFFLINE GROUP STAFFLINE GROUP,48469,05/05/2021,108263,STREET CLEANSER W/C 25/04/21,27/05/2021,93.02,465.09,558.11,Street Cleansing,Agency Staff,60011
http://statistics.data.gov.uk/id/local-authority/12UE,Huntingdonshire District Council,200743,STAFFLINE GROUP STAFFLINE GROUP,48469,05/05/2021,108263,STREET CLEANSER W/C 25/04/21,27/05/2021,28.94,144.67,173.61,Street Cleansing,Agency Staff,60011
http://statistics.data.gov.uk/id/local-authority/12UE,Huntingdonshire District Council,200743,STAFFLINE GROUP STAFFLINE GROUP,46182,17/03/2021,102824,STREET CLEANSER W/C 07/03/21,08/04/2021,91.24,456.21,547.45,Street Cleansing,Agency Staff,60011
http://statistics.data.gov.uk/id/local-authority/12UE,Huntingdonshire District Council,200743,STAFFLINE GROUP STAFFLINE GROUP,47678,28/04/2021,107493,STREET CLEANSER W/C 18/04/21,20/05/2021,93.02,465.09,558.11,Street Cleansing,Agency Staff,60011
http://statistics.data.gov.uk/id/local-authority/12UE,Huntingdonshire District Council,200743,STAFFLINE GROUP STAFFLINE GROUP,47677,21/04/2021,106695,STREET CLEANSER W/C 11/04/21,13/05/2021,93.02,465.09,558.11,Street Cleansing,Agency Staff,60011
http://statistics.data.gov.uk/id/local-authority/12UE,Huntingdonshire District Council,200743,STAFFLINE GROUP STAFFLINE GROUP,46541,31/03/2021,104377,STREET CLEANSER W/C 21/03/21,22/04/2021,91.24,456.21,547.45,Street Cleansing,Agency Staff,60011
http://statistics.data.gov.uk/id/local-authority/12UE,Huntingdonshire District Council,200743,STAFFLINE GROUP STAFFLINE GROUP,46541,31/03/2021,104377,STREET CLEANSER W/C 21/03/21,22/04/2021,91.24,456.21,547.45,Street Cleansing,Agency Staff,60011
http://statistics.data.gov.uk/id/local-authority/12UE,Huntingdonshire District Council,200743,STAFFLINE GROUP STAFFLINE GROUP,46541,31/03/2021,104377,STREET CLEANSER W/C 21/03/21,22/04/2021,91.24,456.21,547.45,Street Cleansing,Agency Staff,60011
http://statistics.data.gov.uk/id/local-authority/12UE,Huntingdonshire District Council,200743,STAFFLINE GROUP STAFFLINE GROUP,46545,24/03/2021,103599,STREET CLEANSER W/C 14/03/21,15/04/2021,91.24,456.21,547.45,Street Cleansing,Agency Staff,60011
http://statistics.data.gov.uk/id/local-authority/12UE,Huntingdonshire District Council,200743,STAFFLINE GROUP STAFFLINE GROUP,46545,24/03/2021,103599,STREET CLEANSER W/C 14/03/21,15/04/2021,91.24,456.21,547.45,Street Cleansing,Agency Staff,60011
http://statistics.data.gov.uk/id/local-authority/12UE,Huntingdonshire District Council,200743,STAFFLINE GROUP STAFFLINE GROUP,46545,24/03/2021,103599,STREET CLEANSER W/C 14/03/21,15/04/2021,91.24,456.21,547.45,Street Cleansing,Agency Staff,60011
http://statistics.data.gov.uk/id/local-authority/12UE,Huntingdonshire District Council,200743,STAFFLINE GROUP STAFFLINE GROUP,47005,14/04/2021,105923,STREET CLEANSER W/C 04/04/21,06/05/2021,74.16,370.82,444.98,Street Cleansing,Agency Staff,60011
http://statistics.data.gov.uk/id/local-authority/12UE,Huntingdonshire District Council,200743,STAFFLINE GROUP STAFFLINE GROUP,46604,07/04/2021,105151,STREET CLEANSER W/C 28/03/21,29/04/2021,73.98,369.9,443.88,Street Cleansing,Agency Staff,60011
http://statistics.data.gov.uk/id/local-authority/12UE,Huntingdonshire District Council,200743,STAFFLINE GROUP STAFFLINE GROUP,46604,07/04/2021,105151,STREET CLEANSER W/C 28/03/21,29/04/2021,73.98,369.9,443.88,Street Cleansing,Agency Staff,60011
http://statistics.data.gov.uk/id/local-authority/12UE,Huntingdonshire District Council,200743,STAFFLINE GROUP STAFFLINE GROUP,46604,07/04/2021,105151,STREET CLEANSER W/C 28/03/21,29/04/2021,73.98,369.9,443.88,Street Cleansing,Agency Staff,60011
http://statistics.data.gov.uk/id/local-authority/12UE,Huntingdonshire District Council,200743,STAFFLINE GROUP STAFFLINE GROUP,49412,26/05/2021,110555,STREET CLEANSER W/C 16/05/21,17/06/2021,93.02,465.09,558.11,Street Cleansing,Agency Staff,60011
http://statistics.data.gov.uk/id/local-authority/12UE,Huntingdonshire District Council,200743,STAFFLINE GROUP STAFFLINE GROUP,49412,26/05/2021,110555,STREET CLEANSER W/C 16/05/21,17/06/2021,30.86,154.32,185.18,Street Cleansing,Agency Staff,60011
http://statistics.data.gov.uk/id/local-authority/12UE,Huntingdonshire District Council,200743,STAFFLINE GROUP STAFFLINE GROUP,49411,19/05/2021,109801,STREET CLEANSER W/C 09/05/21,10/06/2021,93.02,465.09,558.11,Street Cleansing,Agency Staff,60011
http://statistics.data.gov.uk/id/local-authority/12UE,Huntingdonshire District Council,200743,STAFFLINE GROUP STAFFLINE GROUP,48680,03/03/2021,101301,STREET CLEANSER W/C 21/02/21,27/05/2021,91.24,456.21,547.45,Street Cleansing,Agency Staff,60011
http://statistics.data.gov.uk/id/local-authority/12UE,Huntingdonshire District Council,200743,STAFFLINE GROUP STAFFLINE GROUP,48470,12/05/2021,109026,STREET CLEANSER W/C 02/05/21,03/06/2021,74.16,370.82,444.98,Street Cleansing,Agency Staff,60011
http://statistics.data.gov.uk/id/local-authority/12UE,Huntingdonshire District Council,201114,XP RECRUITMENT LTD,48864,12/05/2021,10767,STREET CLEANER W/E 08/05/21,03/06/2021,78.91,394.56,473.47,Street Cleansing,Agency Staff,60011
http://statistics.data.gov.uk/id/local-authority/12UE,Huntingdonshire District Council,200743,STAFFLINE GROUP STAFFLINE GROUP,49413,02/06/2021,111321,STREET CLEANSER W/C 23/05/21,24/06/2021,93.02,465.09,558.11,Street Cleansing,Agency Staff,60011
http://statistics.data.gov.uk/id/local-authority/12UE,Huntingdonshire District Council,200743,STAFFLINE GROUP STAFFLINE GROUP,49413,02/06/2021,111321,STREET CLEANSER W/C 23/05/21,24/06/2021,30.86,154.32,185.18,Street Cleansing,Agency Staff,60011
http://statistics.data.gov.uk/id/local-authority/12UE,Huntingdonshire District Council,201114,XP RECRUITMENT LTD,46708,07/04/2021,10666,STREET CLEANER W/E 03/04/21,29/04/2021,78.91,394.56,473.47,Street Cleansing,Agency Staff,60011
http://statistics.data.gov.uk/id/local-authority/12UE,Huntingdonshire District Council,201114,XP RECRUITMENT LTD,46708,07/04/2021,10666,STREET CLEANER W/E 03/04/21,29/04/2021,39.46,197.28,236.74,Street Cleansing,Agency Staff,60011
http://statistics.data.gov.uk/id/local-authority/12UE,Huntingdonshire District Council,201114,XP RECRUITMENT LTD,47614,14/04/2021,10677,STREET CLEANER W/E 10/04/21,06/05/2021,78.91,394.56,473.47,Street Cleansing,Agency Staff,60011
http://statistics.data.gov.uk/id/local-authority/12UE,Huntingdonshire District Council,201114,XP RECRUITMENT LTD,47614,14/04/2021,10677,STREET CLEANER W/E 10/04/21,06/05/2021,36.99,184.95,221.94,Street Cleansing,Agency Staff,60011
http://statistics.data.gov.uk/id/local-authority/12UE,Huntingdonshire District Council,201114,XP RECRUITMENT LTD,45689,13/03/2021,10607,OPS STAFF,08/04/2021,98.64,493.2,591.84,Street Cleansing,Agency Staff,60011
http://statistics.data.gov.uk/id/local-authority/12UE,Huntingdonshire District Council,201114,XP RECRUITMENT LTD,46372,03/03/2021,10555,STREET CLEANER W/E 27/02/21,08/04/2021,98.64,493.2,591.84,Street Cleansing,Agency Staff,60011
http://statistics.data.gov.uk/id/local-authority/12UE,Huntingdonshire District Council,201114,XP RECRUITMENT LTD,46374,10/03/2021,10582,STREET CLEANER W/E 06/03/21,08/04/2021,98.64,493.2,591.84,Street Cleansing,Agency Staff,60011
http://statistics.data.gov.uk/id/local-authority/12UE,Huntingdonshire District Council,201114,XP RECRUITMENT LTD,46376,23/03/2021,10618,STREET CLEANER W/E 20/03/21,15/04/2021,98.64,493.2,591.84,Street Cleansing,Agency Staff,60011
http://statistics.data.gov.uk/id/local-authority/12UE,Huntingdonshire District Council,201114,XP RECRUITMENT LTD,46377,30/03/2021,10647,STREET CLEANER W/E 27/03/21,22/04/2021,98.64,493.2,591.84,Street Cleansing,Agency Staff,60011
http://statistics.data.gov.uk/id/local-authority/12UE,Huntingdonshire District Council,201114,XP RECRUITMENT LTD,47615,28/04/2021,10722,STREET CLEANER W/E 24/04/21,20/05/2021,98.64,493.2,591.84,Street Cleansing,Agency Staff,60011
http://statistics.data.gov.uk/id/local-authority/12UE,Huntingdonshire District Council,201114,XP RECRUITMENT LTD,47648,21/04/2021,10704,STREET CLEANER W/E 17/04/21,13/05/2021,98.64,493.2,591.84,Street Cleansing,Agency Staff,60011
http://statistics.data.gov.uk/id/local-authority/12UE,Huntingdonshire District Council,201114,XP RECRUITMENT LTD,48670,19/05/2021,10793,STREET CLEANER W/E 15/05/21,10/06/2021,98.64,493.2,591.84,Street Cleansing,Agency Staff,60011
http://statistics.data.gov.uk/id/local-authority/12UE,Huntingdonshire District Council,201114,XP RECRUITMENT LTD,48863,26/05/2021,10812,STREET CLEANER W/E 22/05/21,17/06/2021,98.64,493.2,591.84,Street Cleansing,Agency Staff,60011
http://statistics.data.gov.uk/id/local-authority/12UE,Huntingdonshire District Council,200743,STAFFLINE GROUP STAFFLINE GROUP,47773,24/02/2021,100550,STREET CLEANSER W/C 14/02/21,06/05/2021,91.24,456.21,547.45,Street Cleansing,Agency Staff,60011
http://statistics.data.gov.uk/id/local-authority/12UE,Huntingdonshire District Council,200743,STAFFLINE GROUP STAFFLINE GROUP,47777,17/02/2021,99784,STREET CLEANSER W/C 07/02/21,06/05/2021,91.24,456.21,547.45,Street Cleansing,Agency Staff,60011
http://statistics.data.gov.uk/id/local-authority/12UE,Huntingdonshire District Council,202548,SAFFRON VANTAGE LTD,46941,30/03/2021,352,AGENCY STAFF,22/04/2021,534.39,2671.94,3206.33,Domestic Waste Collection,Agency Staff,60011
http://statistics.data.gov.uk/id/local-authority/12UE,Huntingdonshire District Council,200743,STAFFLINE GROUP STAFFLINE GROUP,48919,14/04/2021,105922,REFUSE W/C 04/04/21,27/05/2021,440.68,2203.4,2644.08,Domestic Waste Collection,Agency Staff,60011
http://statistics.data.gov.uk/id/local-authority/12UE,Huntingdonshire District Council,200743,STAFFLINE GROUP STAFFLINE GROUP,49229,02/06/2021,111320,REFUSE W/C 23/05/21,24/06/2021,419.89,2099.44,2519.33,Domestic Waste Collection,Agency Staff,60011
http://statistics.data.gov.uk/id/local-authority/12UE,Huntingdonshire District Council,200743,STAFFLINE GROUP STAFFLINE GROUP,49443,12/05/2021,109025,REFUSE W/C 02/05/21,10/06/2021,382.72,1913.6,2296.32,Domestic Waste Collection,Agency Staff,60011
http://statistics.data.gov.uk/id/local-authority/12UE,Huntingdonshire District Council,200743,STAFFLINE GROUP STAFFLINE GROUP,49444,28/04/2021,107492,REFUSE W/C 18/04/21,10/06/2021,361.93,1809.64,2171.57,Domestic Waste Collection,Agency Staff,60011
http://statistics.data.gov.uk/id/local-authority/12UE,Huntingdonshire District Council,200743,STAFFLINE GROUP STAFFLINE GROUP,48973,26/05/2021,110554,REFUSE W/C 16/05/21,17/06/2021,342.61,1713.04,2055.65,Domestic Waste Collection,Agency Staff,60011
http://statistics.data.gov.uk/id/local-authority/12UE,Huntingdonshire District Council,200743,STAFFLINE GROUP STAFFLINE GROUP,47770,10/03/2021,102067,REFUSE W/C 28/02/21,06/05/2021,323.15,1615.76,1938.91,Domestic Waste Collection,Agency Staff,60011
http://statistics.data.gov.uk/id/local-authority/12UE,Huntingdonshire District Council,200743,STAFFLINE GROUP STAFFLINE GROUP,48926,31/03/2021,104376,REFUSE W/C 21/03/21,27/05/2021,322.8,1614.02,1936.82,Domestic Waste Collection,Agency Staff,60011
http://statistics.data.gov.uk/id/local-authority/12UE,Huntingdonshire District Council,200743,STAFFLINE GROUP STAFFLINE GROUP,49445,19/05/2021,109800,REFUSE W/C 09/05/21,10/06/2021,305.26,1526.28,1831.54,Domestic Waste Collection,Agency Staff,60011
http://statistics.data.gov.uk/id/local-authority/12UE,Huntingdonshire District Council,200743,STAFFLINE GROUP STAFFLINE GROUP,47771,03/03/2021,101300,REFUSE W/C 21/02/21,06/05/2021,293.9,1469.52,1763.42,Domestic Waste Collection,Agency Staff,60011
http://statistics.data.gov.uk/id/local-authority/12UE,Huntingdonshire District Council,200743,STAFFLINE GROUP STAFFLINE GROUP,47776,17/02/2021,99783,REFUSE W/C 07/02/21,06/05/2021,286.33,1431.66,1717.99,Domestic Waste Collection,Agency Staff,60011
http://statistics.data.gov.uk/id/local-authority/12UE,Huntingdonshire District Council,200743,STAFFLINE GROUP STAFFLINE GROUP,49370,02/06/2021,111318,GARDEN WASTE W/C 23/05/21,24/06/2021,285.94,1429.68,1715.62,Domestic Waste Collection,Agency Staff,60011
http://statistics.data.gov.uk/id/local-authority/12UE,Huntingdonshire District Council,200743,STAFFLINE GROUP STAFFLINE GROUP,46368,17/03/2021,102823,REFUSE W/C 07/03/21,08/04/2021,285.57,1427.84,1713.41,Domestic Waste Collection,Agency Staff,60011
http://statistics.data.gov.uk/id/local-authority/12UE,Huntingdonshire District Council,200743,STAFFLINE GROUP STAFFLINE GROUP,48925,21/04/2021,106694,REFUSE W/C 11/04/21,27/05/2021,267.9,1339.52,1607.42,Domestic Waste Collection,Agency Staff,60011
http://statistics.data.gov.uk/id/local-authority/12UE,Huntingdonshire District Council,200743,STAFFLINE GROUP STAFFLINE GROUP,47772,24/03/2021,103598,REFUSE W/C 14/03/21,06/05/2021,238.84,1194.18,1433.02,Domestic Waste Collection,Agency Staff,60011
http://statistics.data.gov.uk/id/local-authority/12UE,Huntingdonshire District Council,200743,STAFFLINE GROUP STAFFLINE GROUP,48916,07/04/2021,105150,REFUSE W/C 28/03/21,27/05/2021,224.61,1123.06,1347.67,Domestic Waste Collection,Agency Staff,60011
http://statistics.data.gov.uk/id/local-authority/12UE,Huntingdonshire District Council,200743,STAFFLINE GROUP STAFFLINE GROUP,47775,24/02/2021,100549,REFUSE W/C 14/02/21,06/05/2021,190.03,950.16,1140.19,Domestic Waste Collection,Agency Staff,60011
http://statistics.data.gov.uk/id/local-authority/12UE,Huntingdonshire District Council,200743,STAFFLINE GROUP STAFFLINE GROUP,49369,12/05/2021,109023,GARDEN WASTE W/C 02/05/21,10/06/2021,460,2300,2760,Green Waste Collection,Agency Staff,60011
http://statistics.data.gov.uk/id/local-authority/12UE,Huntingdonshire District Council,200743,STAFFLINE GROUP STAFFLINE GROUP,48921,21/04/2021,106692,GARDEN WASTE W/C 11/04/21,27/05/2021,399.28,1996.4,2395.68,Green Waste Collection,Agency Staff,60011
http://statistics.data.gov.uk/id/local-authority/12UE,Huntingdonshire District Council,200743,STAFFLINE GROUP STAFFLINE GROUP,48796,19/05/2021,109798,GARDEN WASTE W/C 09/05/21,10/06/2021,382.54,1912.68,2295.22,Green Waste Collection,Agency Staff,60011
http://statistics.data.gov.uk/id/local-authority/12UE,Huntingdonshire District Council,200743,STAFFLINE GROUP STAFFLINE GROUP,49368,05/05/2021,108260,GARDEN WASTE W/C 25/04/21,10/06/2021,381.25,1906.24,2287.49,Green Waste Collection,Agency Staff,60011
http://statistics.data.gov.uk/id/local-authority/12UE,Huntingdonshire District Council,200743,STAFFLINE GROUP STAFFLINE GROUP,47780,27/01/2021,97487,GARDEN WASTE W/C 17/01/21,06/05/2021,305.59,1527.96,1833.55,Green Waste Collection,Agency Staff,60011
http://statistics.data.gov.uk/id/local-authority/12UE,Huntingdonshire District Council,200743,STAFFLINE GROUP STAFFLINE GROUP,49367,28/04/2021,107490,GARDEN WASTE W/C 18/04/21,10/06/2021,305.26,1526.28,1831.54,Green Waste Collection,Agency Staff,60011
http://statistics.data.gov.uk/id/local-authority/12UE,Huntingdonshire District Council,200743,STAFFLINE GROUP STAFFLINE GROUP,48920,14/04/2021,105920,GARDEN WASTE W/C 04/04/21,27/05/2021,286.03,1430.14,1716.17,Green Waste Collection,Agency Staff,60011
http://statistics.data.gov.uk/id/local-authority/12UE,Huntingdonshire District Council,200743,STAFFLINE GROUP STAFFLINE GROUP,48905,26/05/2021,110552,GARDEN WASTE W/C 16/05/21,17/06/2021,249.87,1249.36,1499.23,Green Waste Collection,Agency Staff,60011
http://statistics.data.gov.uk/id/local-authority/12UE,Huntingdonshire District Council,200743,STAFFLINE GROUP STAFFLINE GROUP,48775,31/03/2021,104374,GARDEN WASTE W/C 21/03/21,27/05/2021,244.28,1221.42,1465.7,Green Waste Collection,Agency Staff,60011
http://statistics.data.gov.uk/id/local-authority/12UE,Huntingdonshire District Council,200743,STAFFLINE GROUP STAFFLINE GROUP,47786,10/03/2021,102065,GARDEN WASTE W/C 28/02/21,06/05/2021,218.81,1094.06,1312.87,Green Waste Collection,Agency Staff,60011
http://statistics.data.gov.uk/id/local-authority/12UE,Huntingdonshire District Council,200743,STAFFLINE GROUP STAFFLINE GROUP,48918,07/04/2021,105148,GARDEN WASTE W/C 28/03/21,27/05/2021,205.35,1026.76,1232.11,Green Waste Collection,Agency Staff,60011
http://statistics.data.gov.uk/id/local-authority/12UE,Huntingdonshire District Council,200743,STAFFLINE GROUP STAFFLINE GROUP,47767,03/03/2021,101298,GARDEN WASTE W/C 21/02/21,06/05/2021,189.27,946.34,1135.61,Green Waste Collection,Agency Staff,60011
http://statistics.data.gov.uk/id/local-authority/12UE,Huntingdonshire District Council,200743,STAFFLINE GROUP STAFFLINE GROUP,47769,17/02/2021,99781,GARDEN WASTE W/C 07/02/21,06/05/2021,152.8,763.98,916.78,Green Waste Collection,Agency Staff,60011
http://statistics.data.gov.uk/id/local-authority/12UE,Huntingdonshire District Council,200743,STAFFLINE GROUP STAFFLINE GROUP,46489,17/03/2021,102821,GARDEN WASTE W/C 07/03/21,15/04/2021,95.02,475.08,570.1,Green Waste Collection,Agency Staff,60011
http://statistics.data.gov.uk/id/local-authority/12UE,Huntingdonshire District Council,200743,STAFFLINE GROUP STAFFLINE GROUP,47929,24/02/2021,100547,GARDEN WASTE W/C 14/02/21,13/05/2021,95.02,475.08,570.1,Green Waste Collection,Agency Staff,60011
http://statistics.data.gov.uk/id/local-authority/12UE,Huntingdonshire District Council,200743,STAFFLINE GROUP STAFFLINE GROUP,47781,24/03/2021,103596,GARDEN WASTE W/C 14/03/21,06/05/2021,93.73,468.66,562.39,Green Waste Collection,Agency Staff,60011
http://statistics.data.gov.uk/id/local-authority/12UE,Huntingdonshire District Council,200550,MORGAN HUNT PUBLIC UK LTD MORGAN HUNT PUBLIC UK LTD,46298,28/03/2021,1224017,REDACTED,08/04/2021,257.14,1285.7,1542.84,Benefits Management,Agency Staff,60011
http://statistics.data.gov.uk/id/local-authority/12UE,Huntingdonshire District Council,200550,MORGAN HUNT PUBLIC UK LTD MORGAN HUNT PUBLIC UK LTD,47321,18/04/2021,1226509,BENEFITS STAFF,29/04/2021,257.14,1285.7,1542.84,Benefits Management,Agency Staff,60011
http://statistics.data.gov.uk/id/local-authority/12UE,Huntingdonshire District Council,200550,MORGAN HUNT PUBLIC UK LTD MORGAN HUNT PUBLIC UK LTD,47665,14/03/2021,1221585,REDACTED,06/05/2021,257.14,1285.7,1542.84,Benefits Management,Agency Staff,60011
http://statistics.data.gov.uk/id/local-authority/12UE,Huntingdonshire District Council,200550,MORGAN HUNT PUBLIC UK LTD MORGAN HUNT PUBLIC UK LTD,48910,23/05/2021,1230986,REDACTED,03/06/2021,257.14,1285.7,1542.84,Benefits Management,Agency Staff,60011
http://statistics.data.gov.uk/id/local-authority/12UE,Huntingdonshire District Council,200550,MORGAN HUNT PUBLIC UK LTD MORGAN HUNT PUBLIC UK LTD,49819,13/06/2021,1233501,REDACTED,24/06/2021,257.14,1285.7,1542.84,Benefits Management,Agency Staff,60011
http://statistics.data.gov.uk/id/local-authority/12UE,Huntingdonshire District Council,200550,MORGAN HUNT PUBLIC UK LTD MORGAN HUNT PUBLIC UK LTD,46078,21/03/2021,1222868,REDACTED,08/04/2021,254.15,1270.75,1524.9,Benefits Management,Agency Staff,60011
http://statistics.data.gov.uk/id/local-authority/12UE,Huntingdonshire District Council,200550,MORGAN HUNT PUBLIC UK LTD MORGAN HUNT PUBLIC UK LTD,47878,02/05/2021,1228424,REDACTED,13/05/2021,254.15,1270.75,1524.9,Benefits Management,Agency Staff,60011
http://statistics.data.gov.uk/id/local-authority/12UE,Huntingdonshire District Council,200550,MORGAN HUNT PUBLIC UK LTD MORGAN HUNT PUBLIC UK LTD,48684,16/05/2021,1230141,REDACTED,27/05/2021,251.16,1255.8,1506.96,Benefits Management,Agency Staff,60011
http://statistics.data.gov.uk/id/local-authority/12UE,Huntingdonshire District Council,200550,MORGAN HUNT PUBLIC UK LTD MORGAN HUNT PUBLIC UK LTD,46841,11/04/2021,1225732,REDACTED,22/04/2021,246.68,1233.38,1480.06,Benefits Management,Agency Staff,60011
http://statistics.data.gov.uk/id/local-authority/12UE,Huntingdonshire District Council,200550,MORGAN HUNT PUBLIC UK LTD MORGAN HUNT PUBLIC UK LTD,46077,21/03/2021,1222870,REDACTED,08/04/2021,220.8,1104,1324.8,Benefits Management,Agency Staff,60011
http://statistics.data.gov.uk/id/local-authority/12UE,Huntingdonshire District Council,200550,MORGAN HUNT PUBLIC UK LTD MORGAN HUNT PUBLIC UK LTD,46297,28/03/2021,1224018,REDACTED,08/04/2021,220.8,1104,1324.8,Benefits Management,Agency Staff,60011
http://statistics.data.gov.uk/id/local-authority/12UE,Huntingdonshire District Council,200550,MORGAN HUNT PUBLIC UK LTD MORGAN HUNT PUBLIC UK LTD,46843,11/04/2021,1225733,REDACTED,22/04/2021,220.8,1104,1324.8,Benefits Management,Agency Staff,60011
http://statistics.data.gov.uk/id/local-authority/12UE,Huntingdonshire District Council,200550,MORGAN HUNT PUBLIC UK LTD MORGAN HUNT PUBLIC UK LTD,47323,18/04/2021,1226510,REDACTED,29/04/2021,220.8,1104,1324.8,Benefits Management,Agency Staff,60011
http://statistics.data.gov.uk/id/local-authority/12UE,Huntingdonshire District Council,200550,MORGAN HUNT PUBLIC UK LTD MORGAN HUNT PUBLIC UK LTD,47592,25/04/2021,1227549,REDACTED,06/05/2021,220.8,1104,1324.8,Benefits Management,Agency Staff,60011
http://statistics.data.gov.uk/id/local-authority/12UE,Huntingdonshire District Council,200550,MORGAN HUNT PUBLIC UK LTD MORGAN HUNT PUBLIC UK LTD,47879,02/05/2021,1228245,REDACTED,13/05/2021,220.8,1104,1324.8,Benefits Management,Agency Staff,60011
http://statistics.data.gov.uk/id/local-authority/12UE,Huntingdonshire District Council,200550,MORGAN HUNT PUBLIC UK LTD MORGAN HUNT PUBLIC UK LTD,48287,09/05/2021,1229291,REDACTED,20/05/2021,220.8,1104,1324.8,Benefits Management,Agency Staff,60011
http://statistics.data.gov.uk/id/local-authority/12UE,Huntingdonshire District Council,200550,MORGAN HUNT PUBLIC UK LTD MORGAN HUNT PUBLIC UK LTD,48683,16/05/2021,1230143,REDACTED,27/05/2021,220.8,1104,1324.8,Benefits Management,Agency Staff,60011
http://statistics.data.gov.uk/id/local-authority/12UE,Huntingdonshire District Council,200550,MORGAN HUNT PUBLIC UK LTD MORGAN HUNT PUBLIC UK LTD,48911,23/05/2021,1230988,REDACTED,03/06/2021,220.8,1104,1324.8,Benefits Management,Agency Staff,60011
http://statistics.data.gov.uk/id/local-authority/12UE,Huntingdonshire District Council,200550,MORGAN HUNT PUBLIC UK LTD MORGAN HUNT PUBLIC UK LTD,49816,13/06/2021,1233500,REDACTED,24/06/2021,220.8,1104,1324.8,Benefits Management,Agency Staff,60011
http://statistics.data.gov.uk/id/local-authority/12UE,Huntingdonshire District Council,200550,MORGAN HUNT PUBLIC UK LTD MORGAN HUNT PUBLIC UK LTD,48288,09/05/2021,1229290,REDACTED,20/05/2021,215.28,1076.4,1291.68,Benefits Management,Agency Staff,60011
http://statistics.data.gov.uk/id/local-authority/12UE,Huntingdonshire District Council,200550,MORGAN HUNT PUBLIC UK LTD MORGAN HUNT PUBLIC UK LTD,46299,28/03/2021,1224016,REDACTED,08/04/2021,204.24,1021.2,1225.44,Benefits Management,Agency Staff,60011
http://statistics.data.gov.uk/id/local-authority/12UE,Huntingdonshire District Council,200550,MORGAN HUNT PUBLIC UK LTD MORGAN HUNT PUBLIC UK LTD,47324,18/04/2021,1226508,REDACTED,29/04/2021,204.24,1021.2,1225.44,Benefits Management,Agency Staff,60011
http://statistics.data.gov.uk/id/local-authority/12UE,Huntingdonshire District Council,200550,MORGAN HUNT PUBLIC UK LTD MORGAN HUNT PUBLIC UK LTD,47620,25/04/2021,1227547,REDACTED,06/05/2021,204.24,1021.2,1225.44,Benefits Management,Agency Staff,60011
http://statistics.data.gov.uk/id/local-authority/12UE,Huntingdonshire District Council,200550,MORGAN HUNT PUBLIC UK LTD MORGAN HUNT PUBLIC UK LTD,47877,02/05/2021,1228423,REDACTED,13/05/2021,204.24,1021.2,1225.44,Benefits Management,Agency Staff,60011
http://statistics.data.gov.uk/id/local-authority/12UE,Huntingdonshire District Council,200550,MORGAN HUNT PUBLIC UK LTD MORGAN HUNT PUBLIC UK LTD,48685,16/05/2021,1230142,REDACTED,27/05/2021,204.24,1021.2,1225.44,Benefits Management,Agency Staff,60011
http://statistics.data.gov.uk/id/local-authority/12UE,Huntingdonshire District Council,200550,MORGAN HUNT PUBLIC UK LTD MORGAN HUNT PUBLIC UK LTD,48909,23/05/2021,1230987,REDACTED,03/06/2021,204.24,1021.2,1225.44,Benefits Management,Agency Staff,60011
http://statistics.data.gov.uk/id/local-authority/12UE,Huntingdonshire District Council,200550,MORGAN HUNT PUBLIC UK LTD MORGAN HUNT PUBLIC UK LTD,49821,13/06/2021,1233499,REDACTED,24/06/2021,200.1,1000.5,1200.6,Benefits Management,Agency Staff,60011
http://statistics.data.gov.uk/id/local-authority/12UE,Huntingdonshire District Council,200550,MORGAN HUNT PUBLIC UK LTD MORGAN HUNT PUBLIC UK LTD,49818,13/06/2021,1233502,REDACTED,24/06/2021,197.78,988.91,1186.69,Benefits Management,Agency Staff,60011
http://statistics.data.gov.uk/id/local-authority/12UE,Huntingdonshire District Council,200550,MORGAN HUNT PUBLIC UK LTD MORGAN HUNT PUBLIC UK LTD,46079,21/03/2021,1222869,REDACTED,08/04/2021,195.96,979.8,1175.76,Benefits Management,Agency Staff,60011
http://statistics.data.gov.uk/id/local-authority/12UE,Huntingdonshire District Council,200550,MORGAN HUNT PUBLIC UK LTD MORGAN HUNT PUBLIC UK LTD,47880,02/05/2021,1228422,REDACTED,13/05/2021,195.08,975.38,1170.46,Benefits Management,Agency Staff,60011
http://statistics.data.gov.uk/id/local-authority/12UE,Huntingdonshire District Council,200550,MORGAN HUNT PUBLIC UK LTD MORGAN HUNT PUBLIC UK LTD,48908,23/05/2021,1230989,REDACTED,03/06/2021,190.44,952.2,1142.64,Benefits Management,Agency Staff,60011
http://statistics.data.gov.uk/id/local-authority/12UE,Huntingdonshire District Council,200550,MORGAN HUNT PUBLIC UK LTD MORGAN HUNT PUBLIC UK LTD,47322,18/04/2021,1226507,REDACTED,29/04/2021,188.18,940.88,1129.06,Benefits Management,Agency Staff,60011
http://statistics.data.gov.uk/id/local-authority/12UE,Huntingdonshire District Council,200550,MORGAN HUNT PUBLIC UK LTD MORGAN HUNT PUBLIC UK LTD,47593,25/04/2021,1227546,REDACTED,06/05/2021,185.42,927.08,1112.5,Benefits Management,Agency Staff,60011
http://statistics.data.gov.uk/id/local-authority/12UE,Huntingdonshire District Council,200550,MORGAN HUNT PUBLIC UK LTD MORGAN HUNT PUBLIC UK LTD,47591,25/04/2021,1227548,REDACTED,06/05/2021,179.4,897,1076.4,Benefits Management,Agency Staff,60011
http://statistics.data.gov.uk/id/local-authority/12UE,Huntingdonshire District Council,200550,MORGAN HUNT PUBLIC UK LTD MORGAN HUNT PUBLIC UK LTD,46840,11/04/2021,1225731,REDACTED,22/04/2021,162.84,814.2,977.04,Benefits Management,Agency Staff,60011
http://statistics.data.gov.uk/id/local-authority/12UE,Huntingdonshire District Council,200550,MORGAN HUNT PUBLIC UK LTD MORGAN HUNT PUBLIC UK LTD,48290,09/05/2021,1229289,REDACTED,20/05/2021,162.84,814.2,977.04,Benefits Management,Agency Staff,60011
http://statistics.data.gov.uk/id/local-authority/12UE,Huntingdonshire District Council,200550,MORGAN HUNT PUBLIC UK LTD MORGAN HUNT PUBLIC UK LTD,48286,09/05/2021,1229288,REDACTED,20/05/2021,157.32,786.6,943.92,Benefits Management,Agency Staff,60011
http://statistics.data.gov.uk/id/local-authority/12UE,Huntingdonshire District Council,200550,MORGAN HUNT PUBLIC UK LTD MORGAN HUNT PUBLIC UK LTD,46842,11/04/2021,1225734,REDACTED,22/04/2021,154.06,770.32,924.38,Benefits Management,Agency Staff,60011
http://statistics.data.gov.uk/id/local-authority/12UE,Huntingdonshire District Council,200550,MORGAN HUNT PUBLIC UK LTD MORGAN HUNT PUBLIC UK LTD,46295,28/03/2021,1224015,REDACTED,08/04/2021,109.02,545.1,654.12,Benefits Management,Agency Staff,60011
http://statistics.data.gov.uk/id/local-authority/12UE,Huntingdonshire District Council,202470,PERMANENT FUTURES LTD,47679,24/04/2021,241193,AGENCY STAFF,20/05/2021,3160,15800,18960,Market Towns,Agency Staff,60011
http://statistics.data.gov.uk/id/local-authority/12UE,Huntingdonshire District Council,202470,PERMANENT FUTURES LTD,45725,13/03/2021,240381,HOUSING STAFF,08/04/2021,2528,12640,15168,Market Towns,Agency Staff,60011
http://statistics.data.gov.uk/id/local-authority/12UE,Huntingdonshire District Council,200827,VIVID RESOURCING LIMITED VIVID RESOURCING LIMITED,46166,29/03/2021,57199,REDACTED,22/04/2021,1239.24,6196.21,7435.45,Market Towns,Agency Staff,60011
http://statistics.data.gov.uk/id/local-authority/12UE,Huntingdonshire District Council,200827,VIVID RESOURCING LIMITED VIVID RESOURCING LIMITED,48035,05/05/2021,58957,REDACTED,27/05/2021,1280,6400,7680,Market Towns,Agency Staff,60011
http://statistics.data.gov.uk/id/local-authority/12UE,Huntingdonshire District Council,200827,VIVID RESOURCING LIMITED VIVID RESOURCING LIMITED,46624,07/04/2021,57678,REDACTED,29/04/2021,619.62,3098.1,3717.72,Market Towns,Agency Staff,60011
http://statistics.data.gov.uk/id/local-authority/12UE,Huntingdonshire District Council,200827,VIVID RESOURCING LIMITED VIVID RESOURCING LIMITED,46624,07/04/2021,57678,REDACTED,29/04/2021,309.81,1549.05,1858.86,Market Towns,Agency Staff,60011
http://statistics.data.gov.uk/id/local-authority/12UE,Huntingdonshire District Council,200827,VIVID RESOURCING LIMITED VIVID RESOURCING LIMITED,46624,07/04/2021,57678,REDACTED,29/04/2021,160,800,960,Market Towns,Agency Staff,60011
http://statistics.data.gov.uk/id/local-authority/12UE,Huntingdonshire District Council,200827,VIVID RESOURCING LIMITED VIVID RESOURCING LIMITED,46624,07/04/2021,57678,REDACTED,29/04/2021,160,800,960,Market Towns,Agency Staff,60011
http://statistics.data.gov.uk/id/local-authority/12UE,Huntingdonshire District Council,200827,VIVID RESOURCING LIMITED VIVID RESOURCING LIMITED,47336,21/04/2021,58274,REDACTED,13/05/2021,640,3200,3840,Market Towns,Agency Staff,60011
http://statistics.data.gov.uk/id/local-authority/12UE,Huntingdonshire District Council,200827,VIVID RESOURCING LIMITED VIVID RESOURCING LIMITED,48132,12/05/2021,59295,REDACTED,03/06/2021,640,3200,3840,Market Towns,Agency Staff,60011
http://statistics.data.gov.uk/id/local-authority/12UE,Huntingdonshire District Council,200827,VIVID RESOURCING LIMITED VIVID RESOURCING LIMITED,48668,19/05/2021,59574,REDACTED,10/06/2021,640,3200,3840,Market Towns,Agency Staff,60011
http://statistics.data.gov.uk/id/local-authority/12UE,Huntingdonshire District Council,200827,VIVID RESOURCING LIMITED VIVID RESOURCING LIMITED,48927,26/05/2021,59844,REDACTED,17/06/2021,640,3200,3840,Market Towns,Agency Staff,60011
http://statistics.data.gov.uk/id/local-authority/12UE,Huntingdonshire District Council,200827,VIVID RESOURCING LIMITED VIVID RESOURCING LIMITED,46889,14/04/2021,58015,REDACTED,06/05/2021,480,2400,2880,Market Towns,Agency Staff,60011
http://statistics.data.gov.uk/id/local-authority/12UE,Huntingdonshire District Council,200827,VIVID RESOURCING LIMITED VIVID RESOURCING LIMITED,49112,02/06/2021,60191,REDACTED,24/06/2021,480,2400,2880,Market Towns,Agency Staff,60011
http://statistics.data.gov.uk/id/local-authority/12UE,Huntingdonshire District Council,200827,VIVID RESOURCING LIMITED VIVID RESOURCING LIMITED,46166,29/03/2021,57199,REDACTED,22/04/2021,40.76,203.79,244.55,Business & Enterprise Support,Agency Staff,60011
http://statistics.data.gov.uk/id/local-authority/12UE,Huntingdonshire District Council,200827,VIVID RESOURCING LIMITED VIVID RESOURCING LIMITED,46624,07/04/2021,57678,REDACTED,29/04/2021,20.38,101.9,122.28,Business & Enterprise Support,Agency Staff,60011
http://statistics.data.gov.uk/id/local-authority/12UE,Huntingdonshire District Council,200827,VIVID RESOURCING LIMITED VIVID RESOURCING LIMITED,46624,07/04/2021,57678,REDACTED,29/04/2021,10.19,50.95,61.14,Business & Enterprise Support,Agency Staff,60011
http://statistics.data.gov.uk/id/local-authority/12UE,Huntingdonshire District Council,200365,HAYS HAYS,45641,16/03/2021,1011181705,ESTATES STAFF,08/04/2021,550.6,2753,3303.6,Property Development And Mgt,Agency Staff,60011
http://statistics.data.gov.uk/id/local-authority/12UE,Huntingdonshire District Council,200365,HAYS HAYS,45986,12/03/2021,1011147586,REDACTED,08/04/2021,550.6,2753,3303.6,Property Development And Mgt,Agency Staff,60011
http://statistics.data.gov.uk/id/local-authority/12UE,Huntingdonshire District Council,200365,HAYS HAYS,46179,26/03/2021,1011207471,REDACTED,22/04/2021,550.6,2753,3303.6,Property Development And Mgt,Agency Staff,60011
http://statistics.data.gov.uk/id/local-authority/12UE,Huntingdonshire District Council,200365,HAYS HAYS,46180,26/03/2021,1011207472,REDACTED,22/04/2021,550.6,2753,3303.6,Property Development And Mgt,Agency Staff,60011
http://statistics.data.gov.uk/id/local-authority/12UE,Huntingdonshire District Council,200365,HAYS HAYS,46911,08/04/2021,1011233343,REDACTED,06/05/2021,550.6,2753,3303.6,Property Development And Mgt,Agency Staff,60011
http://statistics.data.gov.uk/id/local-authority/12UE,Huntingdonshire District Council,200365,HAYS HAYS,48839,30/04/2021,1011285238,REDACTED,27/05/2021,550.6,2753,3303.6,Property Development And Mgt,Agency Staff,60011
http://statistics.data.gov.uk/id/local-authority/12UE,Huntingdonshire District Council,200365,HAYS HAYS,48840,30/04/2021,1011285239,REDACTED,27/05/2021,550.6,2753,3303.6,Property Development And Mgt,Agency Staff,60011
http://statistics.data.gov.uk/id/local-authority/12UE,Huntingdonshire District Council,200365,HAYS HAYS,48841,11/05/2021,1011302624,REDACTED,03/06/2021,550.6,2753,3303.6,Property Development And Mgt,Agency Staff,60011
http://statistics.data.gov.uk/id/local-authority/12UE,Huntingdonshire District Council,200365,HAYS HAYS,48843,21/05/2021,1011342183,REDACTED,17/06/2021,550.6,2753,3303.6,Property Development And Mgt,Agency Staff,60011
http://statistics.data.gov.uk/id/local-authority/12UE,Huntingdonshire District Council,200365,HAYS HAYS,48972,27/05/2021,1011359205,REDACTED,24/06/2021,550.6,2753,3303.6,Property Development And Mgt,Agency Staff,60011
http://statistics.data.gov.uk/id/local-authority/12UE,Huntingdonshire District Council,200785,THE OYSTER PARTNERSHIP THE OYSTER PARTNERSHIP,45867,17/03/2021,1091717,REDACTED,08/04/2021,475,2375,2850,Property Development And Mgt,Agency Staff,60011
http://statistics.data.gov.uk/id/local-authority/12UE,Huntingdonshire District Council,200785,THE OYSTER PARTNERSHIP THE OYSTER PARTNERSHIP,46153,24/03/2021,1092141,REDACTED,15/04/2021,475,2375,2850,Property Development And Mgt,Agency Staff,60011
http://statistics.data.gov.uk/id/local-authority/12UE,Huntingdonshire District Council,200785,THE OYSTER PARTNERSHIP THE OYSTER PARTNERSHIP,46596,30/03/2021,1092535,REDACTED,22/04/2021,475,2375,2850,Property Development And Mgt,Agency Staff,60011
http://statistics.data.gov.uk/id/local-authority/12UE,Huntingdonshire District Council,200785,THE OYSTER PARTNERSHIP THE OYSTER PARTNERSHIP,47402,21/04/2021,1094056,REDACTED,13/05/2021,475,2375,2850,Property Development And Mgt,Agency Staff,60011
http://statistics.data.gov.uk/id/local-authority/12UE,Huntingdonshire District Council,200785,THE OYSTER PARTNERSHIP THE OYSTER PARTNERSHIP,47664,28/04/2021,1094500,REDACTED,20/05/2021,475,2375,2850,Property Development And Mgt,Agency Staff,60011
http://statistics.data.gov.uk/id/local-authority/12UE,Huntingdonshire District Council,200785,THE OYSTER PARTNERSHIP THE OYSTER PARTNERSHIP,48165,05/05/2021,1094928,REDACTED,27/05/2021,237.5,1187.5,1425,Property Development And Mgt,Agency Staff,60011
http://statistics.data.gov.uk/id/local-authority/12UE,Huntingdonshire District Council,200785,THE OYSTER PARTNERSHIP THE OYSTER PARTNERSHIP,48165,05/05/2021,1094928,REDACTED,27/05/2021,237.5,1187.5,1425,Property Development And Mgt,Agency Staff,60011
http://statistics.data.gov.uk/id/local-authority/12UE,Huntingdonshire District Council,200785,THE OYSTER PARTNERSHIP THE OYSTER PARTNERSHIP,48672,12/05/2021,1095374,REDACTED,03/06/2021,475,2375,2850,Property Development And Mgt,Agency Staff,60011
http://statistics.data.gov.uk/id/local-authority/12UE,Huntingdonshire District Council,200785,THE OYSTER PARTNERSHIP THE OYSTER PARTNERSHIP,49141,02/06/2021,1096718,REDACTED,24/06/2021,475,2375,2850,Property Development And Mgt,Agency Staff,60011
http://statistics.data.gov.uk/id/local-authority/12UE,Huntingdonshire District Council,200365,HAYS HAYS,46912,16/04/2021,1011256752,REDACTED,13/05/2021,440.48,2202.4,2642.88,Property Development And Mgt,Agency Staff,60011
http://statistics.data.gov.uk/id/local-authority/12UE,Huntingdonshire District Council,200365,HAYS HAYS,48842,20/05/2021,1011329473,REDACTED,17/06/2021,440.48,2202.4,2642.88,Property Development And Mgt,Agency Staff,60011
http://statistics.data.gov.uk/id/local-authority/12UE,Huntingdonshire District Council,200785,THE OYSTER PARTNERSHIP THE OYSTER PARTNERSHIP,47015,14/04/2021,1093640,REDACTED,06/05/2021,285,1425,1710,Property Development And Mgt,Agency Staff,60011
http://statistics.data.gov.uk/id/local-authority/12UE,Huntingdonshire District Council,200785,THE OYSTER PARTNERSHIP THE OYSTER PARTNERSHIP,47015,14/04/2021,1093640,REDACTED,06/05/2021,95,475,570,Property Development And Mgt,Agency Staff,60011
http://statistics.data.gov.uk/id/local-authority/12UE,Huntingdonshire District Council,200785,THE OYSTER PARTNERSHIP THE OYSTER PARTNERSHIP,48931,26/05/2021,1096260,REDACTED,17/06/2021,380,1900,2280,Property Development And Mgt,Agency Staff,60011
http://statistics.data.gov.uk/id/local-authority/12UE,Huntingdonshire District Council,200365,HAYS HAYS,46913,09/04/2021,1011240069,REDACTED,06/05/2021,330.36,1651.8,1982.16,Property Development And Mgt,Agency Staff,60011
http://statistics.data.gov.uk/id/local-authority/12UE,Huntingdonshire District Council,200785,THE OYSTER PARTNERSHIP THE OYSTER PARTNERSHIP,46597,07/04/2021,1093086,REDACTED,29/04/2021,285,1425,1710,Property Development And Mgt,Agency Staff,60011
http://statistics.data.gov.uk/id/local-authority/12UE,Huntingdonshire District Council,200365,HAYS HAYS,45563,12/03/2021,1011167138,estates staff costs,08/04/2021,110.12,550.6,660.72,Property Development And Mgt,Agency Staff,60011
http://statistics.data.gov.uk/id/local-authority/12UE,Huntingdonshire District Council,200785,THE OYSTER PARTNERSHIP THE OYSTER PARTNERSHIP,46595,07/04/2021,1093088,REDACTED,29/04/2021,95,475,570,Property Development And Mgt,Agency Staff,60011
http://statistics.data.gov.uk/id/local-authority/12UE,Huntingdonshire District Council,200420,INTERACTION RECRUITMENT PLC INTERACTION RECRUITMENT PLC,47488,25/04/2021,INV2100503,REDACTED,20/05/2021,112.94,564.71,677.65,Document Centre,Agency Staff,60011
http://statistics.data.gov.uk/id/local-authority/12UE,Huntingdonshire District Council,200420,INTERACTION RECRUITMENT PLC INTERACTION RECRUITMENT PLC,45773,14/03/2021,INV2092612,REDACTED,08/04/2021,112.18,560.92,673.1,Document Centre,Agency Staff,60011
http://statistics.data.gov.uk/id/local-authority/12UE,Huntingdonshire District Council,200420,INTERACTION RECRUITMENT PLC INTERACTION RECRUITMENT PLC,46072,21/03/2021,INV2093930,REDACTED,15/04/2021,112.18,560.92,673.1,Document Centre,Agency Staff,60011
http://statistics.data.gov.uk/id/local-authority/12UE,Huntingdonshire District Council,200420,INTERACTION RECRUITMENT PLC INTERACTION RECRUITMENT PLC,46293,28/03/2021,INV2095257,REDACTED,22/04/2021,112.18,560.92,673.1,Document Centre,Agency Staff,60011
http://statistics.data.gov.uk/id/local-authority/12UE,Huntingdonshire District Council,200420,INTERACTION RECRUITMENT PLC INTERACTION RECRUITMENT PLC,47239,18/04/2021,INV2099208,REDACTED,13/05/2021,112.18,560.92,673.1,Document Centre,Agency Staff,60011
http://statistics.data.gov.uk/id/local-authority/12UE,Huntingdonshire District Council,200420,INTERACTION RECRUITMENT PLC INTERACTION RECRUITMENT PLC,47873,02/05/2021,INV2101764,REDACTED,27/05/2021,112.18,560.92,673.1,Document Centre,Agency Staff,60011
http://statistics.data.gov.uk/id/local-authority/12UE,Huntingdonshire District Council,200420,INTERACTION RECRUITMENT PLC INTERACTION RECRUITMENT PLC,48686,16/05/2021,INV2104274,REDACTED,10/06/2021,112.18,560.92,673.1,Document Centre,Agency Staff,60011
http://statistics.data.gov.uk/id/local-authority/12UE,Huntingdonshire District Council,200420,INTERACTION RECRUITMENT PLC INTERACTION RECRUITMENT PLC,48890,23/05/2021,INV2105534,REDACTED,17/06/2021,112.18,560.92,673.1,Document Centre,Agency Staff,60011
http://statistics.data.gov.uk/id/local-authority/12UE,Huntingdonshire District Council,200420,INTERACTION RECRUITMENT PLC INTERACTION RECRUITMENT PLC,49151,30/05/2021,INV2106846,REDACTED,24/06/2021,112.18,560.92,673.1,Document Centre,Agency Staff,60011
http://statistics.data.gov.uk/id/local-authority/12UE,Huntingdonshire District Council,200420,INTERACTION RECRUITMENT PLC INTERACTION RECRUITMENT PLC,48161,09/05/2021,INV2102991,REDACTED,03/06/2021,89.44,447.22,536.66,Document Centre,Agency Staff,60011
http://statistics.data.gov.uk/id/local-authority/12UE,Huntingdonshire District Council,200420,INTERACTION RECRUITMENT PLC INTERACTION RECRUITMENT PLC,47000,11/04/2021,INV2097917,REDACTED,06/05/2021,85.65,428.27,513.92,Document Centre,Agency Staff,60011
http://statistics.data.gov.uk/id/local-authority/12UE,Huntingdonshire District Council,200420,INTERACTION RECRUITMENT PLC INTERACTION RECRUITMENT PLC,46585,04/04/2021,INV2096619,REDACTED,29/04/2021,68.22,341.1,409.32,Document Centre,Agency Staff,60011
http://statistics.data.gov.uk/id/local-authority/12UE,Huntingdonshire District Council,200743,STAFFLINE GROUP STAFFLINE GROUP,48922,10/03/2021,102068,STREET CLEANSER W/C 28/02/21,27/05/2021,91.24,456.21,547.45,Vehicle Maintenance,Agency Staff,60011
http://statistics.data.gov.uk/id/local-authority/12UE,Huntingdonshire District Council,201114,XP RECRUITMENT LTD,48864,12/05/2021,10767,STREET CLEANER W/E 08/05/21,03/06/2021,39.46,197.28,236.74,Vehicle Maintenance,Agency Staff,60011
http://statistics.data.gov.uk/id/local-authority/12UE,Huntingdonshire District Council,201114,XP RECRUITMENT LTD,48864,12/05/2021,10767,STREET CLEANER W/E 08/05/21,03/06/2021,19.73,98.64,118.37,Vehicle Maintenance,Agency Staff,60011
http://statistics.data.gov.uk/id/local-authority/12UE,Huntingdonshire District Council,202445,SANNATHI LTD,46701,06/04/2021,SAN-3CSS-00015,AGENCY STAFF,29/04/2021,350,1750,2100,IMD Shared Service,Agency Staff,60011
http://statistics.data.gov.uk/id/local-authority/12UE,Huntingdonshire District Council,202445,SANNATHI LTD,46703,06/04/2021,SAN-3CSS-00017,AGENCY STAFF,29/04/2021,350,1750,2100,IMD Shared Service,Agency Staff,60011
http://statistics.data.gov.uk/id/local-authority/12UE,Huntingdonshire District Council,202445,SANNATHI LTD,47383,23/04/2021,SAN-3CSS-00020,CONSULTANCY,20/05/2021,323.75,1618.75,1942.5,IMD Shared Service,Agency Staff,60011
http://statistics.data.gov.uk/id/local-authority/12UE,Huntingdonshire District Council,202445,SANNATHI LTD,47385,23/04/2021,SAN-3CSS-00021,CONSULTANCY,20/05/2021,323.75,1618.75,1942.5,IMD Shared Service,Agency Staff,60011
http://statistics.data.gov.uk/id/local-authority/12UE,Huntingdonshire District Council,202445,SANNATHI LTD,47386,23/04/2021,SAN-3CSS-00023,CONSULTANCY,20/05/2021,323.75,1618.75,1942.5,IMD Shared Service,Agency Staff,60011
http://statistics.data.gov.uk/id/local-authority/12UE,Huntingdonshire District Council,202445,SANNATHI LTD,49130,23/04/2021,SAN-3CSS-00022,AGENCY STAFF,03/06/2021,323.75,1618.75,1942.5,IMD Shared Service,Agency Staff,60011
http://statistics.data.gov.uk/id/local-authority/12UE,Huntingdonshire District Council,202445,SANNATHI LTD,49332,25/05/2021,SAN-3CSS-00025,AGENCY STAFF,17/06/2021,323.75,1618.75,1942.5,IMD Shared Service,Agency Staff,60011
http://statistics.data.gov.uk/id/local-authority/12UE,Huntingdonshire District Council,202445,SANNATHI LTD,49333,25/05/2021,SAN-3CSS-00026,AGENCY STAFF,17/06/2021,323.75,1618.75,1942.5,IMD Shared Service,Agency Staff,60011
http://statistics.data.gov.uk/id/local-authority/12UE,Huntingdonshire District Council,202445,SANNATHI LTD,49356,25/05/2021,SAN-3CSS-00027,AGENCY STAFF,17/06/2021,323.75,1618.75,1942.5,IMD Shared Service,Agency Staff,60011
http://statistics.data.gov.uk/id/local-authority/12UE,Huntingdonshire District Council,202445,SANNATHI LTD,46702,06/04/2021,SAN-3CSS-00016,AGENCY STAFF,29/04/2021,306.25,1531.25,1837.5,IMD Shared Service,Agency Staff,60011
http://statistics.data.gov.uk/id/local-authority/12UE,Huntingdonshire District Council,202445,SANNATHI LTD,46704,06/04/2021,SAN-3CSS-00018,AGENCY STAFF,29/04/2021,306.2,1531,1837.2,IMD Shared Service,Agency Staff,60011
http://statistics.data.gov.uk/id/local-authority/12UE,Huntingdonshire District Council,202445,SANNATHI LTD,46705,06/04/2021,SAN-3CSS-00019,AGENCY STAFF,29/04/2021,280,1400,1680,IMD Shared Service,Agency Staff,60011
http://statistics.data.gov.uk/id/local-authority/12UE,Huntingdonshire District Council,202445,SANNATHI LTD,49331,25/05/2021,SAN-3CSS-00024,AGENCY STAFF,17/06/2021,262.5,1312.5,1575,IMD Shared Service,Agency Staff,60011
http://statistics.data.gov.uk/id/local-authority/12UE,Huntingdonshire District Council,200537,MEYER SCOTT RECRUITMENT LIMITED MEYER SCOTT RECRUITMENT LIMITED,50004,01/03/2021,41274,AGENCY STAFF,24/06/2021,98.88,494.4,593.28,IMD Shared Service,Agency Staff,60011
http://statistics.data.gov.uk/id/local-authority/12UE,Huntingdonshire District Council,200537,MEYER SCOTT RECRUITMENT LIMITED MEYER SCOTT RECRUITMENT LIMITED,46718,29/03/2021,41361,REDACTED,15/04/2021,75.81,379.04,454.85,IMD Shared Service,Agency Staff,60011
http://statistics.data.gov.uk/id/local-authority/12UE,Huntingdonshire District Council,200537,MEYER SCOTT RECRUITMENT LIMITED MEYER SCOTT RECRUITMENT LIMITED,46699,06/04/2021,41381,REDACTED,15/04/2021,73.34,366.68,440.02,IMD Shared Service,Agency Staff,60011
http://statistics.data.gov.uk/id/local-authority/12UE,Huntingdonshire District Council,200537,MEYER SCOTT RECRUITMENT LIMITED MEYER SCOTT RECRUITMENT LIMITED,46700,12/04/2021,41401,REDACTED,15/04/2021,59.33,296.64,355.97,IMD Shared Service,Agency Staff,60011
http://statistics.data.gov.uk/id/local-authority/12UE,Huntingdonshire District Council,202507,SELLICK PARTNERSHIP LTD,46515,29/03/2021,INV350353,REDACTED,15/04/2021,385,1925,2310,Finance,Agency Staff,60011
http://statistics.data.gov.uk/id/local-authority/12UE,Huntingdonshire District Council,202507,SELLICK PARTNERSHIP LTD,46516,22/03/2021,INV349432,REDACTED,15/04/2021,385,1925,2310,Finance,Agency Staff,60011
http://statistics.data.gov.uk/id/local-authority/12UE,Huntingdonshire District Council,202507,SELLICK PARTNERSHIP LTD,46517,15/03/2021,INV348420,REDACTED,15/04/2021,385,1925,2310,Finance,Agency Staff,60011
http://statistics.data.gov.uk/id/local-authority/12UE,Huntingdonshire District Council,202507,SELLICK PARTNERSHIP LTD,46976,19/04/2021,INV353262,REDACTED,22/04/2021,385,1925,2310,Finance,Agency Staff,60011
http://statistics.data.gov.uk/id/local-authority/12UE,Huntingdonshire District Council,202507,SELLICK PARTNERSHIP LTD,47354,26/04/2021,INV354115,REDACTED,29/04/2021,385,1925,2310,Finance,Agency Staff,60011
http://statistics.data.gov.uk/id/local-authority/12UE,Huntingdonshire District Council,202507,SELLICK PARTNERSHIP LTD,47794,04/05/2021,INV355198,REDACTED,06/05/2021,385,1925,2310,Finance,Agency Staff,60011
http://statistics.data.gov.uk/id/local-authority/12UE,Huntingdonshire District Council,202507,SELLICK PARTNERSHIP LTD,48471,17/05/2021,INV357156,REDACTED,20/05/2021,385,1925,2310,Finance,Agency Staff,60011
http://statistics.data.gov.uk/id/local-authority/12UE,Huntingdonshire District Council,202507,SELLICK PARTNERSHIP LTD,49026,28/05/2021,INV359008,REDACTED,03/06/2021,385,1925,2310,Finance,Agency Staff,60011
http://statistics.data.gov.uk/id/local-authority/12UE,Huntingdonshire District Council,202507,SELLICK PARTNERSHIP LTD,46514,06/04/2021,INV351860,REDACTED,15/04/2021,308,1540,1848,Finance,Agency Staff,60011
http://statistics.data.gov.uk/id/local-authority/12UE,Huntingdonshire District Council,202507,SELLICK PARTNERSHIP LTD,46646,12/04/2021,INV352201,REDACTED,15/04/2021,308,1540,1848,Finance,Agency Staff,60011
http://statistics.data.gov.uk/id/local-authority/12UE,Huntingdonshire District Council,202507,SELLICK PARTNERSHIP LTD,49319,07/06/2021,INV360037,REDACTED,10/06/2021,308,1540,1848,Finance,Agency Staff,60011
http://statistics.data.gov.uk/id/local-authority/12UE,Huntingdonshire District Council,200537,MEYER SCOTT RECRUITMENT LIMITED MEYER SCOTT RECRUITMENT LIMITED,46473,15/03/2021,41316,REDACTED,15/04/2021,78.21,391.04,469.25,Finance,Agency Staff,60011
http://statistics.data.gov.uk/id/local-authority/12UE,Huntingdonshire District Council,202334,LIZ BISSET COACHING AND CONSULTANCY LTD,46288,29/03/2021,HDC6,AGENCY STAFF,22/04/2021,0,1200,1200,Housing Policy R&D,Agency Staff,60011
http://statistics.data.gov.uk/id/local-authority/12UE,Huntingdonshire District Council,200149,CAMBRIDGE CITY COUNCIL CAMBRIDGE CITY COUNCIL,47405,14/04/2021,12057399,CONSULTANCY,03/06/2021,0,7225,7225,Development Management,Agency Staff,60011
http://statistics.data.gov.uk/id/local-authority/12UE,Huntingdonshire District Council,202077,PARK AVENUE RECRUITMENT LTD,46975,06/04/2021,INV-1046,RECRUITMENT,29/04/2021,917.64,4588.2,5505.84,Development Management,Agency Staff,60011
http://statistics.data.gov.uk/id/local-authority/12UE,Huntingdonshire District Council,202458,CARRINGTON WEST LTD,47967,06/05/2021,159881,AGENCY STAFF,03/06/2021,550,2750,3300,Development Management,Agency Staff,60011
http://statistics.data.gov.uk/id/local-authority/12UE,Huntingdonshire District Council,202458,CARRINGTON WEST LTD,48688,19/05/2021,161129,AGENCY STAFF,10/06/2021,550,2750,3300,Development Management,Agency Staff,60011
http://statistics.data.gov.uk/id/local-authority/12UE,Huntingdonshire District Council,202458,CARRINGTON WEST LTD,48891,26/05/2021,161739,AGENCY STAFF,17/06/2021,550,2750,3300,Development Management,Agency Staff,60011
http://statistics.data.gov.uk/id/local-authority/12UE,Huntingdonshire District Council,202458,CARRINGTON WEST LTD,48689,19/05/2021,161130,AGENCY STAFF,10/06/2021,543.95,2719.75,3263.7,Development Management,Agency Staff,60011
http://statistics.data.gov.uk/id/local-authority/12UE,Huntingdonshire District Council,202458,CARRINGTON WEST LTD,49832,06/05/2021,159882,AGENCY STAFF,24/06/2021,541.8,2709,3250.8,Development Management,Agency Staff,60011
http://statistics.data.gov.uk/id/local-authority/12UE,Huntingdonshire District Council,202458,CARRINGTON WEST LTD,49118,02/06/2021,162412,AGENCY STAFF,24/06/2021,518.65,2593.25,3111.9,Development Management,Agency Staff,60011
http://statistics.data.gov.uk/id/local-authority/12UE,Huntingdonshire District Council,202458,CARRINGTON WEST LTD,47970,29/04/2021,159420,AGENCY STAFF,27/05/2021,499.68,2498.38,2998.06,Development Management,Agency Staff,60011
http://statistics.data.gov.uk/id/local-authority/12UE,Huntingdonshire District Council,202458,CARRINGTON WEST LTD,48892,26/05/2021,161740,AGENCY STAFF,17/06/2021,493.35,2466.75,2960.1,Development Management,Agency Staff,60011
http://statistics.data.gov.uk/id/local-authority/12UE,Huntingdonshire District Council,202458,CARRINGTON WEST LTD,49775,13/05/2021,160551,AGENCY STAFF,17/06/2021,468.05,2340.25,2808.3,Development Management,Agency Staff,60011
http://statistics.data.gov.uk/id/local-authority/12UE,Huntingdonshire District Council,202458,CARRINGTON WEST LTD,47701,29/04/2021,159419,AGENCY STAFF,27/05/2021,440,2200,2640,Development Management,Agency Staff,60011
http://statistics.data.gov.uk/id/local-authority/12UE,Huntingdonshire District Council,202458,CARRINGTON WEST LTD,48289,13/05/2021,160550,AGENCY STAFF,10/06/2021,440,2200,2640,Development Management,Agency Staff,60011
http://statistics.data.gov.uk/id/local-authority/12UE,Huntingdonshire District Council,202458,CARRINGTON WEST LTD,49114,02/06/2021,162411,AGENCY STAFF,24/06/2021,440,2200,2640,Development Management,Agency Staff,60011
http://statistics.data.gov.uk/id/local-authority/12UE,Huntingdonshire District Council,200827,VIVID RESOURCING LIMITED VIVID RESOURCING LIMITED,45698,17/03/2021,56841,PLANNING STAFF,08/04/2021,325.6,1628,1953.6,Development Management,Agency Staff,60011
http://statistics.data.gov.uk/id/local-authority/12UE,Huntingdonshire District Council,200827,VIVID RESOURCING LIMITED VIVID RESOURCING LIMITED,46105,24/03/2021,57102,REDACTED,15/04/2021,325.6,1628,1953.6,Development Management,Agency Staff,60011
http://statistics.data.gov.uk/id/local-authority/12UE,Huntingdonshire District Council,200827,VIVID RESOURCING LIMITED VIVID RESOURCING LIMITED,46792,14/04/2021,58014,REDACTED,06/05/2021,325.6,1628,1953.6,Development Management,Agency Staff,60011
http://statistics.data.gov.uk/id/local-authority/12UE,Huntingdonshire District Council,200827,VIVID RESOURCING LIMITED VIVID RESOURCING LIMITED,47705,21/04/2021,58273,REDACTED,13/05/2021,325.6,1628,1953.6,Development Management,Agency Staff,60011
http://statistics.data.gov.uk/id/local-authority/12UE,Huntingdonshire District Council,200827,VIVID RESOURCING LIMITED VIVID RESOURCING LIMITED,48296,12/05/2021,59294,REDACTED,03/06/2021,325.6,1628,1953.6,Development Management,Agency Staff,60011
http://statistics.data.gov.uk/id/local-authority/12UE,Huntingdonshire District Council,200827,VIVID RESOURCING LIMITED VIVID RESOURCING LIMITED,48604,19/05/2021,59575,REDACTED,10/06/2021,325.6,1628,1953.6,Development Management,Agency Staff,60011
http://statistics.data.gov.uk/id/local-authority/12UE,Huntingdonshire District Council,200827,VIVID RESOURCING LIMITED VIVID RESOURCING LIMITED,48856,28/04/2021,58603,REDACTED,27/05/2021,325.6,1628,1953.6,Development Management,Agency Staff,60011
http://statistics.data.gov.uk/id/local-authority/12UE,Huntingdonshire District Council,200827,VIVID RESOURCING LIMITED VIVID RESOURCING LIMITED,48913,26/05/2021,59845,REDACTED,17/06/2021,325.6,1628,1953.6,Development Management,Agency Staff,60011
http://statistics.data.gov.uk/id/local-authority/12UE,Huntingdonshire District Council,200827,VIVID RESOURCING LIMITED VIVID RESOURCING LIMITED,49111,02/06/2021,60192,REDACTED,24/06/2021,325.6,1628,1953.6,Development Management,Agency Staff,60011
http://statistics.data.gov.uk/id/local-authority/12UE,Huntingdonshire District Council,200827,VIVID RESOURCING LIMITED VIVID RESOURCING LIMITED,49173,05/05/2021,58956,REDACTED,10/06/2021,325.6,1628,1953.6,Development Management,Agency Staff,60011
http://statistics.data.gov.uk/id/local-authority/12UE,Huntingdonshire District Council,200827,VIVID RESOURCING LIMITED VIVID RESOURCING LIMITED,46598,07/04/2021,57679,REDACTED,29/04/2021,195.36,976.8,1172.16,Development Management,Agency Staff,60011
http://statistics.data.gov.uk/id/local-authority/12UE,Huntingdonshire District Council,200827,VIVID RESOURCING LIMITED VIVID RESOURCING LIMITED,46598,07/04/2021,57679,REDACTED,29/04/2021,15.84,79.2,95.04,Development Management,Agency Staff,60011
http://statistics.data.gov.uk/id/local-authority/12UE,Huntingdonshire District Council,200827,VIVID RESOURCING LIMITED VIVID RESOURCING LIMITED,46285,30/03/2021,57392,REDACTED,22/04/2021,193.6,968,1161.6,Development Management,Agency Staff,60011
http://statistics.data.gov.uk/id/local-authority/12UE,Huntingdonshire District Council,200827,VIVID RESOURCING LIMITED VIVID RESOURCING LIMITED,48131,07/04/2021,57677,REDACTED,13/05/2021,114.4,572,686.4,Development Management,Agency Staff,60011
http://statistics.data.gov.uk/id/local-authority/12UE,Huntingdonshire District Council,202458,CARRINGTON WEST LTD,47406,15/04/2021,158063,AGENCY STAFF,13/05/2021,110,550,660,Development Management,Agency Staff,60011
http://statistics.data.gov.uk/id/local-authority/12UE,Huntingdonshire District Council,202458,CARRINGTON WEST LTD,47969,22/04/2021,158651,AGENCY STAFF,20/05/2021,110,550,660,Development Management,Agency Staff,60011
http://statistics.data.gov.uk/id/local-authority/12UE,Huntingdonshire District Council,202458,CARRINGTON WEST LTD,47965,29/04/2021,159256,AGENCY STAFF,27/05/2021,75.9,379.5,455.4,Development Management,Agency Staff,60011
http://statistics.data.gov.uk/id/local-authority/12UE,Huntingdonshire District Council,202577,PENGUIN RECRUITMENT LTD,47829,26/04/2021,10016,RECRUITMENT,20/05/2021,917.64,4588.2,5505.84,Planning Policy,Agency Staff,60011
http://statistics.data.gov.uk/id/local-authority/12UE,Huntingdonshire District Council,200879,AMULET (CHURCHILL SECURITY SERVICES) LTD,46593,31/03/2021,81187,PFH,22/04/2021,1491.92,7459.59,8951.51,Pathfinder House,Agency Staff,60011
http://statistics.data.gov.uk/id/local-authority/12UE,Huntingdonshire District Council,200918,1ST CHOICE RECRUITMENT,48899,22/05/2021,4000009366,REDACTED,17/06/2021,42.6,213,255.6,Trade Refuse,Agency Staff,60011
http://statistics.data.gov.uk/id/local-authority/12UE,Huntingdonshire District Council,200918,1ST CHOICE RECRUITMENT,48091,01/05/2021,4000009328,REDACTED,27/05/2021,42.6,213,255.6,Trade Refuse,Agency Staff,60011
http://statistics.data.gov.uk/id/local-authority/12UE,Huntingdonshire District Council,200918,1ST CHOICE RECRUITMENT,49122,29/05/2021,4000009376,REDACTED,24/06/2021,42.6,213,255.6,Trade Refuse,Agency Staff,60011
http://statistics.data.gov.uk/id/local-authority/12UE,Huntingdonshire District Council,200918,1ST CHOICE RECRUITMENT,45765,13/03/2021,4000009228,REDACTED,08/04/2021,41.76,208.8,250.56,Trade Refuse,Agency Staff,60011
http://statistics.data.gov.uk/id/local-authority/12UE,Huntingdonshire District Council,200918,1ST CHOICE RECRUITMENT,46053,20/03/2021,4000009241,REDACTED,15/04/2021,41.76,208.8,250.56,Trade Refuse,Agency Staff,60011
http://statistics.data.gov.uk/id/local-authority/12UE,Huntingdonshire District Council,200918,1ST CHOICE RECRUITMENT,47210,27/03/2021,4000009253,REDACTED,22/04/2021,41.76,208.8,250.56,Trade Refuse,Agency Staff,60011
http://statistics.data.gov.uk/id/local-authority/12UE,Huntingdonshire District Council,200918,1ST CHOICE RECRUITMENT,47223,17/04/2021,4000009305,REDACTED,13/05/2021,41.76,208.8,250.56,Trade Refuse,Agency Staff,60011
http://statistics.data.gov.uk/id/local-authority/12UE,Huntingdonshire District Council,200918,1ST CHOICE RECRUITMENT,47547,24/04/2021,4000009316,REDACTED,20/05/2021,41.76,208.8,250.56,Trade Refuse,Agency Staff,60011
http://statistics.data.gov.uk/id/local-authority/12UE,Huntingdonshire District Council,200918,1ST CHOICE RECRUITMENT,48589,15/05/2021,4000009355,REDACTED,10/06/2021,42.6,213,255.6,Trade Refuse,Agency Staff,60011
http://statistics.data.gov.uk/id/local-authority/12UE,Huntingdonshire District Council,200918,1ST CHOICE RECRUITMENT,48097,08/05/2021,4000009341,REDACTED,03/06/2021,42.6,213,255.6,Trade Refuse,Agency Staff,60011
http://statistics.data.gov.uk/id/local-authority/12UE,Huntingdonshire District Council,200918,1ST CHOICE RECRUITMENT,47218,03/04/2021,4000009263,REDACTED,29/04/2021,41.76,208.8,250.56,Trade Refuse,Agency Staff,60011
http://statistics.data.gov.uk/id/local-authority/12UE,Huntingdonshire District Council,200918,1ST CHOICE RECRUITMENT,47221,10/04/2021,4000009272,REDACTED,06/05/2021,41.76,208.8,250.56,Trade Refuse,Agency Staff,60011
http://statistics.data.gov.uk/id/local-authority/12UE,Huntingdonshire District Council,201054,NORTHAMPTONSHIRE PENSION FUND,45951,16/03/2021,4.233E+11,Mar-21,08/04/2021,0,13454.84,13454.84,Non Distributed Costs,Pension Increase Act Payments,60101
http://statistics.data.gov.uk/id/local-authority/12UE,Huntingdonshire District Council,201054,NORTHAMPTONSHIRE PENSION FUND,45952,16/03/2021,4.233E+11,Feb-21,08/04/2021,0,13454.84,13454.84,Non Distributed Costs,Pension Increase Act Payments,60101
http://statistics.data.gov.uk/id/local-authority/12UE,Huntingdonshire District Council,200210,COMPUTERSHARE VOUCHERS LTD COMPUTERSHARE VOUCHERS LTD,47376,26/04/2021,C-0003195398,TAX FREE VOUCHERS,29/04/2021,9.31,46.53,55.84,Payroll Services,Childcare Admin Vouchers,60106
http://statistics.data.gov.uk/id/local-authority/12UE,Huntingdonshire District Council,200210,COMPUTERSHARE VOUCHERS LTD COMPUTERSHARE VOUCHERS LTD,48861,25/05/2021,C-0003205885,TAX FREE VOUCHERS,27/05/2021,9.31,46.53,55.84,Payroll Services,Childcare Admin Vouchers,60106
http://statistics.data.gov.uk/id/local-authority/12UE,Huntingdonshire District Council,200210,COMPUTERSHARE VOUCHERS LTD COMPUTERSHARE VOUCHERS LTD,47376,26/04/2021,C-0003195398,TAX FREE VOUCHERS,29/04/2021,0,1861,1861,Child Care Vouchers - Payroll,Childcare Admin Vouchers,60106
http://statistics.data.gov.uk/id/local-authority/12UE,Huntingdonshire District Council,200210,COMPUTERSHARE VOUCHERS LTD COMPUTERSHARE VOUCHERS LTD,48861,25/05/2021,C-0003205885,TAX FREE VOUCHERS,27/05/2021,0,1861,1861,Child Care Vouchers - Payroll,Childcare Admin Vouchers,60106
http://statistics.data.gov.uk/id/local-authority/12UE,Huntingdonshire District Council,200909,WRIGHTWAY HEALTH LTD,47826,01/04/2021,49868,OCCUPATIONAL HEALTH,13/05/2021,0,1808,1808,HR Services,Occupational Health,60111
http://statistics.data.gov.uk/id/local-authority/12UE,Huntingdonshire District Council,200909,WRIGHTWAY HEALTH LTD,49503,01/06/2021,52083,OCCUPATIONAL HEALTH,24/06/2021,0,1808,1808,HR Services,Occupational Health,60111
http://statistics.data.gov.uk/id/local-authority/12UE,Huntingdonshire District Council,200909,WRIGHTWAY HEALTH LTD,49504,30/04/2021,50824,OCCUPATIONAL HEALTH,17/06/2021,0,1808,1808,HR Services,Occupational Health,60111
http://statistics.data.gov.uk/id/local-authority/12UE,Huntingdonshire District Council,200054.01,APSE,48465,17/05/2021,2122/525,TRAINING,10/06/2021,70,350,420,Active Lifestyles Gen Mng't,Staff Development And Training,60115
http://statistics.data.gov.uk/id/local-authority/12UE,Huntingdonshire District Council,202322,BOOKBOON.COM LTD,46236,29/03/2021,14007,E-LEARNING,22/04/2021,2800,14000,16800,Covid-19,Staff Development And Training,60115
http://statistics.data.gov.uk/id/local-authority/12UE,Huntingdonshire District Council,201474,APEX TRAINING CENTRES (UK) LTD,49446,09/11/2020,14182,TRAINING,10/06/2021,185,925,1110,Domestic Waste Collection,Staff Development And Training,60115
http://statistics.data.gov.uk/id/local-authority/12UE,Huntingdonshire District Council,201474,APEX TRAINING CENTRES (UK) LTD,49446,09/11/2020,14182,TRAINING,10/06/2021,0,117.75,117.75,Domestic Waste Collection,Staff Development And Training,60115
http://statistics.data.gov.uk/id/local-authority/12UE,Huntingdonshire District Council,201474,APEX TRAINING CENTRES (UK) LTD,48067,06/05/2021,16483,TRAINING,03/06/2021,87.59,437.95,525.54,Domestic Waste Collection,Staff Development And Training,60115
http://statistics.data.gov.uk/id/local-authority/12UE,Huntingdonshire District Council,200091,BEDFORD COLLEGE BEDFORD COLLEGE,48238,27/04/2021,60008337,TRAINING,20/05/2021,0,2964,2964,HR Services,Staff Development And Training,60115
http://statistics.data.gov.uk/id/local-authority/12UE,Huntingdonshire District Council,202476,THE HUB EVENTS LTD,48002,27/04/2021,INV-21/9281,TRAINING,20/05/2021,208,1040,1248,HR Services,Staff Development And Training,60115
http://statistics.data.gov.uk/id/local-authority/12UE,Huntingdonshire District Council,202514,WEST MIDLANDS EMPLOYERS,45569,12/03/2021,21244,HR INSPIRE PEOPLE,08/04/2021,140,700,840,HR Services,Staff Development And Training,60115
http://statistics.data.gov.uk/id/local-authority/12UE,Huntingdonshire District Council,200054.01,APSE,48465,17/05/2021,2122/525,TRAINING,10/06/2021,35,175,210,HR Services,Staff Development And Training,60115
http://statistics.data.gov.uk/id/local-authority/12UE,Huntingdonshire District Council,200195,CIPFA BUSINESS LIMITED CIPFA BUSINESS LIMITED,45977,19/03/2021,3158502,TRAINING,15/04/2021,69,345,414,HR Services,Staff Development And Training,60115
http://statistics.data.gov.uk/id/local-authority/12UE,Huntingdonshire District Council,201510,ITONLINELEARNING LTD,45705,18/03/2021,ITOL1028082,3CICT IT LEARNING,15/04/2021,132.5,662.5,795,IMD Shared Service,Staff Development And Training,60115
http://statistics.data.gov.uk/id/local-authority/12UE,Huntingdonshire District Council,201836,CORE LEARNING SERVICES LTD,46438,30/03/2021,2604,LICENCE,22/04/2021,220,1100,1320,Cambridge City Business Case ,Staff Development And Training,60115
http://statistics.data.gov.uk/id/local-authority/12UE,Huntingdonshire District Council,202486,ELITE TRAINING & CONSULTANCY (SCOTLAND) LTD,50037,18/05/2021,9270,TRAINING,24/06/2021,79,395,474,Cambridge City Business Case ,Staff Development And Training,60115
http://statistics.data.gov.uk/id/local-authority/12UE,Huntingdonshire District Council,202486,ELITE TRAINING & CONSULTANCY (SCOTLAND) LTD,50037,18/05/2021,9270,TRAINING,24/06/2021,79,395,474,Cambridge City Business Case ,Staff Development And Training,60115
http://statistics.data.gov.uk/id/local-authority/12UE,Huntingdonshire District Council,202486,ELITE TRAINING & CONSULTANCY (SCOTLAND) LTD,50039,14/06/2021,9332,TRAINING,24/06/2021,79,395,474,Cambridge City Business Case ,Staff Development And Training,60115
http://statistics.data.gov.uk/id/local-authority/12UE,Huntingdonshire District Council,202486,ELITE TRAINING & CONSULTANCY (SCOTLAND) LTD,50039,14/06/2021,9332,TRAINING,24/06/2021,79,395,474,Cambridge City Business Case ,Staff Development And Training,60115
http://statistics.data.gov.uk/id/local-authority/12UE,Huntingdonshire District Council,200653,QA LIMITED QA LIMITED,49012,25/05/2021,QA-SIN-000018363,TRAINING,17/06/2021,313.32,1566.6,1879.92,HDC Business Case ,Staff Development And Training,60115
http://statistics.data.gov.uk/id/local-authority/12UE,Huntingdonshire District Council,200614,PHOENIX SOFTWARE LTD PHOENIX SOFTWARE LTD,45848,19/03/2021,OP/I892412,TRAINING,15/04/2021,80.51,402.55,483.06,HDC Business Case ,Staff Development And Training,60115
http://statistics.data.gov.uk/id/local-authority/12UE,Huntingdonshire District Council,200614,PHOENIX SOFTWARE LTD PHOENIX SOFTWARE LTD,45848,19/03/2021,OP/I892412,TRAINING,15/04/2021,78.41,392.04,470.45,HDC Business Case ,Staff Development And Training,60115
http://statistics.data.gov.uk/id/local-authority/12UE,Huntingdonshire District Council,200401,IDOX IDOX,45883,23/03/2021,7032711,TRAINING,15/04/2021,80,400,480,HDC Business Case ,Staff Development And Training,60115
http://statistics.data.gov.uk/id/local-authority/12UE,Huntingdonshire District Council,202513,CV-LIBRARY LTD,46257,09/03/2021,337285,STAFF RECRUITMENT,08/04/2021,259.9,1299.5,1559.4,HR Services,Staff Recruitment Costs,60116
http://statistics.data.gov.uk/id/local-authority/12UE,Huntingdonshire District Council,202513,CV-LIBRARY LTD,49730,15/06/2021,352753,BRANDED CREDITS,17/06/2021,200,1000,1200,HR Services,Staff Recruitment Costs,60116
http://statistics.data.gov.uk/id/local-authority/12UE,Huntingdonshire District Council,202552,NOIR CONSULTING LTD,46828,06/04/2021,SI-13615,RECRUITMENT,22/04/2021,1127.67,5638.35,6766.02,IMD Shared Service,Staff Recruitment Costs,60116
http://statistics.data.gov.uk/id/local-authority/12UE,Huntingdonshire District Council,202504,IO ASSOCIATES TRADING DIVISION OF PRECISION RESOURCE GROUP LTD,49781,07/06/2021,5581,REDACTED,17/06/2021,596.43,2982.15,3578.58,Housing Policy R&D,Staff Recruitment Costs,60116
http://statistics.data.gov.uk/id/local-authority/12UE,Huntingdonshire District Council,200149,CAMBRIDGE CITY COUNCIL CAMBRIDGE CITY COUNCIL,49559,14/04/2021,12057400,STAFF RECHARGE,17/06/2021,1860.04,9300.2,11160.24,IMD Shared Service,Staff Other Expenses (Payroll),60122
http://statistics.data.gov.uk/id/local-authority/12UE,Huntingdonshire District Council,200149,CAMBRIDGE CITY COUNCIL CAMBRIDGE CITY COUNCIL,49559,14/04/2021,12057400,STAFF RECHARGE,17/06/2021,1550,7750,9300,IMD Shared Service,Staff Other Expenses (Payroll),60122
http://statistics.data.gov.uk/id/local-authority/12UE,Huntingdonshire District Council,200415,INSTITUTE OF LICENSING(EVENTS) LIMITED INSTITUTE OF LICENSING(EVENTS) LIMITED,49379,01/06/2021,EVE33235,TRAINING,24/06/2021,66,330,396,HR Services,Member Training,60123
http://statistics.data.gov.uk/id/local-authority/12UE,Huntingdonshire District Council,202523,RYDAL UTILITIES LTD,47229,12/04/2021,INV-0194,EASTFIELD HOUSE,22/04/2021,5948.03,29740.14,35688.17,Bldg Efficiency - Salix Funding,Maintenance - Building,60201
http://statistics.data.gov.uk/id/local-authority/12UE,Huntingdonshire District Council,202523,RYDAL UTILITIES LTD,47230,12/04/2021,INV-0195,CIVIC SUITE LIGHTING,22/04/2021,1611.4,8057,9668.4,Bldg Efficiency - Salix Funding,Maintenance - Building,60201
http://statistics.data.gov.uk/id/local-authority/12UE,Huntingdonshire District Council,200305,FORGE LEISURE LTD FORGE LEISURE LTD,46007,23/03/2021,12863,OL ST NEOTS,15/04/2021,474.8,2374,2848.8,Bldg Efficiency - Salix Funding,Maintenance - Building,60201
http://statistics.data.gov.uk/id/local-authority/12UE,Huntingdonshire District Council,200542,MIRAMAR ENGINEERING LTD MIRAMAR ENGINEERING LTD,49148,01/06/2021,5546,OL HUNTINGDON,24/06/2021,276,1380,1656,Leisure Cents - Future Improve,Maintenance - Building,60201
http://statistics.data.gov.uk/id/local-authority/12UE,Huntingdonshire District Council,200542,MIRAMAR ENGINEERING LTD MIRAMAR ENGINEERING LTD,49148,01/06/2021,5546,OL HUNTINGDON,24/06/2021,88,440,528,Leisure Cents - Future Improve,Maintenance - Building,60201
http://statistics.data.gov.uk/id/local-authority/12UE,Huntingdonshire District Council,200542,MIRAMAR ENGINEERING LTD MIRAMAR ENGINEERING LTD,49148,01/06/2021,5546,OL HUNTINGDON,24/06/2021,16,80,96,Leisure Cents - Future Improve,Maintenance - Building,60201
http://statistics.data.gov.uk/id/local-authority/12UE,Huntingdonshire District Council,200542,MIRAMAR ENGINEERING LTD MIRAMAR ENGINEERING LTD,49246,01/06/2021,5544,OL ST IVES,24/06/2021,128,640,768,Leisure Cents - Future Improve,Maintenance - Building,60201
http://statistics.data.gov.uk/id/local-authority/12UE,Huntingdonshire District Council,200542,MIRAMAR ENGINEERING LTD MIRAMAR ENGINEERING LTD,49246,01/06/2021,5544,OL ST IVES,24/06/2021,78,390,468,Leisure Cents - Future Improve,Maintenance - Building,60201
http://statistics.data.gov.uk/id/local-authority/12UE,Huntingdonshire District Council,200542,MIRAMAR ENGINEERING LTD MIRAMAR ENGINEERING LTD,49246,01/06/2021,5544,OL ST IVES,24/06/2021,60,300,360,Leisure Cents - Future Improve,Maintenance - Building,60201
http://statistics.data.gov.uk/id/local-authority/12UE,Huntingdonshire District Council,200542,MIRAMAR ENGINEERING LTD MIRAMAR ENGINEERING LTD,49246,01/06/2021,5544,OL ST IVES,24/06/2021,60,300,360,Leisure Cents - Future Improve,Maintenance - Building,60201
http://statistics.data.gov.uk/id/local-authority/12UE,Huntingdonshire District Council,200542,MIRAMAR ENGINEERING LTD MIRAMAR ENGINEERING LTD,49165,01/06/2021,5545,OL RAMSEY,24/06/2021,88,440,528,Leisure Cents - Future Improve,Maintenance - Building,60201
http://statistics.data.gov.uk/id/local-authority/12UE,Huntingdonshire District Council,200542,MIRAMAR ENGINEERING LTD MIRAMAR ENGINEERING LTD,49165,01/06/2021,5545,OL RAMSEY,24/06/2021,72,360,432,Leisure Cents - Future Improve,Maintenance - Building,60201
http://statistics.data.gov.uk/id/local-authority/12UE,Huntingdonshire District Council,200542,MIRAMAR ENGINEERING LTD MIRAMAR ENGINEERING LTD,49266,01/06/2021,5547,OL HUNTINGDON,24/06/2021,68,340,408,Leisure Cents - Future Improve,Maintenance - Building,60201
http://statistics.data.gov.uk/id/local-authority/12UE,Huntingdonshire District Council,200542,MIRAMAR ENGINEERING LTD MIRAMAR ENGINEERING LTD,49266,01/06/2021,5547,OL HUNTINGDON,24/06/2021,24,120,144,Leisure Cents - Future Improve,Maintenance - Building,60201
http://statistics.data.gov.uk/id/local-authority/12UE,Huntingdonshire District Council,200542,MIRAMAR ENGINEERING LTD MIRAMAR ENGINEERING LTD,49266,01/06/2021,5547,OL HUNTINGDON,24/06/2021,15,75,90,Leisure Cents - Future Improve,Maintenance - Building,60201
http://statistics.data.gov.uk/id/local-authority/12UE,Huntingdonshire District Council,200542,MIRAMAR ENGINEERING LTD MIRAMAR ENGINEERING LTD,49266,01/06/2021,5547,OL HUNTINGDON,24/06/2021,15,75,90,Leisure Cents - Future Improve,Maintenance - Building,60201
http://statistics.data.gov.uk/id/local-authority/12UE,Huntingdonshire District Council,201660,TOTAL ENVIRONMENTAL COMPLIANCE LTD,47062,19/04/2021,37954,OL HUNTINGDON,13/05/2021,88.4,442,530.4,Leisure Cents - Future Improve,Maintenance - Building,60201
http://statistics.data.gov.uk/id/local-authority/12UE,Huntingdonshire District Council,200339,GEZE  UK LTD GEZE  UK LTD,48387,14/05/2021,905123160,OL ST NEOTS,10/06/2021,673.62,3368.09,4041.71,Sn Leis C - Gen Improve (Cs),Maintenance - Building,60201
http://statistics.data.gov.uk/id/local-authority/12UE,Huntingdonshire District Council,200542,MIRAMAR ENGINEERING LTD MIRAMAR ENGINEERING LTD,47975,05/05/2021,5448,OL ST NEOTS,27/05/2021,169,845,1014,Sn Leis C - Gen Improve (Cs),Maintenance - Building,60201
http://statistics.data.gov.uk/id/local-authority/12UE,Huntingdonshire District Council,200427,J A K  SYSTEMS LTD J A K SYSTEMS LTD,46176,29/03/2021,13071,OL ST IVES,22/04/2021,233.4,1167,1400.4,St Ivo - General Improve (Cs),Maintenance - Building,60201
http://statistics.data.gov.uk/id/local-authority/12UE,Huntingdonshire District Council,202372,SUPPORT IN SPORT (UK) LTD,49166,25/05/2021,21259,OL RAMSEY,17/06/2021,49680.22,248401.1,298081.32,One Leisure Ramsey 3G,Maintenance - Building,60201
http://statistics.data.gov.uk/id/local-authority/12UE,Huntingdonshire District Council,202372,SUPPORT IN SPORT (UK) LTD,47359,20/04/2021,21176,OL RAMSEY,13/05/2021,26239.67,131198.37,157438.04,One Leisure Ramsey 3G,Maintenance - Building,60201
http://statistics.data.gov.uk/id/local-authority/12UE,Huntingdonshire District Council,200690,ROBINSON LOW FRANCIS LLP ROBINSON LOW FRANCIS LLP,47489,26/04/2021,SIN060885,CONSULTANCY,20/05/2021,352.5,1762.5,2115,One Leisure Ramsey 3G,Maintenance - Building,60201
http://statistics.data.gov.uk/id/local-authority/12UE,Huntingdonshire District Council,200429,J BREHENY CIVIL ENGINEERING LTD J BREHENY CIVIL ENGINEERING LTD,46432,01/04/2021,HM/5106/33969,MINOR WORKS FRAMEWORK,29/04/2021,199.68,998.4,1198.08,Energy Efficiency Works at Commercial Properties,Maintenance - Building,60201
http://statistics.data.gov.uk/id/local-authority/12UE,Huntingdonshire District Council,200429,J BREHENY CIVIL ENGINEERING LTD J BREHENY CIVIL ENGINEERING LTD,46432,01/04/2021,HM/5106/33969,MINOR WORKS FRAMEWORK,29/04/2021,291.84,1459.2,1751.04,Energy Efficiency Works at Commercial Properties,Maintenance - Building,60201
http://statistics.data.gov.uk/id/local-authority/12UE,Huntingdonshire District Council,202515,PENTACO CONSTRUCTION LTD,47994,07/05/2021,P/2559,OL ST IVES,03/06/2021,22253.75,111268.75,133522.5,OL St Ives Changing Rooms,Maintenance - Building,60201
http://statistics.data.gov.uk/id/local-authority/12UE,Huntingdonshire District Council,202515,PENTACO CONSTRUCTION LTD,46645,01/04/2021,P2552,OL ST IVES,15/04/2021,21256.25,106281.25,127537.5,OL St Ives Changing Rooms,Maintenance - Building,60201
http://statistics.data.gov.uk/id/local-authority/12UE,Huntingdonshire District Council,202092,VARSITY CONSULTING LTD,47631,30/04/2021,19031-003,CONSULTANCY,13/05/2021,300,1500,1800,OL St Ives Changing Rooms,Maintenance - Building,60201
http://statistics.data.gov.uk/id/local-authority/12UE,Huntingdonshire District Council,201486,CENTRICA BUSINESS SOLUTIONS UK LTD,48713,20/05/2021,21501907,MAINTENANCE COVER,17/06/2021,2457.73,12288.67,14746.4,OLH - Site & Centre Management,Maintenance - Building,60201
http://statistics.data.gov.uk/id/local-authority/12UE,Huntingdonshire District Council,201660,TOTAL ENVIRONMENTAL COMPLIANCE LTD,49770,22/04/2021,38821,LEGIONELLA MONITORING,17/06/2021,285.25,1426.25,1711.5,OLH - Site & Centre Management,Maintenance - Building,60201
http://statistics.data.gov.uk/id/local-authority/12UE,Huntingdonshire District Council,200772,TEMPLE LIFTS LIMITED TEMPLE LIFTS LIMITED,48352,07/05/2021,552456,EQUIPMENT MAINTENANCE,03/06/2021,75,375,450,OLH - Site & Centre Management,Maintenance - Building,60201
http://statistics.data.gov.uk/id/local-authority/12UE,Huntingdonshire District Council,200580,NOVUS COMPLIANCE SERVICES LTD NOVUS COMPLIANCE SERVICES LTD,47610,26/04/2021,14700,OL HUNTINGDON,20/05/2021,269.1,1345.5,1614.6,OLH - Site & Centre Management,Maintenance - Building,60201
http://statistics.data.gov.uk/id/local-authority/12UE,Huntingdonshire District Council,201660,TOTAL ENVIRONMENTAL COMPLIANCE LTD,48874,26/05/2021,38547,EASTFIELD HOUSE,17/06/2021,35,175,210,OLH - Site & Centre Management,Maintenance - Building,60201
http://statistics.data.gov.uk/id/local-authority/12UE,Huntingdonshire District Council,200580,NOVUS COMPLIANCE SERVICES LTD NOVUS COMPLIANCE SERVICES LTD,48439,14/04/2021,14579,PA TESTING,20/05/2021,78.92,394.59,473.51,OLH - Site & Centre Management,Maintenance - Building,60201
http://statistics.data.gov.uk/id/local-authority/12UE,Huntingdonshire District Council,200694,ROGER WILSON ELECTRONICS ROGER WILSON ELECTRONICS,49014,31/05/2021,10612,OL HUNTINGDON,10/06/2021,66,330,396,OLH - Site & Centre Management,Maintenance - Building,60201
http://statistics.data.gov.uk/id/local-authority/12UE,Huntingdonshire District Council,200305,FORGE LEISURE LTD FORGE LEISURE LTD,47025,20/04/2021,12907,OL HUNTINGDON,13/05/2021,57.44,287.2,344.64,OLH - Site & Centre Management,Maintenance - Building,60201
http://statistics.data.gov.uk/id/local-authority/12UE,Huntingdonshire District Council,200542,MIRAMAR ENGINEERING LTD MIRAMAR ENGINEERING LTD,46254,29/03/2021,5312,OL HUNTINGDON,22/04/2021,50.18,250.91,301.09,OLH - Site & Centre Management,Maintenance - Building,60201
http://statistics.data.gov.uk/id/local-authority/12UE,Huntingdonshire District Council,201660,TOTAL ENVIRONMENTAL COMPLIANCE LTD,49770,22/04/2021,38821,LEGIONELLA MONITORING,17/06/2021,165.3,826.5,991.8,OLR - Site & Centre Management,Maintenance - Building,60201
http://statistics.data.gov.uk/id/local-authority/12UE,Huntingdonshire District Council,201660,TOTAL ENVIRONMENTAL COMPLIANCE LTD,48874,26/05/2021,38547,EASTFIELD HOUSE,17/06/2021,35,175,210,OLR - Site & Centre Management,Maintenance - Building,60201
http://statistics.data.gov.uk/id/local-authority/12UE,Huntingdonshire District Council,200580,NOVUS COMPLIANCE SERVICES LTD NOVUS COMPLIANCE SERVICES LTD,47611,22/04/2021,14654,OL RAMSEY,20/05/2021,137.8,689,826.8,OLR - Site & Centre Management,Maintenance - Building,60201
http://statistics.data.gov.uk/id/local-authority/12UE,Huntingdonshire District Council,200232,DCRS LTD DCRS LTD,48837,24/05/2021,247682,OL RAMSEY,17/06/2021,132.4,662,794.4,OLR - Site & Centre Management,Maintenance - Building,60201
http://statistics.data.gov.uk/id/local-authority/12UE,Huntingdonshire District Council,200580,NOVUS COMPLIANCE SERVICES LTD NOVUS COMPLIANCE SERVICES LTD,47612,22/04/2021,14653,OL HUNTINGDON,20/05/2021,70.2,351,421.2,OLR - Site & Centre Management,Maintenance - Building,60201
http://statistics.data.gov.uk/id/local-authority/12UE,Huntingdonshire District Council,200542,MIRAMAR ENGINEERING LTD MIRAMAR ENGINEERING LTD,48300,25/01/2021,5083,OL RAMSEY,20/05/2021,67,335,402,OLR - Site & Centre Management,Maintenance - Building,60201
http://statistics.data.gov.uk/id/local-authority/12UE,Huntingdonshire District Council,200580,NOVUS COMPLIANCE SERVICES LTD NOVUS COMPLIANCE SERVICES LTD,49610,18/05/2021,15052,OL RAMSEY,17/06/2021,66.24,331.2,397.44,OLR - Site & Centre Management,Maintenance - Building,60201
http://statistics.data.gov.uk/id/local-authority/12UE,Huntingdonshire District Council,200772,TEMPLE LIFTS LIMITED TEMPLE LIFTS LIMITED,48352,07/05/2021,552456,EQUIPMENT MAINTENANCE,03/06/2021,75,375,450,OLSI - Burgess Hall,Maintenance - Building,60201
http://statistics.data.gov.uk/id/local-authority/12UE,Huntingdonshire District Council,201486,CENTRICA BUSINESS SOLUTIONS UK LTD,48714,20/05/2021,21501912,OL ST IVES,17/06/2021,2457.73,12288.67,14746.4,OLSI - Site & Centre Management,Maintenance - Building,60201
http://statistics.data.gov.uk/id/local-authority/12UE,Huntingdonshire District Council,201660,TOTAL ENVIRONMENTAL COMPLIANCE LTD,49770,22/04/2021,38821,LEGIONELLA MONITORING,17/06/2021,247.9,1239.5,1487.4,OLSI - Site & Centre Management,Maintenance - Building,60201
http://statistics.data.gov.uk/id/local-authority/12UE,Huntingdonshire District Council,200772,TEMPLE LIFTS LIMITED TEMPLE LIFTS LIMITED,48352,07/05/2021,552456,EQUIPMENT MAINTENANCE,03/06/2021,150,750,900,OLSI - Site & Centre Management,Maintenance - Building,60201
http://statistics.data.gov.uk/id/local-authority/12UE,Huntingdonshire District Council,201668,SIG ROOFING SUPPLIES LTD,49899,22/06/2021,PROFORMA 3291/00000008,OL ST IVES,24/06/2021,130.58,652.92,783.5,OLSI - Site & Centre Management,Maintenance - Building,60201
http://statistics.data.gov.uk/id/local-authority/12UE,Huntingdonshire District Council,201668,SIG ROOFING SUPPLIES LTD,49899,22/06/2021,PROFORMA 3291/00000008,OL ST IVES,24/06/2021,88.85,444.27,533.12,OLSI - Site & Centre Management,Maintenance - Building,60201
http://statistics.data.gov.uk/id/local-authority/12UE,Huntingdonshire District Council,200679,RICHARD SISTROM PAINTING & DECORATING RICHARD SISTROM PAINTING & DECORATING,45955,21/03/2021,87,OL ST IVES,15/04/2021,0,885,885,OLSI - Site & Centre Management,Maintenance - Building,60201
http://statistics.data.gov.uk/id/local-authority/12UE,Huntingdonshire District Council,200694,ROGER WILSON ELECTRONICS ROGER WILSON ELECTRONICS,47731,01/05/2021,10592,OL ST IVES,13/05/2021,164.16,820.79,984.95,OLSI - Site & Centre Management,Maintenance - Building,60201
http://statistics.data.gov.uk/id/local-authority/12UE,Huntingdonshire District Council,200580,NOVUS COMPLIANCE SERVICES LTD NOVUS COMPLIANCE SERVICES LTD,48740,14/04/2021,14576,PA TESTING,27/05/2021,134.28,671.4,805.68,OLSI - Site & Centre Management,Maintenance - Building,60201
http://statistics.data.gov.uk/id/local-authority/12UE,Huntingdonshire District Council,200908,MONOWA OPERABLE WALL SYSTEMS,47958,04/05/2021,3916,OL ST IVES,27/05/2021,99,495,594,OLSI - Site & Centre Management,Maintenance - Building,60201
http://statistics.data.gov.uk/id/local-authority/12UE,Huntingdonshire District Council,200542,MIRAMAR ENGINEERING LTD MIRAMAR ENGINEERING LTD,46082,16/03/2021,5273,OL ST IVES,08/04/2021,81.32,406.59,487.91,OLSI - Site & Centre Management,Maintenance - Building,60201
http://statistics.data.gov.uk/id/local-authority/12UE,Huntingdonshire District Council,200694,ROGER WILSON ELECTRONICS ROGER WILSON ELECTRONICS,49590,12/06/2021,10621,OL ST IVES,24/06/2021,71.6,358,429.6,OLSI - Site & Centre Management,Maintenance - Building,60201
http://statistics.data.gov.uk/id/local-authority/12UE,Huntingdonshire District Council,200580,NOVUS COMPLIANCE SERVICES LTD NOVUS COMPLIANCE SERVICES LTD,49606,18/05/2021,15051,OL ST IVES,17/06/2021,67.68,338.4,406.08,OLSI - Site & Centre Management,Maintenance - Building,60201
http://statistics.data.gov.uk/id/local-authority/12UE,Huntingdonshire District Council,202250,AMITI LTD,48791,22/05/2021,3082,OL ST IVES,17/06/2021,58.2,291,349.2,OLSI - Site & Centre Management,Maintenance - Building,60201
http://statistics.data.gov.uk/id/local-authority/12UE,Huntingdonshire District Council,201660,TOTAL ENVIRONMENTAL COMPLIANCE LTD,49770,22/04/2021,38821,LEGIONELLA MONITORING,17/06/2021,188.9,944.5,1133.4,OLSIO - Site & Centre Management,Maintenance - Building,60201
http://statistics.data.gov.uk/id/local-authority/12UE,Huntingdonshire District Council,200580,NOVUS COMPLIANCE SERVICES LTD NOVUS COMPLIANCE SERVICES LTD,48724,20/05/2021,15136,FIXED WIRE TESTING,17/06/2021,235.3,1176.5,1411.8,OLSIO - Site & Centre Management,Maintenance - Building,60201
http://statistics.data.gov.uk/id/local-authority/12UE,Huntingdonshire District Council,200694,ROGER WILSON ELECTRONICS ROGER WILSON ELECTRONICS,49534,09/06/2021,10619,OL ST IVES,17/06/2021,189.56,947.8,1137.36,OLSIO - Site & Centre Management,Maintenance - Building,60201
http://statistics.data.gov.uk/id/local-authority/12UE,Huntingdonshire District Council,200542,MIRAMAR ENGINEERING LTD MIRAMAR ENGINEERING LTD,48334,25/01/2021,5085,OL ST IVES,20/05/2021,67,335,402,OLSIO - Site & Centre Management,Maintenance - Building,60201
http://statistics.data.gov.uk/id/local-authority/12UE,Huntingdonshire District Council,201660,TOTAL ENVIRONMENTAL COMPLIANCE LTD,49770,22/04/2021,38821,LEGIONELLA MONITORING,17/06/2021,210.1,1050.5,1260.6,OLSN - Site & Centre Management,Maintenance - Building,60201
http://statistics.data.gov.uk/id/local-authority/12UE,Huntingdonshire District Council,200580,NOVUS COMPLIANCE SERVICES LTD NOVUS COMPLIANCE SERVICES LTD,49604,18/05/2021,15056,FIXED WIRE TESTING,17/06/2021,938.6,4693,5631.6,OLSN - Site & Centre Management,Maintenance - Building,60201
http://statistics.data.gov.uk/id/local-authority/12UE,Huntingdonshire District Council,201635,HIGHWAY ROAD SERVICES LTD,48881,26/05/2021,1304,OL ST NEOTS,03/06/2021,423.4,2117,2540.4,OLSN - Site & Centre Management,Maintenance - Building,60201
http://statistics.data.gov.uk/id/local-authority/12UE,Huntingdonshire District Council,200694,ROGER WILSON ELECTRONICS ROGER WILSON ELECTRONICS,47730,01/05/2021,10593,OL ST NEOTS,13/05/2021,90.8,454.02,544.82,OLSN - Site & Centre Management,Maintenance - Building,60201
http://statistics.data.gov.uk/id/local-authority/12UE,Huntingdonshire District Council,200580,NOVUS COMPLIANCE SERVICES LTD NOVUS COMPLIANCE SERVICES LTD,46844,12/04/2021,14546,OL ST NEOTS,06/05/2021,64.55,322.73,387.28,OLSN - Site & Centre Management,Maintenance - Building,60201
http://statistics.data.gov.uk/id/local-authority/12UE,Huntingdonshire District Council,200694,ROGER WILSON ELECTRONICS ROGER WILSON ELECTRONICS,49083,31/05/2021,10613,OL ST NEOTS,10/06/2021,53.2,266,319.2,OLSN - Site & Centre Management,Maintenance - Building,60201
http://statistics.data.gov.uk/id/local-authority/12UE,Huntingdonshire District Council,200427,J A K  SYSTEMS LTD J A K SYSTEMS LTD,48496,18/05/2021,13244,OL ST NEOTS,10/06/2021,129.21,646.06,775.27,OLSN - Swimming,Maintenance - Building,60201
http://statistics.data.gov.uk/id/local-authority/12UE,Huntingdonshire District Council,201660,TOTAL ENVIRONMENTAL COMPLIANCE LTD,49770,22/04/2021,38821,LEGIONELLA MONITORING,17/06/2021,76.5,382.5,459,Paxton Pits,Maintenance - Building,60201
http://statistics.data.gov.uk/id/local-authority/12UE,Huntingdonshire District Council,201660,TOTAL ENVIRONMENTAL COMPLIANCE LTD,49770,22/04/2021,38821,LEGIONELLA MONITORING,17/06/2021,73,365,438,Paxton Pits,Maintenance - Building,60201
http://statistics.data.gov.uk/id/local-authority/12UE,Huntingdonshire District Council,200999,"HARRISONS ELECTRICAL, MECHANICAL AND PROPERTY SERVICES",47708,23/04/2021,36797,PAXTON PITS,20/05/2021,63.8,319,382.8,Paxton Pits,Maintenance - Building,60201
http://statistics.data.gov.uk/id/local-authority/12UE,Huntingdonshire District Council,201660,TOTAL ENVIRONMENTAL COMPLIANCE LTD,49770,22/04/2021,38821,LEGIONELLA MONITORING,17/06/2021,88.8,444,532.8,Parks & Open Spaces,Maintenance - Building,60201
http://statistics.data.gov.uk/id/local-authority/12UE,Huntingdonshire District Council,201660,TOTAL ENVIRONMENTAL COMPLIANCE LTD,49770,22/04/2021,38821,LEGIONELLA MONITORING,17/06/2021,102.8,514,616.8,Parks & Open Spaces,Maintenance - Building,60201
http://statistics.data.gov.uk/id/local-authority/12UE,Huntingdonshire District Council,201660,TOTAL ENVIRONMENTAL COMPLIANCE LTD,49770,22/04/2021,38821,LEGIONELLA MONITORING,17/06/2021,88.8,444,532.8,Parks & Open Spaces,Maintenance - Building,60201
http://statistics.data.gov.uk/id/local-authority/12UE,Huntingdonshire District Council,201660,TOTAL ENVIRONMENTAL COMPLIANCE LTD,49770,22/04/2021,38821,LEGIONELLA MONITORING,17/06/2021,63.7,318.5,382.2,Parks & Open Spaces,Maintenance - Building,60201
http://statistics.data.gov.uk/id/local-authority/12UE,Huntingdonshire District Council,200580,NOVUS COMPLIANCE SERVICES LTD NOVUS COMPLIANCE SERVICES LTD,49641,18/05/2021,15054,SAPLEY PARK PAVILION,17/06/2021,54.6,273,327.6,Parks & Open Spaces,Maintenance - Building,60201
http://statistics.data.gov.uk/id/local-authority/12UE,Huntingdonshire District Council,200526,MASKEARAID LTD MASKEARAID LTD,47429,19/04/2021,74380,OL ST IVES,13/05/2021,110,550,660,Covid-19,Maintenance - Building,60201
http://statistics.data.gov.uk/id/local-authority/12UE,Huntingdonshire District Council,200526,MASKEARAID LTD MASKEARAID LTD,47429,19/04/2021,74380,OL ST IVES,13/05/2021,11.5,57.48,68.98,Covid-19,Maintenance - Building,60201
http://statistics.data.gov.uk/id/local-authority/12UE,Huntingdonshire District Council,200772,TEMPLE LIFTS LIMITED TEMPLE LIFTS LIMITED,48352,07/05/2021,552456,EQUIPMENT MAINTENANCE,03/06/2021,344,1720,2064,MSCP (HUN),Maintenance - Building,60201
http://statistics.data.gov.uk/id/local-authority/12UE,Huntingdonshire District Council,200832,WALKER FIRE UK LTD WALKER FIRE UK LTD,47709,14/04/2021,1162672,MULTI STOREY CAR PARK,06/05/2021,147.28,736.4,883.68,MSCP (HUN),Maintenance - Building,60201
http://statistics.data.gov.uk/id/local-authority/12UE,Huntingdonshire District Council,200451,K & M LIGHTING SERVICES LTD K & M LIGHTING SERVICES LTD,48914,26/05/2021,6422,TEBBUTTS ROAD CAR PARK,17/06/2021,78,390,468,Tebbutts Road (STN),Maintenance - Building,60201
http://statistics.data.gov.uk/id/local-authority/12UE,Huntingdonshire District Council,200075,B S GRAVES ELECTRICAL LTD B S GRAVES ELECTRICAL LTD,46955,06/04/2021,29875,HUNTINGDON BUS STATION,29/04/2021,105.73,528.65,634.38,Huntingdon Bus Station,Maintenance - Building,60201
http://statistics.data.gov.uk/id/local-authority/12UE,Huntingdonshire District Council,200429,J BREHENY CIVIL ENGINEERING LTD J BREHENY CIVIL ENGINEERING LTD,46134,25/03/2021,HM/5106/33916,ST NEOTS MOBILE HOME PARK,22/04/2021,2217.72,11088.6,13306.32,Mobile Home Park,Maintenance - Building,60201
http://statistics.data.gov.uk/id/local-authority/12UE,Huntingdonshire District Council,202523,RYDAL UTILITIES LTD,47229,12/04/2021,INV-0194,EASTFIELD HOUSE,22/04/2021,66.77,333.86,400.63,Eastfield House,Maintenance - Building,60201
http://statistics.data.gov.uk/id/local-authority/12UE,Huntingdonshire District Council,201660,TOTAL ENVIRONMENTAL COMPLIANCE LTD,49770,22/04/2021,38821,LEGIONELLA MONITORING,17/06/2021,123.8,619,742.8,Eastfield House,Maintenance - Building,60201
http://statistics.data.gov.uk/id/local-authority/12UE,Huntingdonshire District Council,200772,TEMPLE LIFTS LIMITED TEMPLE LIFTS LIMITED,48352,07/05/2021,552456,EQUIPMENT MAINTENANCE,03/06/2021,172,860,1032,Eastfield House,Maintenance - Building,60201
http://statistics.data.gov.uk/id/local-authority/12UE,Huntingdonshire District Council,201660,TOTAL ENVIRONMENTAL COMPLIANCE LTD,48809,18/05/2021,38427,EASTFIELD HOUSE,17/06/2021,230,1150,1380,Eastfield House,Maintenance - Building,60201
http://statistics.data.gov.uk/id/local-authority/12UE,Huntingdonshire District Council,201660,TOTAL ENVIRONMENTAL COMPLIANCE LTD,48874,26/05/2021,38547,EASTFIELD HOUSE,17/06/2021,35,175,210,Eastfield House,Maintenance - Building,60201
http://statistics.data.gov.uk/id/local-authority/12UE,Huntingdonshire District Council,201825,EUROSAFE SOLUTIONS LTD,48811,20/05/2021,41722,EASTFIELD HOUSE,17/06/2021,96,480,576,Eastfield House,Maintenance - Building,60201
http://statistics.data.gov.uk/id/local-authority/12UE,Huntingdonshire District Council,201660,TOTAL ENVIRONMENTAL COMPLIANCE LTD,49770,22/04/2021,38821,LEGIONELLA MONITORING,17/06/2021,67.2,336,403.2,Vehicle Maintenance,Maintenance - Building,60201
http://statistics.data.gov.uk/id/local-authority/12UE,Huntingdonshire District Council,201660,TOTAL ENVIRONMENTAL COMPLIANCE LTD,49770,22/04/2021,38821,LEGIONELLA MONITORING,17/06/2021,150.05,750.25,900.3,Pathfinder House,Maintenance - Building,60201
http://statistics.data.gov.uk/id/local-authority/12UE,Huntingdonshire District Council,201660,TOTAL ENVIRONMENTAL COMPLIANCE LTD,49734,22/04/2021,38034,LEGIONELLA MONITORING,17/06/2021,2004.05,10020.25,12024.3,Pathfinder House,Maintenance - Building,60201
http://statistics.data.gov.uk/id/local-authority/12UE,Huntingdonshire District Council,200772,TEMPLE LIFTS LIMITED TEMPLE LIFTS LIMITED,48352,07/05/2021,552456,EQUIPMENT MAINTENANCE,03/06/2021,516,2580,3096,Pathfinder House,Maintenance - Building,60201
http://statistics.data.gov.uk/id/local-authority/12UE,Huntingdonshire District Council,201660,TOTAL ENVIRONMENTAL COMPLIANCE LTD,49402,28/05/2021,38619,PFH,24/06/2021,305,1525,1830,Pathfinder House,Maintenance - Building,60201
http://statistics.data.gov.uk/id/local-authority/12UE,Huntingdonshire District Council,200891,RAFFERTY LIGHTNING PROTECTION LTD,46570,31/03/2021,2023,PFH,22/04/2021,275,1375,1650,Pathfinder House,Maintenance - Building,60201
http://statistics.data.gov.uk/id/local-authority/12UE,Huntingdonshire District Council,201660,TOTAL ENVIRONMENTAL COMPLIANCE LTD,49500,31/05/2021,38763,PFH,24/06/2021,140.5,702.5,843,Pathfinder House,Maintenance - Building,60201
http://statistics.data.gov.uk/id/local-authority/12UE,Huntingdonshire District Council,201660,TOTAL ENVIRONMENTAL COMPLIANCE LTD,48874,26/05/2021,38547,EASTFIELD HOUSE,17/06/2021,35,175,210,Pathfinder House,Maintenance - Building,60201
http://statistics.data.gov.uk/id/local-authority/12UE,Huntingdonshire District Council,200226,DAL-ROD (CAMRIDGESHIRE) DAL-ROD (CAMRIDGESHIRE),48929,26/05/2021,56438,PFH,17/06/2021,130.4,652,782.4,Pathfinder House,Maintenance - Building,60201
http://statistics.data.gov.uk/id/local-authority/12UE,Huntingdonshire District Council,200226,DAL-ROD (CAMRIDGESHIRE) DAL-ROD (CAMRIDGESHIRE),46890,24/03/2021,55882,EASTFIELD HOUSE,22/04/2021,88,440,528,Pathfinder House,Maintenance - Building,60201
http://statistics.data.gov.uk/id/local-authority/12UE,Huntingdonshire District Council,200832,WALKER FIRE UK LTD WALKER FIRE UK LTD,49677,04/05/2021,21760508,PFH,17/06/2021,81.08,405.4,486.48,Pathfinder House,Maintenance - Building,60201
http://statistics.data.gov.uk/id/local-authority/12UE,Huntingdonshire District Council,201825,EUROSAFE SOLUTIONS LTD,48812,20/05/2021,41721,PFH,17/06/2021,70,350,420,Pathfinder House,Maintenance - Building,60201
http://statistics.data.gov.uk/id/local-authority/12UE,Huntingdonshire District Council,200226,DAL-ROD (CAMRIDGESHIRE) DAL-ROD (CAMRIDGESHIRE),47380,26/04/2021,56162,GREASE TRAP MAINTENANCE,20/05/2021,64,320,384,Pathfinder House,Maintenance - Building,60201
http://statistics.data.gov.uk/id/local-authority/12UE,Huntingdonshire District Council,201660,TOTAL ENVIRONMENTAL COMPLIANCE LTD,49403,31/05/2021,38762,PFH,17/06/2021,-305,-1525,-1830,Pathfinder House,Maintenance - Building,60201
http://statistics.data.gov.uk/id/local-authority/12UE,Huntingdonshire District Council,201660,TOTAL ENVIRONMENTAL COMPLIANCE LTD,49735,22/04/2021,38820,RE INVOICE 38034,17/06/2021,-2004.05,-10020.25,-12024.3,Pathfinder House,Maintenance - Building,60201
http://statistics.data.gov.uk/id/local-authority/12UE,Huntingdonshire District Council,201825,EUROSAFE SOLUTIONS LTD,48813,21/05/2021,41755,OAK TREE CENTRE,17/06/2021,134,670,804,Commercial Properties,Maintenance - Building,60201
http://statistics.data.gov.uk/id/local-authority/12UE,Huntingdonshire District Council,200429,J BREHENY CIVIL ENGINEERING LTD J BREHENY CIVIL ENGINEERING LTD,47827,01/04/2021,HM/5106/33973,MINOR WORKS FRAMEWORK,13/05/2021,198.64,993.2,1191.84,Commercial Properties,Maintenance - Building,60201
http://statistics.data.gov.uk/id/local-authority/12UE,Huntingdonshire District Council,202252,VITAL DIRECT LTD,48304,10/05/2021,14018,MAYFIELD ROAD,20/05/2021,110,550,660,Commercial Properties,Maintenance - Building,60201
http://statistics.data.gov.uk/id/local-authority/12UE,Huntingdonshire District Council,202239,ADT FIRE AND SECURITY PLC,49560,01/06/2021,47422326,FIRE ALARM MAINTENANCE,24/06/2021,195,975,1170,Commercial Properties,Maintenance - Building,60201
http://statistics.data.gov.uk/id/local-authority/12UE,Huntingdonshire District Council,202239,ADT FIRE AND SECURITY PLC,49561,01/06/2021,47422327,EMERGENCY LIGHTING MAINTENANCE,24/06/2021,56,280,336,Commercial Properties,Maintenance - Building,60201
http://statistics.data.gov.uk/id/local-authority/12UE,Huntingdonshire District Council,200542,MIRAMAR ENGINEERING LTD MIRAMAR ENGINEERING LTD,46268,29/03/2021,5307,REDACTED,22/04/2021,179.66,898.29,1077.95,Industrial Properties,Maintenance - Building,60201
http://statistics.data.gov.uk/id/local-authority/12UE,Huntingdonshire District Council,200225,DACLA PROPERTY SERVICES DACLA PROPERTY SERVICES,48169,12/05/2021,220,REDACTED,20/05/2021,0,496.32,496.32,Industrial Properties,Maintenance - Building,60201
http://statistics.data.gov.uk/id/local-authority/12UE,Huntingdonshire District Council,200429,J BREHENY CIVIL ENGINEERING LTD J BREHENY CIVIL ENGINEERING LTD,46434,01/04/2021,HM/5106/33971,MINOR WORKS FRAMEWORK,29/04/2021,704.2,3521,4225.2,Industrial Properties,Maintenance - Building,60201
http://statistics.data.gov.uk/id/local-authority/12UE,Huntingdonshire District Council,200429,J BREHENY CIVIL ENGINEERING LTD J BREHENY CIVIL ENGINEERING LTD,46434,01/04/2021,HM/5106/33971,MINOR WORKS FRAMEWORK,29/04/2021,110,550,660,Industrial Properties,Maintenance - Building,60201
http://statistics.data.gov.uk/id/local-authority/12UE,Huntingdonshire District Council,200429,J BREHENY CIVIL ENGINEERING LTD J BREHENY CIVIL ENGINEERING LTD,46432,01/04/2021,HM/5106/33969,MINOR WORKS FRAMEWORK,29/04/2021,187.68,938.4,1126.08,Industrial Properties,Maintenance - Building,60201
http://statistics.data.gov.uk/id/local-authority/12UE,Huntingdonshire District Council,201736,LOCUS SERVICES LTD,47288,21/04/2021,13,REDACTED,13/05/2021,176,880,1056,Industrial Properties,Maintenance - Building,60201
http://statistics.data.gov.uk/id/local-authority/12UE,Huntingdonshire District Council,201660,TOTAL ENVIRONMENTAL COMPLIANCE LTD,49770,22/04/2021,38821,LEGIONELLA MONITORING,17/06/2021,71.25,356.25,427.5,St Ives Enterprise Centre,Maintenance - Building,60201
http://statistics.data.gov.uk/id/local-authority/12UE,Huntingdonshire District Council,201660,TOTAL ENVIRONMENTAL COMPLIANCE LTD,49770,22/04/2021,38821,LEGIONELLA MONITORING,17/06/2021,92.3,461.5,553.8,Hinchingbrooke Country Park,Maintenance - Building,60201
http://statistics.data.gov.uk/id/local-authority/12UE,Huntingdonshire District Council,200324,G4S SECURE SOLUTIONS (UK) LTD G4S SECURE SOLUTIONS (UK) LTD,46577,28/03/2021,90423050,OL HUNTINGDON,15/04/2021,149.25,746.25,895.5,OLH - Site & Centre Management,Fire Assessment And Safety,60205
http://statistics.data.gov.uk/id/local-authority/12UE,Huntingdonshire District Council,200324,G4S SECURE SOLUTIONS (UK) LTD G4S SECURE SOLUTIONS (UK) LTD,46581,28/03/2021,90423051,OL HUNTINGDON,15/04/2021,149.25,746.25,895.5,OLH - Swimming,Fire Assessment And Safety,60205
http://statistics.data.gov.uk/id/local-authority/12UE,Huntingdonshire District Council,200999,"HARRISONS ELECTRICAL, MECHANICAL AND PROPERTY SERVICES",46584,31/03/2021,36721,OL ST IVES,22/04/2021,103.02,515.1,618.12,OLSI - Site & Centre Management,Fire Assessment And Safety,60205
http://statistics.data.gov.uk/id/local-authority/12UE,Huntingdonshire District Council,200999,"HARRISONS ELECTRICAL, MECHANICAL AND PROPERTY SERVICES",46894,08/04/2021,36776,OL ST IVES,06/05/2021,89.44,447.22,536.66,OLSI - Site & Centre Management,Fire Assessment And Safety,60205
http://statistics.data.gov.uk/id/local-authority/12UE,Huntingdonshire District Council,200832,WALKER FIRE UK LTD WALKER FIRE UK LTD,47630,27/04/2021,1159921,OL ST IVES,20/05/2021,86.1,430.52,516.62,OLSI - Site & Centre Management,Fire Assessment And Safety,60205
http://statistics.data.gov.uk/id/local-authority/12UE,Huntingdonshire District Council,200832,WALKER FIRE UK LTD WALKER FIRE UK LTD,47974,27/04/2021,1159950,OL ST IVES,20/05/2021,117.07,585.36,702.43,OLSIO - Site & Centre Management,Fire Assessment And Safety,60205
http://statistics.data.gov.uk/id/local-authority/12UE,Huntingdonshire District Council,200832,WALKER FIRE UK LTD WALKER FIRE UK LTD,47629,26/04/2021,1159252,OL ST NEOTS,20/05/2021,85.46,427.3,512.76,OLSN - Site & Centre Management,Fire Assessment And Safety,60205
http://statistics.data.gov.uk/id/local-authority/12UE,Huntingdonshire District Council,202505,FLEXTRONICS GLOBAL SERVICES (MANCHESTER) LTD,49377,19/05/2021,LEN073122,ICT HARDWARE,10/06/2021,57.33,286.67,344,SCDC Recoverable,#N/A,60245
http://statistics.data.gov.uk/id/local-authority/12UE,Huntingdonshire District Council,200324,G4S SECURE SOLUTIONS (UK) LTD G4S SECURE SOLUTIONS (UK) LTD,48245,05/05/2021,90427026,OL RAMSEY,20/05/2021,134.84,674.21,809.05,OLR - Site & Centre Management,#N/A,60248
http://statistics.data.gov.uk/id/local-authority/12UE,Huntingdonshire District Council,200324,G4S SECURE SOLUTIONS (UK) LTD G4S SECURE SOLUTIONS (UK) LTD,49525,08/06/2021,90429631,OL ST NEOTS,17/06/2021,149.25,746.25,895.5,OLSN - Site & Centre Management,#N/A,60248
http://statistics.data.gov.uk/id/local-authority/12UE,Huntingdonshire District Council,200324,G4S SECURE SOLUTIONS (UK) LTD G4S SECURE SOLUTIONS (UK) LTD,49526,08/06/2021,90429632,KEYHOLDING SERVICES,17/06/2021,149.25,746.25,895.5,OLSN - Swimming,#N/A,60248
http://statistics.data.gov.uk/id/local-authority/12UE,Huntingdonshire District Council,200664,RAPID RESPONSE LOCKSMITHS RAPID RESPONSE LOCKSMITHS,46698,01/04/2021,1609,LOCKS,29/04/2021,56,280,336,Huntingdon Bus Station,#N/A,60248
http://statistics.data.gov.uk/id/local-authority/12UE,Huntingdonshire District Council,200429,J BREHENY CIVIL ENGINEERING LTD J BREHENY CIVIL ENGINEERING LTD,47827,01/04/2021,HM/5106/33973,MINOR WORKS FRAMEWORK,13/05/2021,70,350,420,Commercial Investment Strategy,Responsive Repairs - Building,60267
http://statistics.data.gov.uk/id/local-authority/12UE,Huntingdonshire District Council,200879,AMULET (CHURCHILL SECURITY SERVICES) LTD,49720,30/04/2021,81566,PFH,17/06/2021,1349.02,6745.1,8094.12,Pathfinder House,Security Of Premises,60271
http://statistics.data.gov.uk/id/local-authority/12UE,Huntingdonshire District Council,202481,WINDWARD LTD T/A COTAPLAN,45660,16/03/2021,2976,olsi temp building,08/04/2021,13600,68000,81600,Oak Tree Remedial Work,Site Alterations And Materials,60273
http://statistics.data.gov.uk/id/local-authority/12UE,Huntingdonshire District Council,202481,WINDWARD LTD T/A COTAPLAN,48678,18/05/2021,2990,OAKTREE HEALTH CENTRE,10/06/2021,11900,59500,71400,Oak Tree Remedial Work,Site Alterations And Materials,60273
http://statistics.data.gov.uk/id/local-authority/12UE,Huntingdonshire District Council,200429,J BREHENY CIVIL ENGINEERING LTD J BREHENY CIVIL ENGINEERING LTD,49055,28/05/2021,HM/5106/34170,MINOR WORKS FRAMEWORK,24/06/2021,844.85,4224.23,5069.08,Oak Tree Remedial Work,Site Alterations And Materials,60273
http://statistics.data.gov.uk/id/local-authority/12UE,Huntingdonshire District Council,200429,J BREHENY CIVIL ENGINEERING LTD J BREHENY CIVIL ENGINEERING LTD,49055,28/05/2021,HM/5106/34170,MINOR WORKS FRAMEWORK,24/06/2021,722.4,3612,4334.4,Oak Tree Remedial Work,Site Alterations And Materials,60273
http://statistics.data.gov.uk/id/local-authority/12UE,Huntingdonshire District Council,200879,AMULET (CHURCHILL SECURITY SERVICES) LTD,48838,21/05/2021,81873,OAK TREE CENTRE,17/06/2021,82,410,492,Oak Tree Remedial Work,Site Alterations And Materials,60273
http://statistics.data.gov.uk/id/local-authority/12UE,Huntingdonshire District Council,202409,POD POINT LTD,47887,30/04/2021,1247914,EV CHARGING POINTS,27/05/2021,3383.6,16918.02,20301.62,Parking Strategy,Site Alterations And Materials,60273
http://statistics.data.gov.uk/id/local-authority/12UE,Huntingdonshire District Council,202409,POD POINT LTD,47888,30/04/2021,1247915,EV CHARGING POINTS,27/05/2021,2164.37,10821.87,12986.24,Parking Strategy,Site Alterations And Materials,60273
http://statistics.data.gov.uk/id/local-authority/12UE,Huntingdonshire District Council,202409,POD POINT LTD,47329,23/04/2021,1247758,EV CHARGING POINTS,20/05/2021,1497.27,7486.35,8983.62,Parking Strategy,Site Alterations And Materials,60273
http://statistics.data.gov.uk/id/local-authority/12UE,Huntingdonshire District Council,202409,POD POINT LTD,47589,29/04/2021,1247823,EV CHARGING POINTS,27/05/2021,1399.82,6999.1,8398.92,Parking Strategy,Site Alterations And Materials,60273
http://statistics.data.gov.uk/id/local-authority/12UE,Huntingdonshire District Council,202409,POD POINT LTD,47328,23/04/2021,1247755,EV CHARGING POINTS,20/05/2021,1341.64,6708.18,8049.82,Parking Strategy,Site Alterations And Materials,60273
http://statistics.data.gov.uk/id/local-authority/12UE,Huntingdonshire District Council,202409,POD POINT LTD,47587,29/04/2021,1247822,EV CHARGING POINTS,27/05/2021,1284.75,6423.77,7708.52,Parking Strategy,Site Alterations And Materials,60273
http://statistics.data.gov.uk/id/local-authority/12UE,Huntingdonshire District Council,202409,POD POINT LTD,47625,30/04/2021,1247837,EV CHARGING POINTS,27/05/2021,1179.31,5896.53,7075.84,Parking Strategy,Site Alterations And Materials,60273
http://statistics.data.gov.uk/id/local-authority/12UE,Huntingdonshire District Council,202409,POD POINT LTD,47889,30/04/2021,1247916,EV CHARGING POINTS,27/05/2021,1138.64,5693.18,6831.82,Parking Strategy,Site Alterations And Materials,60273
http://statistics.data.gov.uk/id/local-authority/12UE,Huntingdonshire District Council,202409,POD POINT LTD,47920,30/04/2021,1247936,EV CHARGING POINTS,27/05/2021,1083.3,5416.5,6499.8,Parking Strategy,Site Alterations And Materials,60273
http://statistics.data.gov.uk/id/local-authority/12UE,Huntingdonshire District Council,202508,CABLE TEST LTD,49228,27/05/2021,108734,LOVES FARM,24/06/2021,1623.95,8119.75,9743.7,Lighting - Loves Farm Footpath,Site Alterations And Materials,60273
http://statistics.data.gov.uk/id/local-authority/12UE,Huntingdonshire District Council,202588,CONCEPT ACCOMMODATION LTD,49323,25/05/2021,22053 - DEPOSIT,BUILDING ALTERATIONS,10/06/2021,1068.6,5343,6411.6,Hinchingbrooke Park Management,Site Alterations And Materials,60273
http://statistics.data.gov.uk/id/local-authority/12UE,Huntingdonshire District Council,200429,J BREHENY CIVIL ENGINEERING LTD J BREHENY CIVIL ENGINEERING LTD,46436,01/04/2021,HM/5106/33976,MINOR WORKS FRAMEWORK,29/04/2021,680.6,3403,4083.6,Hinchingbrooke Park Management,Site Alterations And Materials,60273
http://statistics.data.gov.uk/id/local-authority/12UE,Huntingdonshire District Council,200429,J BREHENY CIVIL ENGINEERING LTD J BREHENY CIVIL ENGINEERING LTD,47689,04/05/2021,HM/5106/34065,MINOR WORKS FRAMEWORK,27/05/2021,1551.35,7756.75,9308.1,Parks & Open Spaces,Site Alterations And Materials,60273
http://statistics.data.gov.uk/id/local-authority/12UE,Huntingdonshire District Council,200429,J BREHENY CIVIL ENGINEERING LTD J BREHENY CIVIL ENGINEERING LTD,47689,04/05/2021,HM/5106/34065,MINOR WORKS FRAMEWORK,27/05/2021,63.2,316,379.2,Parks & Open Spaces,Site Alterations And Materials,60273
http://statistics.data.gov.uk/id/local-authority/12UE,Huntingdonshire District Council,200429,J BREHENY CIVIL ENGINEERING LTD J BREHENY CIVIL ENGINEERING LTD,49025,28/05/2021,HM/5106/34166,MINOR WORKS FRAMEWORK,24/06/2021,1551.35,7756.75,9308.1,Parks & Open Spaces,Site Alterations And Materials,60273
http://statistics.data.gov.uk/id/local-authority/12UE,Huntingdonshire District Council,200131,BROXAP LTD BROXAP LTD,47069,20/04/2021,INV274349,SEAT & FIXINGS,13/05/2021,134.8,674,808.8,Parks & Open Spaces,Site Alterations And Materials,60273
http://statistics.data.gov.uk/id/local-authority/12UE,Huntingdonshire District Council,200215,CORNERSTONE BARRISTERS CORNERSTONE BARRISTERS,46424,29/03/2021,149519 29/03/21,PROFESSIONAL SERVICES,22/04/2021,120,600,720,Parks & Open Spaces,Site Alterations And Materials,60273
http://statistics.data.gov.uk/id/local-authority/12UE,Huntingdonshire District Council,202528,Ace Interiors (Cambs) LTD,48354,16/05/2021,1372,CCTV,10/06/2021,299,1495,1794,Cctv Shared Service Hosting,Site Alterations And Materials,60273
http://statistics.data.gov.uk/id/local-authority/12UE,Huntingdonshire District Council,200075,B S GRAVES ELECTRICAL LTD B S GRAVES ELECTRICAL LTD,48076,11/05/2021,29981,CCTV,03/06/2021,167.59,837.94,1005.53,Cctv Shared Service Hosting,Site Alterations And Materials,60273
http://statistics.data.gov.uk/id/local-authority/12UE,Huntingdonshire District Council,200429,J BREHENY CIVIL ENGINEERING LTD J BREHENY CIVIL ENGINEERING LTD,46178,05/02/2021,HM/5106/33707,PLAYGROUND EQUIPMENT WORK,08/04/2021,1119.17,5595.86,6715.03,Sewer Ditches/Village Drains,Site Alterations And Materials,60273
http://statistics.data.gov.uk/id/local-authority/12UE,Huntingdonshire District Council,202059,AQUASERVE MANAGEMENT LTD,46414,31/03/2021,AQMAN21007,OPEN SPACE WORKS,22/04/2021,252.55,1262.77,1515.32,Watercourses,Site Alterations And Materials,60273
http://statistics.data.gov.uk/id/local-authority/12UE,Huntingdonshire District Council,202059,AQUASERVE MANAGEMENT LTD,46096,25/03/2021,AQMAN21009,OPEN SPACE WORKS,22/04/2021,204.14,1020.69,1224.83,Watercourses,Site Alterations And Materials,60273
http://statistics.data.gov.uk/id/local-authority/12UE,Huntingdonshire District Council,202059,AQUASERVE MANAGEMENT LTD,48154,05/05/2021,AQMAN21013,COLNE ROAD,27/05/2021,155.64,778.22,933.86,Watercourses,Site Alterations And Materials,60273
http://statistics.data.gov.uk/id/local-authority/12UE,Huntingdonshire District Council,202059,AQUASERVE MANAGEMENT LTD,47871,30/04/2021,AQMAN21011,OPEN SPACE WORKS,27/05/2021,84.18,420.92,505.1,Watercourses,Site Alterations And Materials,60273
http://statistics.data.gov.uk/id/local-authority/12UE,Huntingdonshire District Council,201138,BORNEY UK LTD,45755,18/03/2021,52908,BANNERS,15/04/2021,316.75,1583.75,1900.5,Covid-19,Signs,60299
http://statistics.data.gov.uk/id/local-authority/12UE,Huntingdonshire District Council,201138,BORNEY UK LTD,48801,20/05/2021,53245,BANNERS,17/06/2021,117,585,702,Covid-19,Signs,60299
http://statistics.data.gov.uk/id/local-authority/12UE,Huntingdonshire District Council,201138,BORNEY UK LTD,48801,20/05/2021,53245,BANNERS,17/06/2021,57.6,288,345.6,Covid-19,Signs,60299
http://statistics.data.gov.uk/id/local-authority/12UE,Huntingdonshire District Council,200429,J BREHENY CIVIL ENGINEERING LTD J BREHENY CIVIL ENGINEERING LTD,47417,01/04/2021,HM/5106/33975,MINOR WORKS FRAMEWORK,29/04/2021,416.35,2081.76,2498.11,IMD Shared Service,Signs Erecting & Removal,60300
http://statistics.data.gov.uk/id/local-authority/12UE,Huntingdonshire District Council,200429,J BREHENY CIVIL ENGINEERING LTD J BREHENY CIVIL ENGINEERING LTD,47417,01/04/2021,HM/5106/33975,MINOR WORKS FRAMEWORK,29/04/2021,314.88,1574.4,1889.28,IMD Shared Service,Signs Erecting & Removal,60300
http://statistics.data.gov.uk/id/local-authority/12UE,Huntingdonshire District Council,200429,J BREHENY CIVIL ENGINEERING LTD J BREHENY CIVIL ENGINEERING LTD,47417,01/04/2021,HM/5106/33975,MINOR WORKS FRAMEWORK,29/04/2021,276.03,1380.16,1656.19,IMD Shared Service,Signs Erecting & Removal,60300
http://statistics.data.gov.uk/id/local-authority/12UE,Huntingdonshire District Council,200429,J BREHENY CIVIL ENGINEERING LTD J BREHENY CIVIL ENGINEERING LTD,47417,01/04/2021,HM/5106/33975,MINOR WORKS FRAMEWORK,29/04/2021,271.94,1359.68,1631.62,IMD Shared Service,Signs Erecting & Removal,60300
http://statistics.data.gov.uk/id/local-authority/12UE,Huntingdonshire District Council,200429,J BREHENY CIVIL ENGINEERING LTD J BREHENY CIVIL ENGINEERING LTD,47417,01/04/2021,HM/5106/33975,MINOR WORKS FRAMEWORK,29/04/2021,254.56,1272.8,1527.36,IMD Shared Service,Signs Erecting & Removal,60300
http://statistics.data.gov.uk/id/local-authority/12UE,Huntingdonshire District Council,200429,J BREHENY CIVIL ENGINEERING LTD J BREHENY CIVIL ENGINEERING LTD,47417,01/04/2021,HM/5106/33975,MINOR WORKS FRAMEWORK,29/04/2021,215.71,1078.56,1294.27,IMD Shared Service,Signs Erecting & Removal,60300
http://statistics.data.gov.uk/id/local-authority/12UE,Huntingdonshire District Council,200429,J BREHENY CIVIL ENGINEERING LTD J BREHENY CIVIL ENGINEERING LTD,47417,01/04/2021,HM/5106/33975,MINOR WORKS FRAMEWORK,29/04/2021,155.39,776.96,932.35,IMD Shared Service,Signs Erecting & Removal,60300
http://statistics.data.gov.uk/id/local-authority/12UE,Huntingdonshire District Council,200429,J BREHENY CIVIL ENGINEERING LTD J BREHENY CIVIL ENGINEERING LTD,47417,01/04/2021,HM/5106/33975,MINOR WORKS FRAMEWORK,29/04/2021,77.7,388.48,466.18,IMD Shared Service,Signs Erecting & Removal,60300
http://statistics.data.gov.uk/id/local-authority/12UE,Huntingdonshire District Council,200913,WAVE  ANGLIAN WATER BUSINESS,48888,26/05/2021,8981650,OL HUNTINGDON,03/06/2021,0,344.55,344.55,OLH - Swimming,Water And Sewerage,60302
http://statistics.data.gov.uk/id/local-authority/12UE,Huntingdonshire District Council,200742,ASTREA ACADEMY TRUST - ST IVO ACADEMY ST IVO SCHOOL,46750,14/04/2021,37SI42,WATER RECHARGES,06/05/2021,0,402.48,402.48,OLSI - Site & Centre Management,Water And Sewerage,60302
http://statistics.data.gov.uk/id/local-authority/12UE,Huntingdonshire District Council,200913,WAVE  ANGLIAN WATER BUSINESS,49580,13/06/2021,9075809,OL ST IVES,24/06/2021,0,366.81,366.81,OLSI - Site & Centre Management,Water And Sewerage,60302
http://statistics.data.gov.uk/id/local-authority/12UE,Huntingdonshire District Council,200913,WAVE  ANGLIAN WATER BUSINESS,46752,13/04/2021,8814395,OL ST IVES,22/04/2021,0,360.37,360.37,OLSI - Site & Centre Management,Water And Sewerage,60302
http://statistics.data.gov.uk/id/local-authority/12UE,Huntingdonshire District Council,200913,WAVE  ANGLIAN WATER BUSINESS,48167,13/05/2021,8932136,OL ST IVES,20/05/2021,0,355.88,355.88,OLSI - Site & Centre Management,Water And Sewerage,60302
http://statistics.data.gov.uk/id/local-authority/12UE,Huntingdonshire District Council,200913,WAVE  ANGLIAN WATER BUSINESS,49167,03/06/2021,9013967,OL ST IVES,10/06/2021,0,614.61,614.61,OLSIO - Site & Centre Management,Water And Sewerage,60302
http://statistics.data.gov.uk/id/local-authority/12UE,Huntingdonshire District Council,200913,WAVE  ANGLIAN WATER BUSINESS,47693,03/05/2021,8892350,OL ST IVES,13/05/2021,0,595.02,595.02,OLSIO - Site & Centre Management,Water And Sewerage,60302
http://statistics.data.gov.uk/id/local-authority/12UE,Huntingdonshire District Council,200913,WAVE  ANGLIAN WATER BUSINESS,46606,07/04/2021,8784647,OL ST IVES,15/04/2021,0,593.79,593.79,OLSIO - Site & Centre Management,Water And Sewerage,60302
http://statistics.data.gov.uk/id/local-authority/12UE,Huntingdonshire District Council,200913,WAVE  ANGLIAN WATER BUSINESS,46605,07/04/2021,8784681,OL ST NEOTS,15/04/2021,0,333.52,333.52,OLSN - Site & Centre Management,Water And Sewerage,60302
http://statistics.data.gov.uk/id/local-authority/12UE,Huntingdonshire District Council,200913,WAVE  ANGLIAN WATER BUSINESS,48907,26/05/2021,8981508,OL ST NEOTS,03/06/2021,0,3476.75,3476.75,OLSN - Swimming,Water And Sewerage,60302
http://statistics.data.gov.uk/id/local-authority/12UE,Huntingdonshire District Council,200913,WAVE  ANGLIAN WATER BUSINESS,47337,26/04/2021,8860231,OL ST NEOTS,06/05/2021,0,589.75,589.75,OLSN - Swimming,Water And Sewerage,60302
http://statistics.data.gov.uk/id/local-authority/12UE,Huntingdonshire District Council,200913,WAVE  ANGLIAN WATER BUSINESS,46161,26/03/2021,8736043,OL ST NEOTS,08/04/2021,0,409.86,409.86,OLSN - Swimming,Water And Sewerage,60302
http://statistics.data.gov.uk/id/local-authority/12UE,Huntingdonshire District Council,200913,WAVE  ANGLIAN WATER BUSINESS,47595,08/03/2021,8624372,PRIORY PARK ST NEOTS,06/05/2021,0,442.63,442.63,Parks & Open Spaces,Water And Sewerage,60302
http://statistics.data.gov.uk/id/local-authority/12UE,Huntingdonshire District Council,200873,AQUAM WATER SERVICES LTD AQUAM WATER SERVICES LTD,49391,01/06/2021,50/1214040,STANDPIPE HIRE,24/06/2021,1040,5200,6240,Street Cleansing,Water And Sewerage,60302
http://statistics.data.gov.uk/id/local-authority/12UE,Huntingdonshire District Council,200873,AQUAM WATER SERVICES LTD AQUAM WATER SERVICES LTD,49391,01/06/2021,50/1214040,STANDPIPE HIRE,24/06/2021,760,3800,4560,Street Cleansing,Water And Sewerage,60302
http://statistics.data.gov.uk/id/local-authority/12UE,Huntingdonshire District Council,200157,CAMBRIDGE WATER PLC CAMBRIDGE WATER PLC,48349,13/05/2021,20502594,WATER & SEWAGE,10/06/2021,1711.12,8555.6,10266.72,Street Cleansing,Water And Sewerage,60302
http://statistics.data.gov.uk/id/local-authority/12UE,Huntingdonshire District Council,200913,WAVE  ANGLIAN WATER BUSINESS,48792,02/04/2021,8773556,ST GERMAINE WALK,27/05/2021,0,400.78,400.78,St Germain Minor (HUN),Water And Sewerage,60302
http://statistics.data.gov.uk/id/local-authority/12UE,Huntingdonshire District Council,200913,WAVE  ANGLIAN WATER BUSINESS,46755,07/04/2021,8783792,CARAVAN SITE,15/04/2021,0,10000,10000,Mobile Home Park,Water And Sewerage,60302
http://statistics.data.gov.uk/id/local-authority/12UE,Huntingdonshire District Council,200913,WAVE  ANGLIAN WATER BUSINESS,46755,07/04/2021,8783792,CARAVAN SITE,15/04/2021,0,2594.74,2594.74,Mobile Home Park,Water And Sewerage,60302
http://statistics.data.gov.uk/id/local-authority/12UE,Huntingdonshire District Council,200913,WAVE  ANGLIAN WATER BUSINESS,47804,07/04/2021,8781083,EASTFIELD HOUSE,06/05/2021,0,831.43,831.43,Eastfield House,Water And Sewerage,60302
http://statistics.data.gov.uk/id/local-authority/12UE,Huntingdonshire District Council,200913,WAVE  ANGLIAN WATER BUSINESS,44269,05/02/2021,8473752,PFH,06/05/2021,0,-1202.75,-1202.75,Pathfinder House,Water And Sewerage,60302
http://statistics.data.gov.uk/id/local-authority/12UE,Huntingdonshire District Council,200363,HAVEN POWER LTD HAVEN POWER LTD,49268,07/06/2021,IN1105229253,OL HUNTINGDON,17/06/2021,334.45,1672.27,2006.72,OLH - Site & Centre Management,Electricity,60303
http://statistics.data.gov.uk/id/local-authority/12UE,Huntingdonshire District Council,200363,HAVEN POWER LTD HAVEN POWER LTD,46460,06/04/2021,IN1105070314,OL HUNTINGDON,15/04/2021,289.52,1447.61,1737.13,OLH - Site & Centre Management,Electricity,60303
http://statistics.data.gov.uk/id/local-authority/12UE,Huntingdonshire District Council,200363,HAVEN POWER LTD HAVEN POWER LTD,48021,06/05/2021,IN1105147314,OL HUNTINGDON,13/05/2021,287.85,1439.23,1727.08,OLH - Site & Centre Management,Electricity,60303
http://statistics.data.gov.uk/id/local-authority/12UE,Huntingdonshire District Council,200278,E-ON ENERGY E-ON ENERGY,49752,02/06/2021,H19E93B5C8,OL HUNTINGDON,17/06/2021,343.12,1715.58,2058.7,OLH - Swimming,Electricity,60303
http://statistics.data.gov.uk/id/local-authority/12UE,Huntingdonshire District Council,200278,E-ON ENERGY E-ON ENERGY,49752,02/06/2021,H19E93B5C8,OL HUNTINGDON,17/06/2021,44.72,223.6,268.32,OLH - Swimming,Electricity,60303
http://statistics.data.gov.uk/id/local-authority/12UE,Huntingdonshire District Council,200278,E-ON ENERGY E-ON ENERGY,47697,02/05/2021,H19CA4A9AA,OL HUNTINGDON,13/05/2021,343.12,1715.58,2058.7,OLH - Swimming,Electricity,60303
http://statistics.data.gov.uk/id/local-authority/12UE,Huntingdonshire District Council,200278,E-ON ENERGY E-ON ENERGY,46457,01/04/2021,H19AAD00BC,OL HUNTINGDON,08/04/2021,246.39,1231.95,1478.34,OLH - Swimming,Electricity,60303
http://statistics.data.gov.uk/id/local-authority/12UE,Huntingdonshire District Council,200278,E-ON ENERGY E-ON ENERGY,49169,02/06/2021,H19E93B5DE,OL RAMSEY,10/06/2021,398.49,1992.43,2390.92,OLR - Site & Centre Management,Electricity,60303
http://statistics.data.gov.uk/id/local-authority/12UE,Huntingdonshire District Council,200278,E-ON ENERGY E-ON ENERGY,47696,02/05/2021,H19CA4A9C0,OL RAMSEY,13/05/2021,363.9,1819.48,2183.38,OLR - Site & Centre Management,Electricity,60303
http://statistics.data.gov.uk/id/local-authority/12UE,Huntingdonshire District Council,200278,E-ON ENERGY E-ON ENERGY,46536,01/04/2021,H19AAD0198,OL RAMSEY,15/04/2021,198.75,993.75,1192.5,OLR - Site & Centre Management,Electricity,60303
http://statistics.data.gov.uk/id/local-authority/12UE,Huntingdonshire District Council,200363,HAVEN POWER LTD HAVEN POWER LTD,49269,07/06/2021,IN1105229255,OL ST IVES,17/06/2021,1303.55,6517.75,7821.3,OLSI - Site & Centre Management,Electricity,60303
http://statistics.data.gov.uk/id/local-authority/12UE,Huntingdonshire District Council,200363,HAVEN POWER LTD HAVEN POWER LTD,46440,06/04/2021,IN1105070318,OL ST IVES,15/04/2021,1122.49,5612.47,6734.96,OLSI - Site & Centre Management,Electricity,60303
http://statistics.data.gov.uk/id/local-authority/12UE,Huntingdonshire District Council,200363,HAVEN POWER LTD HAVEN POWER LTD,48022,06/05/2021,IN1105147316,OL ST IVES,13/05/2021,276.11,1380.53,1656.64,OLSI - Site & Centre Management,Electricity,60303
http://statistics.data.gov.uk/id/local-authority/12UE,Huntingdonshire District Council,200363,HAVEN POWER LTD HAVEN POWER LTD,48026,06/05/2021,IN1105147315,OL ST IVES,13/05/2021,353.35,1766.77,2120.12,OLSIO - Site & Centre Management,Electricity,60303
http://statistics.data.gov.uk/id/local-authority/12UE,Huntingdonshire District Council,200363,HAVEN POWER LTD HAVEN POWER LTD,49267,07/06/2021,IN1105229254,OL ST IVES,17/06/2021,346.77,1733.87,2080.64,OLSIO - Site & Centre Management,Electricity,60303
http://statistics.data.gov.uk/id/local-authority/12UE,Huntingdonshire District Council,200363,HAVEN POWER LTD HAVEN POWER LTD,46458,06/04/2021,IN1105070317,OL ST IVES,15/04/2021,278.93,1394.62,1673.55,OLSIO - Site & Centre Management,Electricity,60303
http://statistics.data.gov.uk/id/local-authority/12UE,Huntingdonshire District Council,200363,HAVEN POWER LTD HAVEN POWER LTD,46459,06/04/2021,IN1105070313,OL ST NEOTS,15/04/2021,1126.07,5630.37,6756.44,OLSN - Swimming,Electricity,60303
http://statistics.data.gov.uk/id/local-authority/12UE,Huntingdonshire District Council,200363,HAVEN POWER LTD HAVEN POWER LTD,46459,06/04/2021,IN1105070313,OL ST NEOTS,13/05/2021,1126.07,5630.37,6756.44,OLSN - Swimming,Electricity,60303
http://statistics.data.gov.uk/id/local-authority/12UE,Huntingdonshire District Council,200363,HAVEN POWER LTD HAVEN POWER LTD,49270,07/06/2021,IN1105229252,OL ST NEOTS,17/06/2021,1072.13,5360.66,6432.79,OLSN - Swimming,Electricity,60303
http://statistics.data.gov.uk/id/local-authority/12UE,Huntingdonshire District Council,200363,HAVEN POWER LTD HAVEN POWER LTD,45167,03/03/2021,IN1105017705,OL ST NEOTS,13/05/2021,1031.21,5156.07,6187.28,OLSN - Swimming,Electricity,60303
http://statistics.data.gov.uk/id/local-authority/12UE,Huntingdonshire District Council,200363,HAVEN POWER LTD HAVEN POWER LTD,48031,06/05/2021,IN1105147312,OL ST NEOTS,13/05/2021,711.27,3556.33,4267.6,OLSN - Swimming,Electricity,60303
http://statistics.data.gov.uk/id/local-authority/12UE,Huntingdonshire District Council,200363,HAVEN POWER LTD HAVEN POWER LTD,48168,06/05/2021,IN1105147311,OL ST NEOTS,13/05/2021,655.74,3278.69,3934.43,OLSN - Swimming,Electricity,60303
http://statistics.data.gov.uk/id/local-authority/12UE,Huntingdonshire District Council,200363,HAVEN POWER LTD HAVEN POWER LTD,48032,06/05/2021,IN1105147313,OL ST NEOTS,13/05/2021,267.45,1337.25,1604.7,OLSN - Swimming,Electricity,60303
http://statistics.data.gov.uk/id/local-authority/12UE,Huntingdonshire District Council,202133,THE RENEWABLE ENERGY COMPANY LTD,47510,06/04/2021,4595780,PARK LANE NURSERY,20/05/2021,-19.26,-385.25,-404.51,Nursery Project - Gmc,Electricity,60303
http://statistics.data.gov.uk/id/local-authority/12UE,Huntingdonshire District Council,202133,THE RENEWABLE ENERGY COMPANY LTD,48583,09/04/2021,7.10001E+11,COUNTRY PARK,20/05/2021,330.3,1651.51,1981.81,Hinchingbrooke Park Cafe,Electricity,60303
http://statistics.data.gov.uk/id/local-authority/12UE,Huntingdonshire District Council,202133,THE RENEWABLE ENERGY COMPANY LTD,48581,09/04/2021,7.10001E+11,COUNTRY PARK,20/05/2021,103.96,519.79,623.75,Hinchingbrooke Park Management,Electricity,60303
http://statistics.data.gov.uk/id/local-authority/12UE,Huntingdonshire District Council,202133,THE RENEWABLE ENERGY COMPANY LTD,48580,15/04/2021,4608308,HIGH STREET ST NEOTS,20/05/2021,568.98,2844.92,3413.9,Paxton Pits,Electricity,60303
http://statistics.data.gov.uk/id/local-authority/12UE,Huntingdonshire District Council,202133,THE RENEWABLE ENERGY COMPANY LTD,48536,15/04/2021,4608309,HIGH STREET ST NEOTS,20/05/2021,246.31,1231.56,1477.87,Paxton Pits,Electricity,60303
http://statistics.data.gov.uk/id/local-authority/12UE,Huntingdonshire District Council,202133,THE RENEWABLE ENERGY COMPANY LTD,48537,15/04/2021,4608310,HIGH STREET ST NEOTS,20/05/2021,128.25,641.24,769.49,Paxton Pits,Electricity,60303
http://statistics.data.gov.uk/id/local-authority/12UE,Huntingdonshire District Council,202133,THE RENEWABLE ENERGY COMPANY LTD,48579,09/04/2021,7.10001E+11,HIGH STREET ST NEOTS,20/05/2021,15.38,307.67,323.05,Paxton Pits,Electricity,60303
http://statistics.data.gov.uk/id/local-authority/12UE,Huntingdonshire District Council,202133,THE RENEWABLE ENERGY COMPANY LTD,47508,15/04/2021,4608302,HIGH STREET ST NEOTS,20/05/2021,-132.25,-661.26,-793.51,Paxton Pits,Electricity,60303
http://statistics.data.gov.uk/id/local-authority/12UE,Huntingdonshire District Council,202133,THE RENEWABLE ENERGY COMPANY LTD,47509,15/04/2021,4608303,HIGH STREET ST NEOTS,20/05/2021,-132.54,-662.7,-795.24,Paxton Pits,Electricity,60303
http://statistics.data.gov.uk/id/local-authority/12UE,Huntingdonshire District Council,202133,THE RENEWABLE ENERGY COMPANY LTD,47505,15/04/2021,4608300,HIGH STREET ST NEOTS,20/05/2021,-133.69,-668.44,-802.13,Paxton Pits,Electricity,60303
http://statistics.data.gov.uk/id/local-authority/12UE,Huntingdonshire District Council,202133,THE RENEWABLE ENERGY COMPANY LTD,47506,15/04/2021,4608305,HIGH STREET ST NEOTS,20/05/2021,-134.05,-670.24,-804.29,Paxton Pits,Electricity,60303
http://statistics.data.gov.uk/id/local-authority/12UE,Huntingdonshire District Council,202133,THE RENEWABLE ENERGY COMPANY LTD,47507,15/04/2021,4608298,HIGH STREET ST NEOTS,20/05/2021,-144.27,-721.33,-865.6,Paxton Pits,Electricity,60303
http://statistics.data.gov.uk/id/local-authority/12UE,Huntingdonshire District Council,200278,E-ON ENERGY E-ON ENERGY,48695,01/04/2021,H19ABOAB2C,FOOTPATH AND CAR PARK LIGHTING,27/05/2021,16.19,323.88,340.07,Parks & Open Spaces,Electricity,60303
http://statistics.data.gov.uk/id/local-authority/12UE,Huntingdonshire District Council,202133,THE RENEWABLE ENERGY COMPANY LTD,48553,09/04/2021,7.10001E+11,HARTFORD ROAD HUNTINGDON,20/05/2021,21.4,427.93,449.33,Parks & Open Spaces,Electricity,60303
http://statistics.data.gov.uk/id/local-authority/12UE,Huntingdonshire District Council,202133,THE RENEWABLE ENERGY COMPANY LTD,48577,09/04/2021,7.10001E+11,ST NEOTS,20/05/2021,107.93,539.67,647.6,Parks & Open Spaces,Electricity,60303
http://statistics.data.gov.uk/id/local-authority/12UE,Huntingdonshire District Council,202133,THE RENEWABLE ENERGY COMPANY LTD,48557,09/04/2021,7.10001E+11,REDACTED,20/05/2021,241.59,1207.93,1449.52,Parks & Open Spaces,Electricity,60303
http://statistics.data.gov.uk/id/local-authority/12UE,Huntingdonshire District Council,200278,E-ON ENERGY E-ON ENERGY,48698,01/04/2021,H19ABOAAEA,UNMETERED CCTV,27/05/2021,306.82,1534.12,1840.94,Cctv Shared Service Hosting,Electricity,60303
http://statistics.data.gov.uk/id/local-authority/12UE,Huntingdonshire District Council,202133,THE RENEWABLE ENERGY COMPANY LTD,48563,09/04/2021,7.10001E+11,MAYFIELD ROAD,20/05/2021,14.28,285.54,299.82,Buttsgrove Way (HUN),Electricity,60303
http://statistics.data.gov.uk/id/local-authority/12UE,Huntingdonshire District Council,200278,E-ON ENERGY E-ON ENERGY,49094,01/10/2020,H18FF00402,CAR PARK MACHINES,03/06/2021,22.44,448.75,471.19,Car Park Management,Electricity,60303
http://statistics.data.gov.uk/id/local-authority/12UE,Huntingdonshire District Council,200278,E-ON ENERGY E-ON ENERGY,49104,02/01/2021,H195532ED6,CAR PARK MACHINES,03/06/2021,22.44,448.75,471.19,Car Park Management,Electricity,60303
http://statistics.data.gov.uk/id/local-authority/12UE,Huntingdonshire District Council,200278,E-ON ENERGY E-ON ENERGY,49092,01/04/2020,H18530BEDD,CAR PARK MACHINES,03/06/2021,22.19,443.87,466.06,Car Park Management,Electricity,60303
http://statistics.data.gov.uk/id/local-authority/12UE,Huntingdonshire District Council,200278,E-ON ENERGY E-ON ENERGY,49093,01/07/2020,H18A5E471D,CAR PARK MACHINES,03/06/2021,22.19,443.87,466.06,Car Park Management,Electricity,60303
http://statistics.data.gov.uk/id/local-authority/12UE,Huntingdonshire District Council,200278,E-ON ENERGY E-ON ENERGY,49103,01/04/2021,H19AB03BFB,CAR PARK MACHINES,03/06/2021,21.95,439,460.95,Car Park Management,Electricity,60303
http://statistics.data.gov.uk/id/local-authority/12UE,Huntingdonshire District Council,200278,E-ON ENERGY E-ON ENERGY,49095,01/01/2019,H16A9BA14,CAR PARK MACHINES,03/06/2021,18.17,363.47,381.64,Car Park Management,Electricity,60303
http://statistics.data.gov.uk/id/local-authority/12UE,Huntingdonshire District Council,202133,THE RENEWABLE ENERGY COMPANY LTD,48549,09/04/2021,7.10001E+11,CARDINAL WAY HUNTINGDON,20/05/2021,16.77,335.41,352.18,Bridge Place (GOD),Electricity,60303
http://statistics.data.gov.uk/id/local-authority/12UE,Huntingdonshire District Council,202133,THE RENEWABLE ENERGY COMPANY LTD,48550,09/04/2021,7.10001E+11,CHEQUERS COURT HUNTINGDON,20/05/2021,356.22,1781.1,2137.32,MSCP (HUN),Electricity,60303
http://statistics.data.gov.uk/id/local-authority/12UE,Huntingdonshire District Council,202133,THE RENEWABLE ENERGY COMPANY LTD,48552,09/04/2021,7.10001E+11,HARTFORD ROAD HUNTINGDON,20/05/2021,19.44,388.85,408.29,Riverside (HUN),Electricity,60303
http://statistics.data.gov.uk/id/local-authority/12UE,Huntingdonshire District Council,202133,THE RENEWABLE ENERGY COMPANY LTD,48559,09/04/2021,7.10001E+11,MARKET HILL HUNTINGDON,20/05/2021,221.82,1109.1,1330.92,Waitrose (STI),Electricity,60303
http://statistics.data.gov.uk/id/local-authority/12UE,Huntingdonshire District Council,202133,THE RENEWABLE ENERGY COMPANY LTD,48534,09/04/2021,7.10001E+11,RIVER TERRACE ST NEOTS,20/05/2021,139.71,698.56,838.27,Riverside (STN),Electricity,60303
http://statistics.data.gov.uk/id/local-authority/12UE,Huntingdonshire District Council,202133,THE RENEWABLE ENERGY COMPANY LTD,48578,09/04/2021,7.10001E+11,TEBBUTTS ROAD ST NEOTS,20/05/2021,18.2,364.03,382.23,Tebbutts Road (STN),Electricity,60303
http://statistics.data.gov.uk/id/local-authority/12UE,Huntingdonshire District Council,200278,E-ON ENERGY E-ON ENERGY,48697,01/04/2021,H19ABOAB63,BUS SHELTER LIGHTING,27/05/2021,26.35,527.03,553.38,Bus Shelters,Electricity,60303
http://statistics.data.gov.uk/id/local-authority/12UE,Huntingdonshire District Council,202133,THE RENEWABLE ENERGY COMPANY LTD,48564,15/04/2021,4608426,MILL COMMON HUNTINGDON,20/05/2021,606.07,3030.37,3636.44,Huntingdon Bus Station,Electricity,60303
http://statistics.data.gov.uk/id/local-authority/12UE,Huntingdonshire District Council,200923,ST IVES TOWN COUNCIL,48090,31/03/2021,2635,BUS STATION ELECTRICTIY,13/05/2021,260.68,1303.38,1564.06,St Ives Bus Station,Electricity,60303
http://statistics.data.gov.uk/id/local-authority/12UE,Huntingdonshire District Council,200278,E-ON ENERGY E-ON ENERGY,48523,01/04/2021,H19AACA63E,MOBILE HOME PARK,20/05/2021,111.12,2222.48,2333.6,Mobile Home Park,Electricity,60303
http://statistics.data.gov.uk/id/local-authority/12UE,Huntingdonshire District Council,200278,E-ON ENERGY E-ON ENERGY,48518,02/05/2021,H19CA52302,MOBILE HOME PARK,20/05/2021,97.18,1943.63,2040.81,Mobile Home Park,Electricity,60303
http://statistics.data.gov.uk/id/local-authority/12UE,Huntingdonshire District Council,200363,HAVEN POWER LTD HAVEN POWER LTD,49485,07/06/2021,IN1105229248,EASTFIELD HOUSE,17/06/2021,458.17,2290.85,2749.02,Eastfield House,Electricity,60303
http://statistics.data.gov.uk/id/local-authority/12UE,Huntingdonshire District Council,202133,THE RENEWABLE ENERGY COMPANY LTD,48539,09/04/2021,7.10001E+11,SHEEP MARKET ST IVES,20/05/2021,14.94,298.7,313.64,St Ives Gatehouses/Octagon,Electricity,60303
http://statistics.data.gov.uk/id/local-authority/12UE,Huntingdonshire District Council,200363,HAVEN POWER LTD HAVEN POWER LTD,47331,06/04/2021,IN1105070316,PFH,29/04/2021,1660.78,8303.89,9964.67,Pathfinder House,Electricity,60303
http://statistics.data.gov.uk/id/local-authority/12UE,Huntingdonshire District Council,200363,HAVEN POWER LTD HAVEN POWER LTD,49484,07/06/2021,IN1105229249,PFH,17/06/2021,1634.63,8173.13,9807.76,Pathfinder House,Electricity,60303
http://statistics.data.gov.uk/id/local-authority/12UE,Huntingdonshire District Council,200363,HAVEN POWER LTD HAVEN POWER LTD,48006,06/05/2021,IN1105147309,PFH,13/05/2021,935.11,4675.54,5610.65,Pathfinder House,Electricity,60303
http://statistics.data.gov.uk/id/local-authority/12UE,Huntingdonshire District Council,200363,HAVEN POWER LTD HAVEN POWER LTD,48007,06/05/2021,IN1105147308,EASTFIELD HOUSE,13/05/2021,484.95,2424.76,2909.71,Pathfinder House,Electricity,60303
http://statistics.data.gov.uk/id/local-authority/12UE,Huntingdonshire District Council,200258,EDF ENERGY CUSTOMER FIELD SERVICES EDF ENERGY CUSTOMER FIELD SERVICES,48887,08/05/2021,600004590,COMMS LINE RENTAL - PFH,03/06/2021,86.4,432,518.4,Pathfinder House,Electricity,60303
http://statistics.data.gov.uk/id/local-authority/12UE,Huntingdonshire District Council,200126,BRITISH GAS BUSINESS BRITISH GAS BUSINESS,46283,22/02/2021,715334894,UNIT 4 ST MARGARETS WAY,08/04/2021,77.91,389.56,467.47,Industrial Properties,Electricity,60303
http://statistics.data.gov.uk/id/local-authority/12UE,Huntingdonshire District Council,202133,THE RENEWABLE ENERGY COMPANY LTD,47863,15/04/2021,4608285,13 CAXTON ROAD ST IVES,20/05/2021,182.95,914.73,1097.68,St Ives Enterprise Centre,Electricity,60303
http://statistics.data.gov.uk/id/local-authority/12UE,Huntingdonshire District Council,202133,THE RENEWABLE ENERGY COMPANY LTD,47862,15/04/2021,4608284,13 CAXTON ROAD ST IVES,20/05/2021,158.41,792.03,950.44,St Ives Enterprise Centre,Electricity,60303
http://statistics.data.gov.uk/id/local-authority/12UE,Huntingdonshire District Council,202133,THE RENEWABLE ENERGY COMPANY LTD,47864,15/04/2021,4608282,13 CAXTON ROAD ST IVES,20/05/2021,-127.51,-637.57,-765.08,St Ives Enterprise Centre,Electricity,60303
http://statistics.data.gov.uk/id/local-authority/12UE,Huntingdonshire District Council,200363,HAVEN POWER LTD HAVEN POWER LTD,47330,06/04/2021,IN1105070315,EASTFIELD HOUSE,29/04/2021,664.65,3323.27,3987.92,Eastfield House,Electricity/Lighting (Communal Areas),60304
http://statistics.data.gov.uk/id/local-authority/12UE,Huntingdonshire District Council,200126,BRITISH GAS BUSINESS BRITISH GAS BUSINESS,46553,06/04/2021,989439973,OL HUNTINGDON,15/04/2021,153.71,768.55,922.26,OLH - Site & Centre Management,Gas,60305
http://statistics.data.gov.uk/id/local-authority/12UE,Huntingdonshire District Council,200126,BRITISH GAS BUSINESS BRITISH GAS BUSINESS,47983,04/05/2021,966673683,OL HUNTINGDON,13/05/2021,153.53,767.67,921.2,OLH - Site & Centre Management,Gas,60305
http://statistics.data.gov.uk/id/local-authority/12UE,Huntingdonshire District Council,200126,BRITISH GAS BUSINESS BRITISH GAS BUSINESS,49415,08/06/2021,998396710,OL HUNTINGDON,17/06/2021,140.82,704.11,844.93,OLH - Site & Centre Management,Gas,60305
http://statistics.data.gov.uk/id/local-authority/12UE,Huntingdonshire District Council,200348,GREENDAY ENERGY LTD GREENDAY ENERGY LTD,48457,11/05/2021,GD1251,CHP QA CERTIFICATION,03/06/2021,50,250,300,OLH - Site & Centre Management,Gas,60305
http://statistics.data.gov.uk/id/local-authority/12UE,Huntingdonshire District Council,200126,BRITISH GAS BUSINESS BRITISH GAS BUSINESS,49585,10/06/2021,966686639,OL HUNTINGDON,17/06/2021,390.88,1954.39,2345.27,OLH - Swimming,Gas,60305
http://statistics.data.gov.uk/id/local-authority/12UE,Huntingdonshire District Council,200126,BRITISH GAS BUSINESS BRITISH GAS BUSINESS,47985,04/05/2021,966673685,OL HUNTINGDON,13/05/2021,311.31,1556.55,1867.86,OLH - Swimming,Gas,60305
http://statistics.data.gov.uk/id/local-authority/12UE,Huntingdonshire District Council,200126,BRITISH GAS BUSINESS BRITISH GAS BUSINESS,46550,06/04/2021,989439975,OL HUNTINGDON,15/04/2021,164.58,822.88,987.46,OLH - Swimming,Gas,60305
http://statistics.data.gov.uk/id/local-authority/12UE,Huntingdonshire District Council,200126,BRITISH GAS BUSINESS BRITISH GAS BUSINESS,48335,17/05/2021,103511978,OL RAMSEY,27/05/2021,367.32,1836.61,2203.93,OLR - Site & Centre Management,Gas,60305
http://statistics.data.gov.uk/id/local-authority/12UE,Huntingdonshire District Council,200126,BRITISH GAS BUSINESS BRITISH GAS BUSINESS,46544,06/04/2021,989439981,OL RAMSEY,15/04/2021,330.86,1654.31,1985.17,OLR - Site & Centre Management,Gas,60305
http://statistics.data.gov.uk/id/local-authority/12UE,Huntingdonshire District Council,200126,BRITISH GAS BUSINESS BRITISH GAS BUSINESS,49586,10/06/2021,966686640,OL RAMSEY,17/06/2021,298.08,1490.38,1788.46,OLR - Site & Centre Management,Gas,60305
http://statistics.data.gov.uk/id/local-authority/12UE,Huntingdonshire District Council,200126,BRITISH GAS BUSINESS BRITISH GAS BUSINESS,46548,06/04/2021,989439976,OL ST IVES,15/04/2021,624.93,3124.66,3749.59,OLSI - Site & Centre Management,Gas,60305
http://statistics.data.gov.uk/id/local-authority/12UE,Huntingdonshire District Council,200126,BRITISH GAS BUSINESS BRITISH GAS BUSINESS,47986,04/05/2021,966673686,OL ST IVES,13/05/2021,608.46,3042.29,3650.75,OLSI - Site & Centre Management,Gas,60305
http://statistics.data.gov.uk/id/local-authority/12UE,Huntingdonshire District Council,200126,BRITISH GAS BUSINESS BRITISH GAS BUSINESS,49405,07/06/2021,520579766,OL ST IVES,17/06/2021,576.05,2880.26,3456.31,OLSI - Site & Centre Management,Gas,60305
http://statistics.data.gov.uk/id/local-authority/12UE,Huntingdonshire District Council,200348,GREENDAY ENERGY LTD GREENDAY ENERGY LTD,48457,11/05/2021,GD1251,CHP QA CERTIFICATION,03/06/2021,50,250,300,OLSI - Site & Centre Management,Gas,60305
http://statistics.data.gov.uk/id/local-authority/12UE,Huntingdonshire District Council,200126,BRITISH GAS BUSINESS BRITISH GAS BUSINESS,47352,06/04/2021,989439979 REPLACEMENT,OL ST IVES,06/05/2021,14.13,282.64,296.77,OLSIO - Site & Centre Management,Gas,60305
http://statistics.data.gov.uk/id/local-authority/12UE,Huntingdonshire District Council,200126,BRITISH GAS BUSINESS BRITISH GAS BUSINESS,49406,07/06/2021,520579767,OL ST IVES,17/06/2021,13.23,264.59,277.82,OLSIO - Site & Centre Management,Gas,60305
http://statistics.data.gov.uk/id/local-authority/12UE,Huntingdonshire District Council,200126,BRITISH GAS BUSINESS BRITISH GAS BUSINESS,47987,04/05/2021,966673689,OL ST IVES,13/05/2021,12.8,256.05,268.85,OLSIO - Site & Centre Management,Gas,60305
http://statistics.data.gov.uk/id/local-authority/12UE,Huntingdonshire District Council,200126,BRITISH GAS BUSINESS BRITISH GAS BUSINESS,47988,04/05/2021,966673687,OL ST NEOTS,13/05/2021,16.82,336.47,353.29,OLSN - Site & Centre Management,Gas,60305
http://statistics.data.gov.uk/id/local-authority/12UE,Huntingdonshire District Council,200126,BRITISH GAS BUSINESS BRITISH GAS BUSINESS,49407,08/06/2021,998396712,OL ST NEOTS,17/06/2021,13.23,264.59,277.82,OLSN - Site & Centre Management,Gas,60305
http://statistics.data.gov.uk/id/local-authority/12UE,Huntingdonshire District Council,200126,BRITISH GAS BUSINESS BRITISH GAS BUSINESS,46547,06/04/2021,989439977,OL ST NEOTS,15/04/2021,52.4,261.97,314.37,OLSN - Site & Centre Management,Gas,60305
http://statistics.data.gov.uk/id/local-authority/12UE,Huntingdonshire District Council,200126,BRITISH GAS BUSINESS BRITISH GAS BUSINESS,49416,08/06/2021,998396711,OL ST NEOTS,17/06/2021,654.38,3271.91,3926.29,OLSN - Swimming,Gas,60305
http://statistics.data.gov.uk/id/local-authority/12UE,Huntingdonshire District Council,200126,BRITISH GAS BUSINESS BRITISH GAS BUSINESS,47984,04/05/2021,966673684,OL ST NEOTS,13/05/2021,633.73,3168.65,3802.38,OLSN - Swimming,Gas,60305
http://statistics.data.gov.uk/id/local-authority/12UE,Huntingdonshire District Council,200126,BRITISH GAS BUSINESS BRITISH GAS BUSINESS,46551,06/04/2021,989439974,OL ST NEOTS,15/04/2021,428.51,2142.56,2571.07,OLSN - Swimming,Gas,60305
http://statistics.data.gov.uk/id/local-authority/12UE,Huntingdonshire District Council,200126,BRITISH GAS BUSINESS BRITISH GAS BUSINESS,47597,07/07/2020,713978610,PARK LANE NURSERY,06/05/2021,20.57,411.36,431.93,Countryside Service Management,Gas,60305
http://statistics.data.gov.uk/id/local-authority/12UE,Huntingdonshire District Council,200126,BRITISH GAS BUSINESS BRITISH GAS BUSINESS,47206,06/03/2020,957564558,PARK LANE NURSERY,22/04/2021,51.96,259.8,311.76,Nursery Project - Gmc,Gas,60305
http://statistics.data.gov.uk/id/local-authority/12UE,Huntingdonshire District Council,200126,BRITISH GAS BUSINESS BRITISH GAS BUSINESS,47590,06/04/2021,989439980,EASTFIELD HOUSE,06/05/2021,166.67,833.33,1000,Eastfield House,Gas,60305
http://statistics.data.gov.uk/id/local-authority/12UE,Huntingdonshire District Council,200126,BRITISH GAS BUSINESS BRITISH GAS BUSINESS,47590,06/04/2021,989439980,EASTFIELD HOUSE,06/05/2021,6.76,33.77,40.53,Eastfield House,Gas,60305
http://statistics.data.gov.uk/id/local-authority/12UE,Huntingdonshire District Council,200126,BRITISH GAS BUSINESS BRITISH GAS BUSINESS,47909,04/05/2021,966673690,EASTFIELD HOUSE,13/05/2021,149.44,747.19,896.63,Eastfield House,Gas,60305
http://statistics.data.gov.uk/id/local-authority/12UE,Huntingdonshire District Council,200126,BRITISH GAS BUSINESS BRITISH GAS BUSINESS,49667,08/06/2021,998396714,EASTFIELD HOUSE,17/06/2021,124.1,620.51,744.61,Eastfield House,Gas,60305
http://statistics.data.gov.uk/id/local-authority/12UE,Huntingdonshire District Council,200126,BRITISH GAS BUSINESS BRITISH GAS BUSINESS,47882,04/05/2021,966673688,PFH,13/05/2021,502.6,2513,3015.6,Pathfinder House,Gas,60305
http://statistics.data.gov.uk/id/local-authority/12UE,Huntingdonshire District Council,200126,BRITISH GAS BUSINESS BRITISH GAS BUSINESS,47588,06/04/2021,989439978,PFH,06/05/2021,446.64,2233.2,2679.84,Pathfinder House,Gas,60305
http://statistics.data.gov.uk/id/local-authority/12UE,Huntingdonshire District Council,200126,BRITISH GAS BUSINESS BRITISH GAS BUSINESS,49668,08/06/2021,998396713,PFH,17/06/2021,380.79,1903.93,2284.72,Pathfinder House,Gas,60305
http://statistics.data.gov.uk/id/local-authority/12UE,Huntingdonshire District Council,202545,HITCHIN INDUSTRIAL & BUSINESS ESTATES LTD C/O BIDWELLS,46681,25/03/2021,56,REDACTED,15/04/2021,343.61,1718.06,2061.67,Commercial Investment Strategy,Service Charges,60401
http://statistics.data.gov.uk/id/local-authority/12UE,Huntingdonshire District Council,200894,Workman,49717,01/06/2021,835580/206,REDACTED,17/06/2021,347.83,1739.14,2086.97,Commercial Investment Strategy,Service Charges,60401
http://statistics.data.gov.uk/id/local-authority/12UE,Huntingdonshire District Council,200894,Workman,49718,01/06/2021,835580/211,REDACTED,17/06/2021,318.18,1590.91,1909.09,Commercial Investment Strategy,Service Charges,60401
http://statistics.data.gov.uk/id/local-authority/12UE,Huntingdonshire District Council,200894,Workman,49715,26/05/2021,809900/893,REDACTED,17/06/2021,142.73,713.65,856.38,Commercial Investment Strategy,Service Charges,60401
http://statistics.data.gov.uk/id/local-authority/12UE,Huntingdonshire District Council,200894,Workman,49716,26/05/2021,809900/888,REDACTED,17/06/2021,142.73,713.65,856.38,Commercial Investment Strategy,Service Charges,60401
http://statistics.data.gov.uk/id/local-authority/12UE,Huntingdonshire District Council,200746,STARLITE ROADSHOW STARLITE ROADSHOW,49758,31/05/2021,8526,OL ST IVES,17/06/2021,0,400,400,Committee Management,Premises Hire - Facilities,60402
http://statistics.data.gov.uk/id/local-authority/12UE,Huntingdonshire District Council,200746,STARLITE ROADSHOW STARLITE ROADSHOW,49758,31/05/2021,8526,OL ST IVES,17/06/2021,0,175,175,Committee Management,Premises Hire - Facilities,60402
http://statistics.data.gov.uk/id/local-authority/12UE,Huntingdonshire District Council,201033,CAMBRIDGESHIRE COUNTY COUNCIL,48429,12/05/2021,4.23002E+11,POLLING STATION HIRE 06/05/21,03/06/2021,0,120,120,Elections Mayoral,Premises Hire - Facilities,60402
http://statistics.data.gov.uk/id/local-authority/12UE,Huntingdonshire District Council,201744,SOMERSHAM VICTORY HALL MANAGEMENT COMMITTEE,48424,11/05/2021,1349,POLLING STATION HIRE 06/05/21,03/06/2021,0,110.66,110.66,Elections Mayoral,Premises Hire - Facilities,60402
http://statistics.data.gov.uk/id/local-authority/12UE,Huntingdonshire District Council,202582,ST NEOTS RUGBY CLUB,48416,12/03/2021,2021HH1001,POLLING STATION HIRE 06/05/21,20/05/2021,0,100,100,Elections Mayoral,Premises Hire - Facilities,60402
http://statistics.data.gov.uk/id/local-authority/12UE,Huntingdonshire District Council,201255,Stilton Parish Council,48733,17/05/2021,HDC MAY 2021,POLLING STATION HIRE 06/05/21,27/05/2021,0,96,96,Elections Mayoral,Premises Hire - Facilities,60402
http://statistics.data.gov.uk/id/local-authority/12UE,Huntingdonshire District Council,201224,Godmanchester Town Council,48996,28/05/2021,REDACTED,POLLING STATION HIRE 06/05/21,03/06/2021,0,94.5,94.5,Elections Mayoral,Premises Hire - Facilities,60402
http://statistics.data.gov.uk/id/local-authority/12UE,Huntingdonshire District Council,201224,Godmanchester Town Council,48997,28/05/2021,REDACTED,POLLING STATION HIRE 06/05/21,03/06/2021,0,89.25,89.25,Elections Mayoral,Premises Hire - Facilities,60402
http://statistics.data.gov.uk/id/local-authority/12UE,Huntingdonshire District Council,201268.01,YAXLEY PARISH COUNCIL,48406,06/05/2021,HDC060521QP,POLLING STATION HIRE 06/05/21,20/05/2021,0,88.75,88.75,Elections Mayoral,Premises Hire - Facilities,60402
http://statistics.data.gov.uk/id/local-authority/12UE,Huntingdonshire District Council,201711,LITTLE PAXTON VILLAGE HALL COMMITTEE,48432,25/04/2021,LPVH-2021009,POLLING STATION HIRE 06/05/21,20/05/2021,0,88.34,88.34,Elections Mayoral,Premises Hire - Facilities,60402
http://statistics.data.gov.uk/id/local-authority/12UE,Huntingdonshire District Council,201728,ALCONBURY MEMORIAL HALL,48382,06/05/2021,B371-239,POLLING STATION HIRE 06/05/21,03/06/2021,0,84.33,84.33,Elections Mayoral,Premises Hire - Facilities,60402
http://statistics.data.gov.uk/id/local-authority/12UE,Huntingdonshire District Council,201773,PERRY BAPTIST CHURCH,48405,06/05/2021,60521,POLLING STATION HIRE 06/05/21,03/06/2021,0,83.33,83.33,Elections Mayoral,Premises Hire - Facilities,60402
http://statistics.data.gov.uk/id/local-authority/12UE,Huntingdonshire District Council,201221,Farcet Parish Council,48412,10/05/2021,1111,POLLING STATION HIRE 06/05/21,20/05/2021,0,83.33,83.33,Elections Mayoral,Premises Hire - Facilities,60402
http://statistics.data.gov.uk/id/local-authority/12UE,Huntingdonshire District Council,201727,ABBOTSLEY VILLAGE HALL,48425,11/05/2021,110521,POLLING STATION HIRE 06/05/21,03/06/2021,0,83.33,83.33,Elections Mayoral,Premises Hire - Facilities,60402
http://statistics.data.gov.uk/id/local-authority/12UE,Huntingdonshire District Council,201686,FIRST EATON SOCON SCOUT GROUP,48430,11/05/2021,110521,POLLING STATION HIRE 06/05/21,20/05/2021,0,83.33,83.33,Elections Mayoral,Premises Hire - Facilities,60402
http://statistics.data.gov.uk/id/local-authority/12UE,Huntingdonshire District Council,201733,BURY VILLAGE HALL,48443,06/05/2021,60521,POLLING STATION HIRE 06/05/21,03/06/2021,0,62.5,62.5,Elections Mayoral,Premises Hire - Facilities,60402
http://statistics.data.gov.uk/id/local-authority/12UE,Huntingdonshire District Council,200638,PRIORY CENTRE PRIORY CENTRE,48992,27/05/2021,4586,POLLING STATION HIRE 06/05/21,24/06/2021,0,83.33,83.33,Elections Mayoral,Premises Hire - Facilities,60402
http://statistics.data.gov.uk/id/local-authority/12UE,Huntingdonshire District Council,201761,THE ADMIRAL WELLS LTD,49595,30/05/2021,300521,POLLING STATION HIRE 06/05/21,24/06/2021,0,83.33,83.33,Elections Mayoral,Premises Hire - Facilities,60402
http://statistics.data.gov.uk/id/local-authority/12UE,Huntingdonshire District Council,201772,PIDLEY VILLAGE HALL,49597,01/06/2021,POLL STATION 06/05/21,POLLING STATION HIRE 06/05/21,24/06/2021,0,62.5,62.5,Elections Mayoral,Premises Hire - Facilities,60402
http://statistics.data.gov.uk/id/local-authority/12UE,Huntingdonshire District Council,201809,FENSTANTON CHURCH CENTRE,48447,11/05/2021,110521,POLLING STATION HIRE 06/05/21,03/06/2021,0,75,75,District Elections,Premises Hire - Facilities,60402
http://statistics.data.gov.uk/id/local-authority/12UE,Huntingdonshire District Council,201772,PIDLEY VILLAGE HALL,49597,01/06/2021,POLL STATION 06/05/21,POLLING STATION HIRE 06/05/21,24/06/2021,0,62.5,62.5,District Elections,Premises Hire - Facilities,60402
http://statistics.data.gov.uk/id/local-authority/12UE,Huntingdonshire District Council,201033,CAMBRIDGESHIRE COUNTY COUNCIL,48429,12/05/2021,4.23002E+11,POLLING STATION HIRE 06/05/21,03/06/2021,0,120,120,Elections Police & Crime Cmmr,Premises Hire - Facilities,60402
http://statistics.data.gov.uk/id/local-authority/12UE,Huntingdonshire District Council,201744,SOMERSHAM VICTORY HALL MANAGEMENT COMMITTEE,48424,11/05/2021,1349,POLLING STATION HIRE 06/05/21,03/06/2021,0,110.67,110.67,Elections Police & Crime Cmmr,Premises Hire - Facilities,60402
http://statistics.data.gov.uk/id/local-authority/12UE,Huntingdonshire District Council,202582,ST NEOTS RUGBY CLUB,48416,12/03/2021,2021HH1001,POLLING STATION HIRE 06/05/21,20/05/2021,0,100,100,Elections Police & Crime Cmmr,Premises Hire - Facilities,60402
http://statistics.data.gov.uk/id/local-authority/12UE,Huntingdonshire District Council,201809,FENSTANTON CHURCH CENTRE,48447,11/05/2021,110521,POLLING STATION HIRE 06/05/21,03/06/2021,0,75,75,Elections Police & Crime Cmmr,Premises Hire - Facilities,60402
http://statistics.data.gov.uk/id/local-authority/12UE,Huntingdonshire District Council,201255,Stilton Parish Council,48733,17/05/2021,HDC MAY 2021,POLLING STATION HIRE 06/05/21,27/05/2021,0,96,96,Elections Police & Crime Cmmr,Premises Hire - Facilities,60402
http://statistics.data.gov.uk/id/local-authority/12UE,Huntingdonshire District Council,201224,Godmanchester Town Council,48996,28/05/2021,REDACTED,POLLING STATION HIRE 06/05/21,03/06/2021,0,94.5,94.5,Elections Police & Crime Cmmr,Premises Hire - Facilities,60402
http://statistics.data.gov.uk/id/local-authority/12UE,Huntingdonshire District Council,201224,Godmanchester Town Council,48997,28/05/2021,REDACTED,POLLING STATION HIRE 06/05/21,03/06/2021,0,89.25,89.25,Elections Police & Crime Cmmr,Premises Hire - Facilities,60402
http://statistics.data.gov.uk/id/local-authority/12UE,Huntingdonshire District Council,201268.01,YAXLEY PARISH COUNCIL,48406,06/05/2021,HDC060521QP,POLLING STATION HIRE 06/05/21,20/05/2021,0,88.75,88.75,Elections Police & Crime Cmmr,Premises Hire - Facilities,60402
http://statistics.data.gov.uk/id/local-authority/12UE,Huntingdonshire District Council,201711,LITTLE PAXTON VILLAGE HALL COMMITTEE,48432,25/04/2021,LPVH-2021009,POLLING STATION HIRE 06/05/21,20/05/2021,0,88.33,88.33,Elections Police & Crime Cmmr,Premises Hire - Facilities,60402
http://statistics.data.gov.uk/id/local-authority/12UE,Huntingdonshire District Council,201728,ALCONBURY MEMORIAL HALL,48382,06/05/2021,B371-239,POLLING STATION HIRE 06/05/21,03/06/2021,0,84.33,84.33,Elections Police & Crime Cmmr,Premises Hire - Facilities,60402
http://statistics.data.gov.uk/id/local-authority/12UE,Huntingdonshire District Council,201773,PERRY BAPTIST CHURCH,48405,06/05/2021,60521,POLLING STATION HIRE 06/05/21,03/06/2021,0,83.33,83.33,Elections Police & Crime Cmmr,Premises Hire - Facilities,60402
http://statistics.data.gov.uk/id/local-authority/12UE,Huntingdonshire District Council,201221,Farcet Parish Council,48412,10/05/2021,1111,POLLING STATION HIRE 06/05/21,20/05/2021,0,83.33,83.33,Elections Police & Crime Cmmr,Premises Hire - Facilities,60402
http://statistics.data.gov.uk/id/local-authority/12UE,Huntingdonshire District Council,201727,ABBOTSLEY VILLAGE HALL,48425,11/05/2021,110521,POLLING STATION HIRE 06/05/21,03/06/2021,0,83.33,83.33,Elections Police & Crime Cmmr,Premises Hire - Facilities,60402
http://statistics.data.gov.uk/id/local-authority/12UE,Huntingdonshire District Council,201686,FIRST EATON SOCON SCOUT GROUP,48430,11/05/2021,110521,POLLING STATION HIRE 06/05/21,20/05/2021,0,83.33,83.33,Elections Police & Crime Cmmr,Premises Hire - Facilities,60402
http://statistics.data.gov.uk/id/local-authority/12UE,Huntingdonshire District Council,201733,BURY VILLAGE HALL,48443,06/05/2021,60521,POLLING STATION HIRE 06/05/21,03/06/2021,0,62.5,62.5,Elections Police & Crime Cmmr,Premises Hire - Facilities,60402
http://statistics.data.gov.uk/id/local-authority/12UE,Huntingdonshire District Council,200638,PRIORY CENTRE PRIORY CENTRE,48992,27/05/2021,4586,POLLING STATION HIRE 06/05/21,24/06/2021,0,83.33,83.33,Elections Police & Crime Cmmr,Premises Hire - Facilities,60402
http://statistics.data.gov.uk/id/local-authority/12UE,Huntingdonshire District Council,201761,THE ADMIRAL WELLS LTD,49595,30/05/2021,300521,POLLING STATION HIRE 06/05/21,24/06/2021,0,83.33,83.33,Elections Police & Crime Cmmr,Premises Hire - Facilities,60402
http://statistics.data.gov.uk/id/local-authority/12UE,Huntingdonshire District Council,201772,PIDLEY VILLAGE HALL,49597,01/06/2021,POLL STATION 06/05/21,POLLING STATION HIRE 06/05/21,24/06/2021,0,62.5,62.5,Elections Police & Crime Cmmr,Premises Hire - Facilities,60402
http://statistics.data.gov.uk/id/local-authority/12UE,Huntingdonshire District Council,201033,CAMBRIDGESHIRE COUNTY COUNCIL,48429,12/05/2021,4.23002E+11,POLLING STATION HIRE 06/05/21,03/06/2021,0,120,120,County Elections,Premises Hire - Facilities,60402
http://statistics.data.gov.uk/id/local-authority/12UE,Huntingdonshire District Council,201744,SOMERSHAM VICTORY HALL MANAGEMENT COMMITTEE,48424,11/05/2021,1349,POLLING STATION HIRE 06/05/21,03/06/2021,0,110.67,110.67,County Elections,Premises Hire - Facilities,60402
http://statistics.data.gov.uk/id/local-authority/12UE,Huntingdonshire District Council,202582,ST NEOTS RUGBY CLUB,48416,12/03/2021,2021HH1001,POLLING STATION HIRE 06/05/21,20/05/2021,0,100,100,County Elections,Premises Hire - Facilities,60402
http://statistics.data.gov.uk/id/local-authority/12UE,Huntingdonshire District Council,201809,FENSTANTON CHURCH CENTRE,48447,11/05/2021,110521,POLLING STATION HIRE 06/05/21,03/06/2021,0,75,75,County Elections,Premises Hire - Facilities,60402
http://statistics.data.gov.uk/id/local-authority/12UE,Huntingdonshire District Council,201255,Stilton Parish Council,48733,17/05/2021,HDC MAY 2021,POLLING STATION HIRE 06/05/21,27/05/2021,0,96,96,County Elections,Premises Hire - Facilities,60402
http://statistics.data.gov.uk/id/local-authority/12UE,Huntingdonshire District Council,201224,Godmanchester Town Council,48996,28/05/2021,REDACTED,POLLING STATION HIRE 06/05/21,03/06/2021,0,94.5,94.5,County Elections,Premises Hire - Facilities,60402
http://statistics.data.gov.uk/id/local-authority/12UE,Huntingdonshire District Council,201224,Godmanchester Town Council,48997,28/05/2021,REDACTED,POLLING STATION HIRE 06/05/21,03/06/2021,0,89.25,89.25,County Elections,Premises Hire - Facilities,60402
http://statistics.data.gov.uk/id/local-authority/12UE,Huntingdonshire District Council,201268.01,YAXLEY PARISH COUNCIL,48406,06/05/2021,HDC060521QP,POLLING STATION HIRE 06/05/21,20/05/2021,0,88.75,88.75,County Elections,Premises Hire - Facilities,60402
http://statistics.data.gov.uk/id/local-authority/12UE,Huntingdonshire District Council,201711,LITTLE PAXTON VILLAGE HALL COMMITTEE,48432,25/04/2021,LPVH-2021009,POLLING STATION HIRE 06/05/21,20/05/2021,0,88.33,88.33,County Elections,Premises Hire - Facilities,60402
http://statistics.data.gov.uk/id/local-authority/12UE,Huntingdonshire District Council,201728,ALCONBURY MEMORIAL HALL,48382,06/05/2021,B371-239,POLLING STATION HIRE 06/05/21,03/06/2021,0,84.34,84.34,County Elections,Premises Hire - Facilities,60402
http://statistics.data.gov.uk/id/local-authority/12UE,Huntingdonshire District Council,201773,PERRY BAPTIST CHURCH,48405,06/05/2021,60521,POLLING STATION HIRE 06/05/21,03/06/2021,0,83.34,83.34,County Elections,Premises Hire - Facilities,60402
http://statistics.data.gov.uk/id/local-authority/12UE,Huntingdonshire District Council,201221,Farcet Parish Council,48412,10/05/2021,1111,POLLING STATION HIRE 06/05/21,20/05/2021,0,83.34,83.34,County Elections,Premises Hire - Facilities,60402
http://statistics.data.gov.uk/id/local-authority/12UE,Huntingdonshire District Council,201727,ABBOTSLEY VILLAGE HALL,48425,11/05/2021,110521,POLLING STATION HIRE 06/05/21,03/06/2021,0,83.34,83.34,County Elections,Premises Hire - Facilities,60402
http://statistics.data.gov.uk/id/local-authority/12UE,Huntingdonshire District Council,201686,FIRST EATON SOCON SCOUT GROUP,48430,11/05/2021,110521,POLLING STATION HIRE 06/05/21,20/05/2021,0,83.34,83.34,County Elections,Premises Hire - Facilities,60402
http://statistics.data.gov.uk/id/local-authority/12UE,Huntingdonshire District Council,201733,BURY VILLAGE HALL,48443,06/05/2021,60521,POLLING STATION HIRE 06/05/21,03/06/2021,0,62.5,62.5,County Elections,Premises Hire - Facilities,60402
http://statistics.data.gov.uk/id/local-authority/12UE,Huntingdonshire District Council,200638,PRIORY CENTRE PRIORY CENTRE,48992,27/05/2021,4586,POLLING STATION HIRE 06/05/21,24/06/2021,0,83.34,83.34,County Elections,Premises Hire - Facilities,60402
http://statistics.data.gov.uk/id/local-authority/12UE,Huntingdonshire District Council,201761,THE ADMIRAL WELLS LTD,49595,30/05/2021,300521,POLLING STATION HIRE 06/05/21,24/06/2021,0,83.34,83.34,County Elections,Premises Hire - Facilities,60402
http://statistics.data.gov.uk/id/local-authority/12UE,Huntingdonshire District Council,201772,PIDLEY VILLAGE HALL,49597,01/06/2021,POLL STATION 06/05/21,POLLING STATION HIRE 06/05/21,24/06/2021,0,62.5,62.5,County Elections,Premises Hire - Facilities,60402
http://statistics.data.gov.uk/id/local-authority/12UE,Huntingdonshire District Council,200625,PORTAKABIN LTD PORTAKABIN LTD,46492,01/04/2021,900917398,PACEMAKER HIRE APRIL 21,29/04/2021,134.51,672.54,807.05,Voluntary Sector Grants,Premises Hire - Facilities,60402
http://statistics.data.gov.uk/id/local-authority/12UE,Huntingdonshire District Council,200625,PORTAKABIN LTD PORTAKABIN LTD,47462,01/05/2021,900920762,PACEMAKER HIRE MAY 21,27/05/2021,134.51,672.54,807.05,Voluntary Sector Grants,Premises Hire - Facilities,60402
http://statistics.data.gov.uk/id/local-authority/12UE,Huntingdonshire District Council,200625,PORTAKABIN LTD PORTAKABIN LTD,49308,01/06/2021,900924103,PACEMAKER HIRE JUN 21,24/06/2021,134.51,672.54,807.05,Voluntary Sector Grants,Premises Hire - Facilities,60402
http://statistics.data.gov.uk/id/local-authority/12UE,Huntingdonshire District Council,201733,BURY VILLAGE HALL,48443,06/05/2021,60521,POLLING STATION HIRE 06/05/21,03/06/2021,0,62.5,62.5,Neighbourhood Planning,Premises Hire - Facilities,60402
http://statistics.data.gov.uk/id/local-authority/12UE,Huntingdonshire District Council,200809,UKACTIVE UKACTIVE,46626,08/03/2021,PPL-00003356,OL ST IVES,15/04/2021,150.14,750.69,900.83,OLH - Fitness Activities,Licences,60410
http://statistics.data.gov.uk/id/local-authority/12UE,Huntingdonshire District Council,200809,UKACTIVE UKACTIVE,47028,15/04/2021,INV-200905,OL ST IVES,13/05/2021,56.97,284.85,341.82,OLH - Fitness Activities,Licences,60410
http://statistics.data.gov.uk/id/local-authority/12UE,Huntingdonshire District Council,200809,UKACTIVE UKACTIVE,46626,08/03/2021,PPL-00003356,OL ST IVES,15/04/2021,75.87,379.32,455.19,OLR - Fitness Activities,Licences,60410
http://statistics.data.gov.uk/id/local-authority/12UE,Huntingdonshire District Council,200809,UKACTIVE UKACTIVE,47028,15/04/2021,INV-200905,OL ST IVES,13/05/2021,28.79,143.93,172.72,OLR - Fitness Activities,Licences,60410
http://statistics.data.gov.uk/id/local-authority/12UE,Huntingdonshire District Council,200718,SHOPSAFE LTD SHOPSAFE LTD,48747,01/12/2020,INV004699,OL ST IVES,27/05/2021,72.6,363,435.6,OLSI - Site & Centre Management,Licences,60410
http://statistics.data.gov.uk/id/local-authority/12UE,Huntingdonshire District Council,200809,UKACTIVE UKACTIVE,46626,08/03/2021,PPL-00003356,OL ST IVES,15/04/2021,161.3,806.51,967.81,OLSI - Fitness Activities,Licences,60410
http://statistics.data.gov.uk/id/local-authority/12UE,Huntingdonshire District Council,200809,UKACTIVE UKACTIVE,47028,15/04/2021,INV-200905,OL ST IVES,13/05/2021,61.21,306.03,367.24,OLSI - Fitness Activities,Licences,60410
http://statistics.data.gov.uk/id/local-authority/12UE,Huntingdonshire District Council,200809,UKACTIVE UKACTIVE,46626,08/03/2021,PPL-00003356,OL ST IVES,15/04/2021,168.76,843.81,1012.57,OLSN - Fitness Activities,Licences,60410
http://statistics.data.gov.uk/id/local-authority/12UE,Huntingdonshire District Council,200809,UKACTIVE UKACTIVE,47028,15/04/2021,INV-200905,OL ST IVES,13/05/2021,64.04,320.18,384.22,OLSN - Fitness Activities,Licences,60410
http://statistics.data.gov.uk/id/local-authority/12UE,Huntingdonshire District Council,201586,THE NEWSPAPER LICENCING AGENCY LTD,49414,27/04/2021,Q461799,LICENCE RENEWAL,10/06/2021,231.6,1158,1389.6,Corporate Team,Licences,60410
http://statistics.data.gov.uk/id/local-authority/12UE,Huntingdonshire District Council,202446,MHR INTERNATIONAL UK LTD,46116,25/03/2021,SIN126077,LICENCES,22/04/2021,12000,60000,72000,HR Services,Licences,60410
http://statistics.data.gov.uk/id/local-authority/12UE,Huntingdonshire District Council,202446,MHR INTERNATIONAL UK LTD,46117,25/03/2021,SIN126076,LICENCES,22/04/2021,12000,60000,72000,HR Services,Licences,60410
http://statistics.data.gov.uk/id/local-authority/12UE,Huntingdonshire District Council,202446,MHR INTERNATIONAL UK LTD,47971,26/04/2021,SIN127750,GO LIVE PROCESSING,20/05/2021,4000,20000,24000,HR Services,Licences,60410
http://statistics.data.gov.uk/id/local-authority/12UE,Huntingdonshire District Council,202446,MHR INTERNATIONAL UK LTD,47971,26/04/2021,SIN127750,GO LIVE PROCESSING,20/05/2021,800,4000,4800,HR Services,Licences,60410
http://statistics.data.gov.uk/id/local-authority/12UE,Huntingdonshire District Council,200149,CAMBRIDGE CITY COUNCIL CAMBRIDGE CITY COUNCIL,45971,17/03/2021,12056831,LICENCES,08/04/2021,2343.9,11719.48,14063.38,HR Services,Licences,60410
http://statistics.data.gov.uk/id/local-authority/12UE,Huntingdonshire District Council,202446,MHR INTERNATIONAL UK LTD,46071,18/03/2021,SIN125587,LICENCES,08/04/2021,1449,7245,8694,HR Services,Licences,60410
http://statistics.data.gov.uk/id/local-authority/12UE,Huntingdonshire District Council,202446,MHR INTERNATIONAL UK LTD,46070,18/03/2021,SIN125586,LICENCES,15/04/2021,593.4,2967,3560.4,HR Services,Licences,60410
http://statistics.data.gov.uk/id/local-authority/12UE,Huntingdonshire District Council,202446,MHR INTERNATIONAL UK LTD,46091,25/03/2021,SIN126070,LICENCES,22/04/2021,593.4,2967,3560.4,HR Services,Licences,60410
http://statistics.data.gov.uk/id/local-authority/12UE,Huntingdonshire District Council,201370,TRUSTED BUSINESS INTELLIGENCE LTD,47235,31/03/2021,3570,CONSULTANCY,22/04/2021,570,2850,3420,HR Services,Licences,60410
http://statistics.data.gov.uk/id/local-authority/12UE,Huntingdonshire District Council,202446,MHR INTERNATIONAL UK LTD,47972,26/04/2021,SIN127941,CONSULTANCY,20/05/2021,432,2160,2592,HR Services,Licences,60410
http://statistics.data.gov.uk/id/local-authority/12UE,Huntingdonshire District Council,200149,CAMBRIDGE CITY COUNCIL CAMBRIDGE CITY COUNCIL,49570,30/03/2021,12057208,HRIS PROJECT,17/06/2021,248.6,1243,1491.6,HR Services,Licences,60410
http://statistics.data.gov.uk/id/local-authority/12UE,Huntingdonshire District Council,202446,MHR INTERNATIONAL UK LTD,49002,26/04/2021,SIN127798,CONSULTANCY,03/06/2021,216,1080,1296,HR Services,Licences,60410
http://statistics.data.gov.uk/id/local-authority/12UE,Huntingdonshire District Council,202446,MHR INTERNATIONAL UK LTD,49003,26/04/2021,SIN127842,CONSULTANCY,03/06/2021,108,540,648,HR Services,Licences,60410
http://statistics.data.gov.uk/id/local-authority/12UE,Huntingdonshire District Council,201568,EXPERIAN LTD,49479,31/05/2021,IEX38002476480,LICENCES,24/06/2021,439.96,2199.8,2639.76,Finance,Licences,60410
http://statistics.data.gov.uk/id/local-authority/12UE,Huntingdonshire District Council,202101,TRAINING SHED FAMILY LTD,46583,01/04/2021,INV-0073,OL ST IVES,15/04/2021,700,3500,4200,OLSIO - Training Shed,Management Charge,60411
http://statistics.data.gov.uk/id/local-authority/12UE,Huntingdonshire District Council,202101,TRAINING SHED FAMILY LTD,47733,01/05/2021,INV-0079,CONSULTANCY,06/05/2021,700,3500,4200,OLSIO - Training Shed,Management Charge,60411
http://statistics.data.gov.uk/id/local-authority/12UE,Huntingdonshire District Council,202101,TRAINING SHED FAMILY LTD,49376,01/06/2021,INV-0085,OL ST IVES,10/06/2021,700,3500,4200,OLSIO - Training Shed,Management Charge,60411
http://statistics.data.gov.uk/id/local-authority/12UE,Huntingdonshire District Council,200511,CHORUS HOMES GROUP LTD,50046,16/06/2021,1164246,Q1 MHP MANAGEMENT FEE,24/06/2021,1320.49,6602.43,7922.92,Mobile Home Park,Management Charge,60411
http://statistics.data.gov.uk/id/local-authority/12UE,Huntingdonshire District Council,200615,PHS GROUP LTD PHS GROUP LTD,46920,08/04/2021,68191358,OL HUNTINGDON,06/05/2021,283.14,1415.69,1698.83,OLH - Site & Centre Management,Cleaning Services,60501
http://statistics.data.gov.uk/id/local-authority/12UE,Huntingdonshire District Council,202256,EASY CLEAN CONTRACTORS LTD,49906,31/05/2021,18239,CLEANING,24/06/2021,472.5,2362.5,2835,Covid-19,Cleaning Services,60501
http://statistics.data.gov.uk/id/local-authority/12UE,Huntingdonshire District Council,202256,EASY CLEAN CONTRACTORS LTD,48060,30/04/2021,18128,EASTFIELD HOUSE,27/05/2021,462,2310,2772,Covid-19,Cleaning Services,60501
http://statistics.data.gov.uk/id/local-authority/12UE,Huntingdonshire District Council,202256,EASY CLEAN CONTRACTORS LTD,49905,31/05/2021,18240,CLEANING,24/06/2021,420,2100,2520,Covid-19,Cleaning Services,60501
http://statistics.data.gov.uk/id/local-authority/12UE,Huntingdonshire District Council,202256,EASY CLEAN CONTRACTORS LTD,49905,31/05/2021,18240,CLEANING,24/06/2021,21,105,126,Covid-19,Cleaning Services,60501
http://statistics.data.gov.uk/id/local-authority/12UE,Huntingdonshire District Council,202256,EASY CLEAN CONTRACTORS LTD,49908,31/05/2021,18241,CLEANING,24/06/2021,200,1000,1200,Covid-19,Cleaning Services,60501
http://statistics.data.gov.uk/id/local-authority/12UE,Huntingdonshire District Council,202256,EASY CLEAN CONTRACTORS LTD,49908,31/05/2021,18241,CLEANING,24/06/2021,22,110,132,Covid-19,Cleaning Services,60501
http://statistics.data.gov.uk/id/local-authority/12UE,Huntingdonshire District Council,202256,EASY CLEAN CONTRACTORS LTD,48059,30/04/2021,18129,BUS STATION CLEANING,27/05/2021,210,1050,1260,Covid-19,Cleaning Services,60501
http://statistics.data.gov.uk/id/local-authority/12UE,Huntingdonshire District Council,202256,EASY CLEAN CONTRACTORS LTD,49222,31/05/2021,18319,CLEANING,24/06/2021,59,295,354,Pathfinder House,Cleaning Services,60501
